{"text_format":"1","workbook":"xlsx","n_sheets":1,"sheets":["تراكيب"],"not_rendered":{"charts":0,"images":0,"macros":1,"external_links":0,"defined_names":1,"comments":0,"pivot_tables":0},"unopened":[],"bounds":{"document_bytes":16777216,"sheet_cells":100000,"rows_first":2000,"rows_last":500,"rows_between":2000,"halvings":0,"cell_chars":16384,"cell_head_chars":4096},"cells_cut":0,"cells_raw":0,"read":"whole","date_system":"1900"}

{"sheet":"تراكيب","index":0,"n_rows":391,"n_cols":42,"rows_kept":391,"cut":false,"hidden":false,"merged":[[52,16,52,19],[8,23,8,26],[8,28,8,31],[8,33,8,36],[8,38,8,41],[48,20,48,21],[49,20,49,21],[48,17,48,19],[49,17,49,19],[0,17,0,20],[1,18,1,20],[2,18,2,20],[5,1,5,16],[6,1,6,4],[6,5,6,8],[6,9,6,12],[6,13,6,16]]}
[null,null,null,null,null,null,null,null,null,null,null,null,null,null,null,null,null,"مدرسة "]
[null,null,null,null,null,null,null,null,null,null,null,null,null,null,null,null,null,null,"المستوى الخامس ابتدائي"]
[null,null,null,null,null,null,null,null,null,null,null,null,null,null,null,null,null,null,"المديرية "]
[null,null,null,null,null,null,null,null,null,null,null,null,null,null,null,null,"نقط المراقبة المستمرة  1 دورة 2"]
[]
["ملاحظات","التراكيب",null,null,null,null,null,null,null,null,null,null,null,null,null,null,null,null,"المواد","     ","رت"]
[null,"المستثنى بالا",null,null,null,"التمييز",null,null,null,"جمع المذكر و المؤنث السالمين",null,null,null,"الحال",null,null,null,"النقطة",null,"اسماء التلاميذ"]
[null,0,1,2,3,0,1,2,3,0,1,2,3,0,1,2,3]
[null,null,null,null,"x",null,null,null,"x",null,null,"x",null,null,null,"x",null,null,null,"صفاء",1,null,null,"3 = متمكن",null,null,null,null,"2 =  متمكن نسبيا",null,null,null,null,"1 = في طور التمكن",null,null,null,null,"0 = غير متمكن "]
[null,"x",null,null,null,"x",null,null,null,"x",null,null,null,"x",null,null,null,null,null,"أيوب ",2,null,null,"المستثنى","التمييز","ج المذكر و المؤنث السالمين","الحال",null,"المستثنى","التمييز","ج المذكر و المؤنث السالمين","الحال",null,"المستثنى","التمييز","ج المذكر و المؤنث السالمين","الحال",null,"المستثنى","التمييز","ج المذكر و المؤنث السالمين","الحال"]
[null,"x",null,null,null,"x",null,null,null,"x",null,null,null,"x",null,null,null,null,null,"آية ",3,null,null,{"$f":"IF(E9=\"x\",T9,\"\")","v":"صفاء"},{"$f":"IF(I9=\"x\",T9,\"\")","v":"صفاء"},{"$f":"IF(M9=\"x\",T9,\"\")","v":""},{"$f":"IF(Q9=\"x\",T9,\"\")","v":""},null,{"$f":"IF(D9=\"x\",T9,\"\")","v":""},{"$f":"IF(H9=\"x\",T9,\"\")","v":""},{"$f":"IF(L9=\"x\",T9,\"\")","v":"صفاء"},{"$f":"IF(P9=\"x\",T9,\"\")","v":"صفاء"},null,{"$f":"IF(C9=\"x\",T9,\"\")","v":""},{"$f":"IF(G9=\"x\",T9,\"\")","v":""},{"$f":"IF(K9=\"x\",T9,\"\")","v":""},{"$f":"IF(O9=\"x\",T9,\"\")","v":""},null,{"$f":"IF(B9=\"x\",T9,\"\")","v":""},{"$f":"IF(F9=\"x\",T9,\"\")","v":""},{"$f":"IF(J9=\"x\",T9,\"\")","v":""},{"$f":"IF(N9=\"x\",T9,\"\")","v":""}]
[null,"x",null,null,null,"x",null,null,null,"x",null,null,null,"x",null,null,null,null,null," بلال",4,null,null,{"$f":"IF(E10=\"x\",T10,\"\")","v":""},{"$f":"IF(I10=\"x\",T10,\"\")","v":""},{"$f":"IF(M10=\"x\",T10,\"\")","v":""},{"$f":"IF(Q10=\"x\",T10,\"\")","v":""},null,{"$f":"IF(D10=\"x\",T10,\"\")","v":""},{"$f":"IF(H10=\"x\",T10,\"\")","v":""},{"$f":"IF(L10=\"x\",T10,\"\")","v":""},{"$f":"IF(P10=\"x\",T10,\"\")","v":""},null,{"$f":"IF(C10=\"x\",T10,\"\")","v":""},{"$f":"IF(G10=\"x\",T10,\"\")","v":""},{"$f":"IF(K10=\"x\",T10,\"\")","v":""},{"$f":"IF(O10=\"x\",T10,\"\")","v":""},null,{"$f":"IF(B10=\"x\",T10,\"\")","v":"أيوب "},{"$f":"IF(F10=\"x\",T10,\"\")","v":"أيوب "},{"$f":"IF(J10=\"x\",T10,\"\")","v":"أيوب "},{"$f":"IF(N10=\"x\",T10,\"\")","v":"أيوب "}]
[null,null,null,null,"x",null,null,"x",null,null,null,"x",null,null,null,"x",null,null,null," معاد",5,null,null,"","","","",null,"","","","",null,"","","","",null,"آية ","آية ","آية ","آية "]
[null,null,null,null,"x",null,null,null,"x",null,null,null,"x",null,null,null,"x",null,null,"كوثر",6,null,null,"","","","",null,"","","","",null,"","","","",null," بلال"," بلال"," بلال"," بلال"]
[null,null,null,null,"x",null,null,null,"x",null,null,null,"x",null,null,"x",null,null,null," عمر",7,null,null," معاد","","","",null,""," معاد"," معاد"," معاد",null,"","","","",null,"","","",""]
[null,null,null,"x",null,null,null,"x",null,null,"x",null,null,null,"x",null,null,null,null," زهرة",8,null," ","كوثر","كوثر","كوثر","كوثر",null,"","","","",null,"","","","",null,"","","",""]
[null,"x",null,null,null,null,"x",null,null,"x",null,null,null,"x",null,null,null,null,null," محمد",9,null,null," عمر"," عمر"," عمر","",null,"","",""," عمر",null,"","","","",null,"","","",""]
[null,null,null,null,"x",null,null,null,"x",null,null,null,"x",null,null,null,"x",null,null,"أكرم",10,null,null,"","","","",null," زهرة"," زهرة","","",null,"",""," زهرة"," زهرة",null,"","","",""]
[null,null,null,null,"x",null,null,"x",null,null,null,null,"x",null,null,null,"x",null,null," آية",11,null,null,"","","","",null,"","","","",null,""," محمد","","",null," محمد",""," محمد"," محمد"]
[null,null,null,"x",null,null,"x",null,null,null,"x",null,null,null,"x",null,null,null,null," رضا",12,null,null,"أكرم","أكرم","أكرم","أكرم",null,"","","","",null,"","","","",null,"","","",""]
[null,null,null,null,"x",null,null,null,"x",null,"x",null,null,null,null,null,"x",null,null," إحسان",13,null,null," آية",""," آية"," آية",null,""," آية","","",null,"","","","",null,"","","",""]
[null,null,null,"x",null,null,null,null,"x","x",null,null,null,null,"x",null,null,null,null,"وصال",14,null,null,"","","","",null," رضا","","","",null,""," رضا"," رضا"," رضا",null,"","","",""]
[null,null,null,null,"x",null,"x",null,null,null,null,null,"x",null,null,null,"x",null,null," موسى",15,null,null," إحسان"," إحسان",""," إحسان",null,"","","","",null,"",""," إحسان","",null,"","","",""]
[null,null,null,null,"x",null,null,"x",null,null,"x",null,null,null,"x",null,null,null,null," ملاك",16,null,null,"","وصال","","",null,"وصال","","","",null,"","","","وصال",null,"","","وصال",""]
[null,"x",null,null,null,"x",null,null,null,"x",null,null,null,"x",null,null,null,null,null," سومية",17,null,null," موسى",""," موسى"," موسى",null,"","","","",null,""," موسى","","",null,"","","",""]
[null,null,null,null,"x",null,null,null,"x",null,"x",null,null,null,"x",null,null,null,null,"دعاء",18,null,null," ملاك","","","",null,""," ملاك","","",null,"",""," ملاك"," ملاك",null,"","","",""]
[null,null,null,null,"x",null,null,"x",null,null,"x",null,null,null,null,null,"x",null,null," إكرام",19,null,null,"","","","",null,"","","","",null,"","","","",null," سومية"," سومية"," سومية"," سومية"]
[null,"x",null,null,null,null,"x",null,null,"x",null,null,null,null,"x",null,null,null,null,"رميساء",20,null,null,"دعاء","دعاء","","",null,"","","","",null,"","","دعاء","دعاء",null,"","","",""]
[null,null,null,null,"x",null,null,null,"x",null,null,null,"x",null,null,null,"x",null,null," أيوب",21,null,null," إكرام","",""," إكرام",null,""," إكرام","","",null,"",""," إكرام","",null,"","","",""]
[null,null,null,null,"x",null,"x",null,null,null,"x",null,null,null,"x",null,null,null,null," آية2",22,null,null,"","","","",null,"","","","",null,"","رميساء","","رميساء",null,"رميساء","","رميساء",""]
[null,null,null,null,"x",null,"x",null,null,null,null,"x",null,null,null,null,"x",null,null," مارية",23,null,null," أيوب"," أيوب"," أيوب"," أيوب",null,"","","","",null,"","","","",null,"","","",""]
[null,null,null,null,"x",null,null,"x",null,null,null,null,"x",null,null,"x",null,null,null,"خولة",24,null,null," آية2","","","",null,"","","","",null,""," آية2"," آية2"," آية2",null,"","","",""]
[null,null,null,null,"x",null,"x",null,null,null,null,"x",null,null,null,"x",null,null,null," خديجة",25,null,null," مارية","",""," مارية",null,"",""," مارية","",null,""," مارية","","",null,"","","",""]
[null,null,null,null,"x",null,null,"x",null,null,"x",null,null,null,"x",null,null,null,null,"محمد",26,null,null,"خولة","","خولة","",null,"","خولة","","خولة",null,"","","","",null,"","","",""]
[null,null,null,null,"x",null,"x",null,null,null,null,"x",null,null,null,null,"x",null,null,"جهاد",27,null,null," خديجة","","","",null,"",""," خديجة"," خديجة",null,""," خديجة","","",null,"","","",""]
[null,null,null,null,"x",null,"x",null,null,null,null,"x",null,null,null,null,"x",null,null,"فاطمة الزهراء",28,null,null,"محمد","","","",null,"","محمد","","",null,"","","محمد","محمد",null,"","","",""]
[null,"x",null,null,null,"x",null,null,null,"x",null,null,null,"x",null,null,null,null,null," خليل",29,null,null,"جهاد","","","جهاد",null,"","","جهاد","",null,"","جهاد","","",null,"","","",""]
[null,null,null,"x",null,"x",null,null,null,null,"x",null,null,null,null,"x",null,null,null," فاطمة الزهراء2",30,null,null,"فاطمة الزهراء","","","فاطمة الزهراء",null,"","","فاطمة الزهراء","",null,"","فاطمة الزهراء","","",null,"","","",""]
[null,"x",null,null,null,"x",null,null,null,"x",null,null,null,"x",null,null,null,null,null,"مروة ",31,null,null,"","","","",null,"","","","",null,"","","","",null," خليل"," خليل"," خليل"," خليل"]
[null,null,null,null,"x",null,null,null,"x",null,null,"x",null,null,"x",null,null,null,null,"أشرف",32,null,null,"","","","",null," فاطمة الزهراء2","",""," فاطمة الزهراء2",null,"",""," فاطمة الزهراء2","",null,""," فاطمة الزهراء2","",""]
[null,null,null,null,"x",null,null,null,"x",null,null,null,"x",null,null,null,"x",null,null," ريم",33,null,null,"","","","",null,"","","","",null,"","","","",null,"مروة ","مروة ","مروة ","مروة "]
[null,"x",null,null,null,"x",null,null,null,"x",null,null,null,"x",null,null,null,null,null," دنيا",34,null,null,"أشرف","أشرف","","",null,"","","أشرف","",null,"","","","أشرف",null,"","","",""]
[null,null,null,null,"x",null,null,null,"x",null,null,"x",null,null,"x",null,null,null,null," زياد",35,null,null," ريم"," ريم"," ريم"," ريم",null,"","","","",null,"","","","",null,"","","",""]
[null,null,null,null,"x",null,null,null,"x",null,null,null,"x",null,null,null,"x",null,null," خولة",36,null,null,"","","","",null,"","","","",null,"","","","",null," دنيا"," دنيا"," دنيا"," دنيا"]
[null,null,null,null,"x",null,null,"x",null,null,null,"x",null,null,null,null,"x",null,null," فرح",37,null,null," زياد"," زياد","","",null,"",""," زياد","",null,"","",""," زياد",null,"","","",""]
[null,null,null,null,null,null,null,null,null,null,null,null,null,null,null,null,null,null,null,null,null,null,null," خولة"," خولة"," خولة"," خولة",null,"","","","",null,"","","","",null,"","","",""]
[null,null,null,null,null,null,null,null,null,null,null,null,null,null,null,null,null,null,null,null,null,null,null," فرح","",""," فرح",null,""," فرح"," فرح","",null,"","","","",null,"","","",""]
[null,null,null,null,null,null,null,null,null,null,null,null,null,null,null,null,null,null,null,null,null,null,null,"","","","",null,"","","","",null,"","","","",null,"","","",""]
[null,{"$f":"COUNTIF(B9:B45,\"x\")","v":9},0,4,24,8,9,8,12,10,9,9,9,8,10,6,{"$f":"COUNTIF(Q9:Q45,\"x\")","v":13},{"$f":"COUNTA(T9:T45)","v":37},null,null,"المجموع",null,null,"    ActiveWindow.ScrollRow = 9","    ActiveWindow.ScrollRow = 9","    ActiveWindow.ScrollRow = 9",null,null,"    ActiveWindow.ScrollRow = 9","    ActiveWindow.ScrollRow = 9","    ActiveWindow.ScrollRow = 9","    ActiveWindow.ScrollRow = 9",null,"    ActiveWindow.ScrollRow = 9","    ActiveWindow.ScrollRow = 9","    ActiveWindow.ScrollRow = 9","    ActiveWindow.ScrollRow = 9",null,null,"    ActiveWindow.ScrollRow = 9","    ActiveWindow.ScrollRow = 9","    ActiveWindow.ScrollRow = 9"]
[null,{"$f":"(B49/$R$49)","v":0.24324324324324326},{"$f":"(C49/$R$49)","v":0},{"$f":"(D49/$R$49)","v":0.10810810810810811},{"$f":"(E49/$R$49)","v":0.64864864864864868},{"$f":"(F49/$R$49)","v":0.21621621621621623},{"$f":"(G49/$R$49)","v":0.24324324324324326},{"$f":"(H49/$R$49)","v":0.21621621621621623},{"$f":"(I49/$R$49)","v":0.32432432432432434},{"$f":"(J49/$R$49)","v":0.27027027027027029},{"$f":"(K49/$R$49)","v":0.24324324324324326},{"$f":"(L49/$R$49)","v":0.24324324324324326},{"$f":"(M49/$R$49)","v":0.24324324324324326},{"$f":"(N49/$R$49)","v":0.21621621621621623},{"$f":"(O49/$R$49)","v":0.27027027027027029},{"$f":"(P49/$R$49)","v":0.16216216216216217},{"$f":"(Q49/$R$49)","v":0.35135135135135137},null,null,null,"النسبة المئوية",null,null,"    Range(\"Y11\").Select","    Range(\"Y11\").Select","    Range(\"Y11\").Select",null,null,"    Range(\"Y11\").Select","    Range(\"Y11\").Select","    Range(\"Y11\").Select","    Range(\"Y11\").Select",null,"    Range(\"Y11\").Select","    Range(\"Y11\").Select","    Range(\"Y11\").Select","    Range(\"Y11\").Select",null,null,"    Range(\"Y11\").Select","    Range(\"Y11\").Select","    Range(\"Y11\").Select"]
[null,null,null,null,null,null,null,null,null,null,null,null,null,null,null,null,null,null,null,null,null,null,null,"    ActiveWindow.SmallScroll ToRight:=-5","    ActiveWindow.SmallScroll ToRight:=-5","    ActiveWindow.SmallScroll ToRight:=-5",null,null,"    ActiveWindow.SmallScroll ToRight:=-5","    ActiveWindow.SmallScroll ToRight:=-5","    ActiveWindow.SmallScroll ToRight:=-5","    ActiveWindow.SmallScroll ToRight:=-5",null,"    ActiveWindow.SmallScroll ToRight:=-5","    ActiveWindow.SmallScroll ToRight:=-5","    ActiveWindow.SmallScroll ToRight:=-5","    ActiveWindow.SmallScroll ToRight:=-5",null,null,"    ActiveWindow.SmallScroll ToRight:=-5","    ActiveWindow.SmallScroll ToRight:=-5","    ActiveWindow.SmallScroll ToRight:=-5"]
[null,null,null,null,null,null,null,null,null,null,null,null,null,null,null,null,null,null,null,null,null,null,null,"    ActiveSheet.PasteSpecial Format:=\"Texte Unicode\", Link:=False, _","    ActiveSheet.PasteSpecial Format:=\"Texte Unicode\", Link:=False, _","    ActiveSheet.PasteSpecial Format:=\"Texte Unicode\", Link:=False, _",null,null,"    ActiveSheet.PasteSpecial Format:=\"Texte Unicode\", Link:=False, _","    ActiveSheet.PasteSpecial Format:=\"Texte Unicode\", Link:=False, _","    ActiveSheet.PasteSpecial Format:=\"Texte Unicode\", Link:=False, _","    ActiveSheet.PasteSpecial Format:=\"Texte Unicode\", Link:=False, _",null,"    ActiveSheet.PasteSpecial Format:=\"Texte Unicode\", Link:=False, _","    ActiveSheet.PasteSpecial Format:=\"Texte Unicode\", Link:=False, _","    ActiveSheet.PasteSpecial Format:=\"Texte Unicode\", Link:=False, _","    ActiveSheet.PasteSpecial Format:=\"Texte Unicode\", Link:=False, _",null,null,"    ActiveSheet.PasteSpecial Format:=\"Texte Unicode\", Link:=False, _","    ActiveSheet.PasteSpecial Format:=\"Texte Unicode\", Link:=False, _","    ActiveSheet.PasteSpecial Format:=\"Texte Unicode\", Link:=False, _"]
[null,null,null,null,null,null,null,null,null,null,null,null,null,null,null,null,null,null,null,null,null,null,null,"        DisplayAsIcon:=False, NoHTMLFormatting:=True","        DisplayAsIcon:=False, NoHTMLFormatting:=True","        DisplayAsIcon:=False, NoHTMLFormatting:=True",null,null,"        DisplayAsIcon:=False, NoHTMLFormatting:=True","        DisplayAsIcon:=False, NoHTMLFormatting:=True","        DisplayAsIcon:=False, NoHTMLFormatting:=True","        DisplayAsIcon:=False, NoHTMLFormatting:=True",null,"        DisplayAsIcon:=False, NoHTMLFormatting:=True","        DisplayAsIcon:=False, NoHTMLFormatting:=True","        DisplayAsIcon:=False, NoHTMLFormatting:=True","        DisplayAsIcon:=False, NoHTMLFormatting:=True",null,null,"        DisplayAsIcon:=False, NoHTMLFormatting:=True","        DisplayAsIcon:=False, NoHTMLFormatting:=True","        DisplayAsIcon:=False, NoHTMLFormatting:=True"]
[null,null,null,null,null,null,null,null,null,null,null,null,null,null,null,null,null,null,null,null,null,null,null,"    ActiveCell.FormulaR1C1 = \"=IF(R[-2]C[-16]=\"\"x\"\",R[-2]C[-5],\"\"\"\")\"","    ActiveCell.FormulaR1C1 = \"=IF(R[-2]C[-16]=\"\"x\"\",R[-2]C[-5],\"\"\"\")\"","    ActiveCell.FormulaR1C1 = \"=IF(R[-2]C[-16]=\"\"x\"\",R[-2]C[-5],\"\"\"\")\"",null,null,"    ActiveCell.FormulaR1C1 = \"=IF(R[-2]C[-16]=\"\"x\"\",R[-2]C[-5],\"\"\"\")\"","    ActiveCell.FormulaR1C1 = \"=IF(R[-2]C[-16]=\"\"x\"\",R[-2]C[-5],\"\"\"\")\"","    ActiveCell.FormulaR1C1 = \"=IF(R[-2]C[-16]=\"\"x\"\",R[-2]C[-5],\"\"\"\")\"","    ActiveCell.FormulaR1C1 = \"=IF(R[-2]C[-16]=\"\"x\"\",R[-2]C[-5],\"\"\"\")\"",null,"    ActiveCell.FormulaR1C1 = \"=IF(R[-2]C[-16]=\"\"x\"\",R[-2]C[-5],\"\"\"\")\"","    ActiveCell.FormulaR1C1 = \"=IF(R[-2]C[-16]=\"\"x\"\",R[-2]C[-5],\"\"\"\")\"","    ActiveCell.FormulaR1C1 = \"=IF(R[-2]C[-16]=\"\"x\"\",R[-2]C[-5],\"\"\"\")\"","    ActiveCell.FormulaR1C1 = \"=IF(R[-2]C[-16]=\"\"x\"\",R[-2]C[-5],\"\"\"\")\"",null,null,"    ActiveCell.FormulaR1C1 = \"=IF(R[-2]C[-16]=\"\"x\"\",R[-2]C[-5],\"\"\"\")\"","    ActiveCell.FormulaR1C1 = \"=IF(R[-2]C[-16]=\"\"x\"\",R[-2]C[-5],\"\"\"\")\"","    ActiveCell.FormulaR1C1 = \"=IF(R[-2]C[-16]=\"\"x\"\",R[-2]C[-5],\"\"\"\")\""]
[null,null,null,null,null,null,null,null,null,null,null,null,null,null,null,null,null,null,null,null,null,null,null,"    Range(\"Y11\").Select","    Range(\"Y11\").Select","    Range(\"Y11\").Select",null,null,"    Range(\"Y11\").Select","    Range(\"Y11\").Select","    Range(\"Y11\").Select","    Range(\"Y11\").Select",null,"    Range(\"Y11\").Select","    Range(\"Y11\").Select","    Range(\"Y11\").Select","    Range(\"Y11\").Select",null,null,"    Range(\"Y11\").Select","    Range(\"Y11\").Select","    Range(\"Y11\").Select"]
[null,null,null,null,null,null,null,null,null,null,null,null,null,null,null,null,null,null,null,null,null,null,null,"    Selection.AutoFill Destination:=Range(\"Y11:Y48\"), Type:=xlFillDefault","    Selection.AutoFill Destination:=Range(\"Y11:Y48\"), Type:=xlFillDefault","    Selection.AutoFill Destination:=Range(\"Y11:Y48\"), Type:=xlFillDefault",null,null,"    Selection.AutoFill Destination:=Range(\"Y11:Y48\"), Type:=xlFillDefault","    Selection.AutoFill Destination:=Range(\"Y11:Y48\"), Type:=xlFillDefault","    Selection.AutoFill Destination:=Range(\"Y11:Y48\"), Type:=xlFillDefault","    Selection.AutoFill Destination:=Range(\"Y11:Y48\"), Type:=xlFillDefault",null,"    Selection.AutoFill Destination:=Range(\"Y11:Y48\"), Type:=xlFillDefault","    Selection.AutoFill Destination:=Range(\"Y11:Y48\"), Type:=xlFillDefault","    Selection.AutoFill Destination:=Range(\"Y11:Y48\"), Type:=xlFillDefault","    Selection.AutoFill Destination:=Range(\"Y11:Y48\"), Type:=xlFillDefault",null,null,"    Selection.AutoFill Destination:=Range(\"Y11:Y48\"), Type:=xlFillDefault","    Selection.AutoFill Destination:=Range(\"Y11:Y48\"), Type:=xlFillDefault","    Selection.AutoFill Destination:=Range(\"Y11:Y48\"), Type:=xlFillDefault"]
[null,null,null,null,null,null,null,null,null,null,null,null,null,null,null,null,null,null,null,null,null,null,null,"    Range(\"Y11:Y48\").Select","    Range(\"Y11:Y48\").Select","    Range(\"Y11:Y48\").Select",null,null,"    Range(\"Y11:Y48\").Select","    Range(\"Y11:Y48\").Select","    Range(\"Y11:Y48\").Select","    Range(\"Y11:Y48\").Select",null,"    Range(\"Y11:Y48\").Select","    Range(\"Y11:Y48\").Select","    Range(\"Y11:Y48\").Select","    Range(\"Y11:Y48\").Select",null,null,"    Range(\"Y11:Y48\").Select","    Range(\"Y11:Y48\").Select","    Range(\"Y11:Y48\").Select"]
[null,null,null,null,null,null,null,null,null,null,null,null,null,null,null,null,null,null,null,null,null,null,null,"    ActiveWindow.ScrollRow = 33","    ActiveWindow.ScrollRow = 33","    ActiveWindow.ScrollRow = 33",null,null,"    ActiveWindow.ScrollRow = 33","    ActiveWindow.ScrollRow = 33","    ActiveWindow.ScrollRow = 33","    ActiveWindow.ScrollRow = 33",null,"    ActiveWindow.ScrollRow = 33","    ActiveWindow.ScrollRow = 33","    ActiveWindow.ScrollRow = 33","    ActiveWindow.ScrollRow = 33",null,null,"    ActiveWindow.ScrollRow = 33","    ActiveWindow.ScrollRow = 33","    ActiveWindow.ScrollRow = 33"]
[null,null,null,null,null,null,null,null,null,null,null,null,null,null,null,null,null,null,null,null,null,null,null,"    ActiveWindow.ScrollRow = 29","    ActiveWindow.ScrollRow = 29","    ActiveWindow.ScrollRow = 29",null,null,"    ActiveWindow.ScrollRow = 29","    ActiveWindow.ScrollRow = 29","    ActiveWindow.ScrollRow = 29","    ActiveWindow.ScrollRow = 29",null,"    ActiveWindow.ScrollRow = 29","    ActiveWindow.ScrollRow = 29","    ActiveWindow.ScrollRow = 29","    ActiveWindow.ScrollRow = 29",null,null,"    ActiveWindow.ScrollRow = 29","    ActiveWindow.ScrollRow = 29","    ActiveWindow.ScrollRow = 29"]
[null,null,null,null,null,null,null,null,null,null,null,null,null,null,null,null,null,null,null,null,null,null,null,"    ActiveWindow.ScrollRow = 24","    ActiveWindow.ScrollRow = 24","    ActiveWindow.ScrollRow = 24",null,null,"    ActiveWindow.ScrollRow = 24","    ActiveWindow.ScrollRow = 24","    ActiveWindow.ScrollRow = 24","    ActiveWindow.ScrollRow = 24",null,"    ActiveWindow.ScrollRow = 24","    ActiveWindow.ScrollRow = 24","    ActiveWindow.ScrollRow = 24","    ActiveWindow.ScrollRow = 24",null,null,"    ActiveWindow.ScrollRow = 24","    ActiveWindow.ScrollRow = 24","    ActiveWindow.ScrollRow = 24"]
[null,null,null,null,null,null,null,null,null,null,null,null,null,null,null,null,null,null,null,null,null,null,null,"    ActiveWindow.ScrollRow = 20","    ActiveWindow.ScrollRow = 20","    ActiveWindow.ScrollRow = 20",null,null,"    ActiveWindow.ScrollRow = 20","    ActiveWindow.ScrollRow = 20","    ActiveWindow.ScrollRow = 20","    ActiveWindow.ScrollRow = 20",null,"    ActiveWindow.ScrollRow = 20","    ActiveWindow.ScrollRow = 20","    ActiveWindow.ScrollRow = 20","    ActiveWindow.ScrollRow = 20",null,null,"    ActiveWindow.ScrollRow = 20","    ActiveWindow.ScrollRow = 20","    ActiveWindow.ScrollRow = 20"]
[null,null,null,null,null,null,null,null,null,null,null,null,null,null,null,null,null,null,null,null,null,null,null,"    ActiveWindow.ScrollRow = 18","    ActiveWindow.ScrollRow = 18","    ActiveWindow.ScrollRow = 18",null,null,"    ActiveWindow.ScrollRow = 18","    ActiveWindow.ScrollRow = 18","    ActiveWindow.ScrollRow = 18","    ActiveWindow.ScrollRow = 18",null,"    ActiveWindow.ScrollRow = 18","    ActiveWindow.ScrollRow = 18","    ActiveWindow.ScrollRow = 18","    ActiveWindow.ScrollRow = 18",null,null,"    ActiveWindow.ScrollRow = 18","    ActiveWindow.ScrollRow = 18","    ActiveWindow.ScrollRow = 18"]
[null,null,null,null,null,null,null,null,null,null,null,null,null,null,null,null,null,null,null,null,null,null,null,"    ActiveWindow.ScrollRow = 17","    ActiveWindow.ScrollRow = 17","    ActiveWindow.ScrollRow = 17",null,null,"    ActiveWindow.ScrollRow = 17","    ActiveWindow.ScrollRow = 17","    ActiveWindow.ScrollRow = 17","    ActiveWindow.ScrollRow = 17",null,"    ActiveWindow.ScrollRow = 17","    ActiveWindow.ScrollRow = 17","    ActiveWindow.ScrollRow = 17","    ActiveWindow.ScrollRow = 17",null,null,"    ActiveWindow.ScrollRow = 17","    ActiveWindow.ScrollRow = 17","    ActiveWindow.ScrollRow = 17"]
[null,null,null,null,null,null,null,null,null,null,null,null,null,null,null,null,null,null,null,null,null,null,null,"    ActiveWindow.ScrollRow = 15","    ActiveWindow.ScrollRow = 15","    ActiveWindow.ScrollRow = 15",null,null,"    ActiveWindow.ScrollRow = 15","    ActiveWindow.ScrollRow = 15","    ActiveWindow.ScrollRow = 15","    ActiveWindow.ScrollRow = 15",null,"    ActiveWindow.ScrollRow = 15","    ActiveWindow.ScrollRow = 15","    ActiveWindow.ScrollRow = 15","    ActiveWindow.ScrollRow = 15",null,null,"    ActiveWindow.ScrollRow = 15","    ActiveWindow.ScrollRow = 15","    ActiveWindow.ScrollRow = 15"]
[null,null,null,null,null,null,null,null,null,null,null,null,null,null,null,null,null,null,null,null,null,null,null,"    ActiveWindow.ScrollRow = 11","    ActiveWindow.ScrollRow = 11","    ActiveWindow.ScrollRow = 11",null,null,"    ActiveWindow.ScrollRow = 11","    ActiveWindow.ScrollRow = 11","    ActiveWindow.ScrollRow = 11","    ActiveWindow.ScrollRow = 11",null,"    ActiveWindow.ScrollRow = 11","    ActiveWindow.ScrollRow = 11","    ActiveWindow.ScrollRow = 11","    ActiveWindow.ScrollRow = 11",null,null,"    ActiveWindow.ScrollRow = 11","    ActiveWindow.ScrollRow = 11","    ActiveWindow.ScrollRow = 11"]
[null,null,null,null,null,null,null,null,null,null,null,null,null,null,null,null,null,null,null,null,null,null,null,"    ActiveWindow.ScrollRow = 9","    ActiveWindow.ScrollRow = 9","    ActiveWindow.ScrollRow = 9",null,null,"    ActiveWindow.ScrollRow = 9","    ActiveWindow.ScrollRow = 9","    ActiveWindow.ScrollRow = 9","    ActiveWindow.ScrollRow = 9",null,"    ActiveWindow.ScrollRow = 9","    ActiveWindow.ScrollRow = 9","    ActiveWindow.ScrollRow = 9","    ActiveWindow.ScrollRow = 9",null,null,"    ActiveWindow.ScrollRow = 9","    ActiveWindow.ScrollRow = 9","    ActiveWindow.ScrollRow = 9"]
[null,null,null,null,null,null,null,null,null,null,null,null,null,null,null,null,null,null,null,null,null,null,null,"    Range(\"X11\").Select","    Range(\"X11\").Select","    Range(\"X11\").Select",null,null,"    Range(\"X11\").Select","    Range(\"X11\").Select","    Range(\"X11\").Select","    Range(\"X11\").Select",null,"    Range(\"X11\").Select","    Range(\"X11\").Select","    Range(\"X11\").Select","    Range(\"X11\").Select",null,null,"    Range(\"X11\").Select","    Range(\"X11\").Select","    Range(\"X11\").Select"]
[null,null,null,null,null,null,null,null,null,null,null,null,null,null,null,null,null,null,null,null,null,null,null,"    ActiveSheet.PasteSpecial Format:=\"Texte Unicode\", Link:=False, _","    ActiveSheet.PasteSpecial Format:=\"Texte Unicode\", Link:=False, _","    ActiveSheet.PasteSpecial Format:=\"Texte Unicode\", Link:=False, _",null,null,"    ActiveSheet.PasteSpecial Format:=\"Texte Unicode\", Link:=False, _","    ActiveSheet.PasteSpecial Format:=\"Texte Unicode\", Link:=False, _","    ActiveSheet.PasteSpecial Format:=\"Texte Unicode\", Link:=False, _","    ActiveSheet.PasteSpecial Format:=\"Texte Unicode\", Link:=False, _",null,"    ActiveSheet.PasteSpecial Format:=\"Texte Unicode\", Link:=False, _","    ActiveSheet.PasteSpecial Format:=\"Texte Unicode\", Link:=False, _","    ActiveSheet.PasteSpecial Format:=\"Texte Unicode\", Link:=False, _","    ActiveSheet.PasteSpecial Format:=\"Texte Unicode\", Link:=False, _",null,null,"    ActiveSheet.PasteSpecial Format:=\"Texte Unicode\", Link:=False, _","    ActiveSheet.PasteSpecial Format:=\"Texte Unicode\", Link:=False, _","    ActiveSheet.PasteSpecial Format:=\"Texte Unicode\", Link:=False, _"]
[null,null,null,null,null,null,null,null,null,null,null,null,null,null,null,null,null,null,null,null,null,null,null,"        DisplayAsIcon:=False, NoHTMLFormatting:=True","        DisplayAsIcon:=False, NoHTMLFormatting:=True","        DisplayAsIcon:=False, NoHTMLFormatting:=True",null,null,"        DisplayAsIcon:=False, NoHTMLFormatting:=True","        DisplayAsIcon:=False, NoHTMLFormatting:=True","        DisplayAsIcon:=False, NoHTMLFormatting:=True","        DisplayAsIcon:=False, NoHTMLFormatting:=True",null,"        DisplayAsIcon:=False, NoHTMLFormatting:=True","        DisplayAsIcon:=False, NoHTMLFormatting:=True","        DisplayAsIcon:=False, NoHTMLFormatting:=True","        DisplayAsIcon:=False, NoHTMLFormatting:=True",null,null,"        DisplayAsIcon:=False, NoHTMLFormatting:=True","        DisplayAsIcon:=False, NoHTMLFormatting:=True","        DisplayAsIcon:=False, NoHTMLFormatting:=True"]
[null,null,null,null,null,null,null,null,null,null,null,null,null,null,null,null,null,null,null,null,null,null,null,"    ActiveCell.FormulaR1C1 = \"=IF(R[-2]C[-19]=\"\"x\"\",R[-2]C[-4],\"\"\"\")\"","    ActiveCell.FormulaR1C1 = \"=IF(R[-2]C[-19]=\"\"x\"\",R[-2]C[-4],\"\"\"\")\"","    ActiveCell.FormulaR1C1 = \"=IF(R[-2]C[-19]=\"\"x\"\",R[-2]C[-4],\"\"\"\")\"",null,null,"    ActiveCell.FormulaR1C1 = \"=IF(R[-2]C[-19]=\"\"x\"\",R[-2]C[-4],\"\"\"\")\"","    ActiveCell.FormulaR1C1 = \"=IF(R[-2]C[-19]=\"\"x\"\",R[-2]C[-4],\"\"\"\")\"","    ActiveCell.FormulaR1C1 = \"=IF(R[-2]C[-19]=\"\"x\"\",R[-2]C[-4],\"\"\"\")\"","    ActiveCell.FormulaR1C1 = \"=IF(R[-2]C[-19]=\"\"x\"\",R[-2]C[-4],\"\"\"\")\"",null,"    ActiveCell.FormulaR1C1 = \"=IF(R[-2]C[-19]=\"\"x\"\",R[-2]C[-4],\"\"\"\")\"","    ActiveCell.FormulaR1C1 = \"=IF(R[-2]C[-19]=\"\"x\"\",R[-2]C[-4],\"\"\"\")\"","    ActiveCell.FormulaR1C1 = \"=IF(R[-2]C[-19]=\"\"x\"\",R[-2]C[-4],\"\"\"\")\"","    ActiveCell.FormulaR1C1 = \"=IF(R[-2]C[-19]=\"\"x\"\",R[-2]C[-4],\"\"\"\")\"",null,null,"    ActiveCell.FormulaR1C1 = \"=IF(R[-2]C[-19]=\"\"x\"\",R[-2]C[-4],\"\"\"\")\"","    ActiveCell.FormulaR1C1 = \"=IF(R[-2]C[-19]=\"\"x\"\",R[-2]C[-4],\"\"\"\")\"","    ActiveCell.FormulaR1C1 = \"=IF(R[-2]C[-19]=\"\"x\"\",R[-2]C[-4],\"\"\"\")\""]
[null,null,null,null,null,null,null,null,null,null,null,null,null,null,null,null,null,null,null,null,null,null,null,"    Range(\"X11\").Select","    Range(\"X11\").Select","    Range(\"X11\").Select",null,null,"    Range(\"X11\").Select","    Range(\"X11\").Select","    Range(\"X11\").Select","    Range(\"X11\").Select",null,"    Range(\"X11\").Select","    Range(\"X11\").Select","    Range(\"X11\").Select","    Range(\"X11\").Select",null,null,"    Range(\"X11\").Select","    Range(\"X11\").Select","    Range(\"X11\").Select"]
[null,null,null,null,null,null,null,null,null,null,null,null,null,null,null,null,null,null,null,null,null,null,null,"    Selection.AutoFill Destination:=Range(\"X11:X48\"), Type:=xlFillDefault","    Selection.AutoFill Destination:=Range(\"X11:X48\"), Type:=xlFillDefault","    Selection.AutoFill Destination:=Range(\"X11:X48\"), Type:=xlFillDefault",null,null,"    Selection.AutoFill Destination:=Range(\"X11:X48\"), Type:=xlFillDefault","    Selection.AutoFill Destination:=Range(\"X11:X48\"), Type:=xlFillDefault","    Selection.AutoFill Destination:=Range(\"X11:X48\"), Type:=xlFillDefault","    Selection.AutoFill Destination:=Range(\"X11:X48\"), Type:=xlFillDefault",null,"    Selection.AutoFill Destination:=Range(\"X11:X48\"), Type:=xlFillDefault","    Selection.AutoFill Destination:=Range(\"X11:X48\"), Type:=xlFillDefault","    Selection.AutoFill Destination:=Range(\"X11:X48\"), Type:=xlFillDefault","    Selection.AutoFill Destination:=Range(\"X11:X48\"), Type:=xlFillDefault",null,null,"    Selection.AutoFill Destination:=Range(\"X11:X48\"), Type:=xlFillDefault","    Selection.AutoFill Destination:=Range(\"X11:X48\"), Type:=xlFillDefault","    Selection.AutoFill Destination:=Range(\"X11:X48\"), Type:=xlFillDefault"]
[null,null,null,null,null,null,null,null,null,null,null,null,null,null,null,null,null,null,null,null,null,null,null,"    Range(\"X11:X48\").Select","    Range(\"X11:X48\").Select","    Range(\"X11:X48\").Select",null,null,"    Range(\"X11:X48\").Select","    Range(\"X11:X48\").Select","    Range(\"X11:X48\").Select","    Range(\"X11:X48\").Select",null,"    Range(\"X11:X48\").Select","    Range(\"X11:X48\").Select","    Range(\"X11:X48\").Select","    Range(\"X11:X48\").Select",null,null,"    Range(\"X11:X48\").Select","    Range(\"X11:X48\").Select","    Range(\"X11:X48\").Select"]
[null,null,null,null,null,null,null,null,null,null,null,null,null,null,null,null,null,null,null,null,null,null,null,"End Sub","End Sub","End Sub",null,null,"End Sub","End Sub","End Sub","End Sub",null,"End Sub","End Sub","End Sub","End Sub",null,null,"End Sub","End Sub","End Sub"]
[null,null,null,null,null,null,null,null,null,null,null,null,null,null,null,null,null,null,null,null,null,null,null,"Sub MOTAMAKININ_NISBIYANE()","Sub MOTAMAKININ_NISBIYANE()","Sub MOTAMAKININ_NISBIYANE()",null,null,"Sub MOTAMAKININ_NISBIYANE()","Sub MOTAMAKININ_NISBIYANE()","Sub MOTAMAKININ_NISBIYANE()","Sub MOTAMAKININ_NISBIYANE()",null,"Sub MOTAMAKININ_NISBIYANE()","Sub MOTAMAKININ_NISBIYANE()","Sub MOTAMAKININ_NISBIYANE()","Sub MOTAMAKININ_NISBIYANE()",null,null,"Sub MOTAMAKININ_NISBIYANE()","Sub MOTAMAKININ_NISBIYANE()","Sub MOTAMAKININ_NISBIYANE()"]
[null,null,null,null,null,null,null,null,null,null,null,null,null,null,null,null,null,null,null,null,null,null,null,"'","'","'",null,null,"'","'","'","'",null,"'","'","'","'",null,null,"'","'","'"]
[null,null,null,null,null,null,null,null,null,null,null,null,null,null,null,null,null,null,null,null,null,null,null,"' MOTAMAKININ_NISBIYANE Macro","' MOTAMAKININ_NISBIYANE Macro","' MOTAMAKININ_NISBIYANE Macro",null,null,"' MOTAMAKININ_NISBIYANE Macro","' MOTAMAKININ_NISBIYANE Macro","' MOTAMAKININ_NISBIYANE Macro","' MOTAMAKININ_NISBIYANE Macro",null,"' MOTAMAKININ_NISBIYANE Macro","' MOTAMAKININ_NISBIYANE Macro","' MOTAMAKININ_NISBIYANE Macro","' MOTAMAKININ_NISBIYANE Macro",null,null,"' MOTAMAKININ_NISBIYANE Macro","' MOTAMAKININ_NISBIYANE Macro","' MOTAMAKININ_NISBIYANE Macro"]
[null,null,null,null,null,null,null,null,null,null,null,null,null,null,null,null,null,null,null,null,null,null,null,"'","'","'",null,null,"'","'","'","'",null,"'","'","'","'",null,null,"'","'","'"]
[]
[null,null,null,null,null,null,null,null,null,null,null,null,null,null,null,null,null,null,null,null,null,null,null,"'","'","'",null,null,"'","'","'","'",null,"'","'","'","'",null,null,"'","'","'"]
[null,null,null,null,null,null,null,null,null,null,null,null,null,null,null,null,null,null,null,null,null,null,null,"    Range(\"AF11\").Select","    Range(\"AF11\").Select","    Range(\"AF11\").Select",null,null,"    Range(\"AF11\").Select","    Range(\"AF11\").Select","    Range(\"AF11\").Select","    Range(\"AF11\").Select",null,"    Range(\"AF11\").Select","    Range(\"AF11\").Select","    Range(\"AF11\").Select","    Range(\"AF11\").Select",null,null,"    Range(\"AF11\").Select","    Range(\"AF11\").Select","    Range(\"AF11\").Select"]
[null,null,null,null,null,null,null,null,null,null,null,null,null,null,null,null,null,null,null,null,null,null,null,"    ActiveSheet.PasteSpecial Format:=\"Texte Unicode\", Link:=False, _","    ActiveSheet.PasteSpecial Format:=\"Texte Unicode\", Link:=False, _","    ActiveSheet.PasteSpecial Format:=\"Texte Unicode\", Link:=False, _",null,null,"    ActiveSheet.PasteSpecial Format:=\"Texte Unicode\", Link:=False, _","    ActiveSheet.PasteSpecial Format:=\"Texte Unicode\", Link:=False, _","    ActiveSheet.PasteSpecial Format:=\"Texte Unicode\", Link:=False, _","    ActiveSheet.PasteSpecial Format:=\"Texte Unicode\", Link:=False, _",null,"    ActiveSheet.PasteSpecial Format:=\"Texte Unicode\", Link:=False, _","    ActiveSheet.PasteSpecial Format:=\"Texte Unicode\", Link:=False, _","    ActiveSheet.PasteSpecial Format:=\"Texte Unicode\", Link:=False, _","    ActiveSheet.PasteSpecial Format:=\"Texte Unicode\", Link:=False, _",null,null,"    ActiveSheet.PasteSpecial Format:=\"Texte Unicode\", Link:=False, _","    ActiveSheet.PasteSpecial Format:=\"Texte Unicode\", Link:=False, _","    ActiveSheet.PasteSpecial Format:=\"Texte Unicode\", Link:=False, _"]
[null,null,null,null,null,null,null,null,null,null,null,null,null,null,null,null,null,null,null,null,null,null,null,"        DisplayAsIcon:=False, NoHTMLFormatting:=True","        DisplayAsIcon:=False, NoHTMLFormatting:=True","        DisplayAsIcon:=False, NoHTMLFormatting:=True",null,null,"        DisplayAsIcon:=False, NoHTMLFormatting:=True","        DisplayAsIcon:=False, NoHTMLFormatting:=True","        DisplayAsIcon:=False, NoHTMLFormatting:=True","        DisplayAsIcon:=False, NoHTMLFormatting:=True",null,"        DisplayAsIcon:=False, NoHTMLFormatting:=True","        DisplayAsIcon:=False, NoHTMLFormatting:=True","        DisplayAsIcon:=False, NoHTMLFormatting:=True","        DisplayAsIcon:=False, NoHTMLFormatting:=True",null,null,"        DisplayAsIcon:=False, NoHTMLFormatting:=True","        DisplayAsIcon:=False, NoHTMLFormatting:=True","        DisplayAsIcon:=False, NoHTMLFormatting:=True"]
[null,null,null,null,null,null,null,null,null,null,null,null,null,null,null,null,null,null,null,null,null,null,null,"    ActiveWindow.SmallScroll ToRight:=-7","    ActiveWindow.SmallScroll ToRight:=-7","    ActiveWindow.SmallScroll ToRight:=-7",null,null,"    ActiveWindow.SmallScroll ToRight:=-7","    ActiveWindow.SmallScroll ToRight:=-7","    ActiveWindow.SmallScroll ToRight:=-7","    ActiveWindow.SmallScroll ToRight:=-7",null,"    ActiveWindow.SmallScroll ToRight:=-7","    ActiveWindow.SmallScroll ToRight:=-7","    ActiveWindow.SmallScroll ToRight:=-7","    ActiveWindow.SmallScroll ToRight:=-7",null,null,"    ActiveWindow.SmallScroll ToRight:=-7","    ActiveWindow.SmallScroll ToRight:=-7","    ActiveWindow.SmallScroll ToRight:=-7"]
[null,null,null,null,null,null,null,null,null,null,null,null,null,null,null,null,null,null,null,null,null,null,null,"    ActiveCell.FormulaR1C1 = \"=IF(R[-2]C[-16]=\"\"x\"\",R[-2]C[-12],\"\"\"\")\"","    ActiveCell.FormulaR1C1 = \"=IF(R[-2]C[-16]=\"\"x\"\",R[-2]C[-12],\"\"\"\")\"","    ActiveCell.FormulaR1C1 = \"=IF(R[-2]C[-16]=\"\"x\"\",R[-2]C[-12],\"\"\"\")\"",null,null,"    ActiveCell.FormulaR1C1 = \"=IF(R[-2]C[-16]=\"\"x\"\",R[-2]C[-12],\"\"\"\")\"","    ActiveCell.FormulaR1C1 = \"=IF(R[-2]C[-16]=\"\"x\"\",R[-2]C[-12],\"\"\"\")\"","    ActiveCell.FormulaR1C1 = \"=IF(R[-2]C[-16]=\"\"x\"\",R[-2]C[-12],\"\"\"\")\"","    ActiveCell.FormulaR1C1 = \"=IF(R[-2]C[-16]=\"\"x\"\",R[-2]C[-12],\"\"\"\")\"",null,"    ActiveCell.FormulaR1C1 = \"=IF(R[-2]C[-16]=\"\"x\"\",R[-2]C[-12],\"\"\"\")\"","    ActiveCell.FormulaR1C1 = \"=IF(R[-2]C[-16]=\"\"x\"\",R[-2]C[-12],\"\"\"\")\"","    ActiveCell.FormulaR1C1 = \"=IF(R[-2]C[-16]=\"\"x\"\",R[-2]C[-12],\"\"\"\")\"","    ActiveCell.FormulaR1C1 = \"=IF(R[-2]C[-16]=\"\"x\"\",R[-2]C[-12],\"\"\"\")\"",null,null,"    ActiveCell.FormulaR1C1 = \"=IF(R[-2]C[-16]=\"\"x\"\",R[-2]C[-12],\"\"\"\")\"","    ActiveCell.FormulaR1C1 = \"=IF(R[-2]C[-16]=\"\"x\"\",R[-2]C[-12],\"\"\"\")\"","    ActiveCell.FormulaR1C1 = \"=IF(R[-2]C[-16]=\"\"x\"\",R[-2]C[-12],\"\"\"\")\""]
[null,null,null,null,null,null,null,null,null,null,null,null,null,null,null,null,null,null,null,null,null,null,null,"    Range(\"AF11\").Select","    Range(\"AF11\").Select","    Range(\"AF11\").Select",null,null,"    Range(\"AF11\").Select","    Range(\"AF11\").Select","    Range(\"AF11\").Select","    Range(\"AF11\").Select",null,"    Range(\"AF11\").Select","    Range(\"AF11\").Select","    Range(\"AF11\").Select","    Range(\"AF11\").Select",null,null,"    Range(\"AF11\").Select","    Range(\"AF11\").Select","    Range(\"AF11\").Select"]
[null,null,null,null,null,null,null,null,null,null,null,null,null,null,null,null,null,null,null,null,null,null,null,"    Selection.AutoFill Destination:=Range(\"AF11:AF48\"), Type:=xlFillDefault","    Selection.AutoFill Destination:=Range(\"AF11:AF48\"), Type:=xlFillDefault","    Selection.AutoFill Destination:=Range(\"AF11:AF48\"), Type:=xlFillDefault",null,null,"    Selection.AutoFill Destination:=Range(\"AF11:AF48\"), Type:=xlFillDefault","    Selection.AutoFill Destination:=Range(\"AF11:AF48\"), Type:=xlFillDefault","    Selection.AutoFill Destination:=Range(\"AF11:AF48\"), Type:=xlFillDefault","    Selection.AutoFill Destination:=Range(\"AF11:AF48\"), Type:=xlFillDefault",null,"    Selection.AutoFill Destination:=Range(\"AF11:AF48\"), Type:=xlFillDefault","    Selection.AutoFill Destination:=Range(\"AF11:AF48\"), Type:=xlFillDefault","    Selection.AutoFill Destination:=Range(\"AF11:AF48\"), Type:=xlFillDefault","    Selection.AutoFill Destination:=Range(\"AF11:AF48\"), Type:=xlFillDefault",null,null,"    Selection.AutoFill Destination:=Range(\"AF11:AF48\"), Type:=xlFillDefault","    Selection.AutoFill Destination:=Range(\"AF11:AF48\"), Type:=xlFillDefault","    Selection.AutoFill Destination:=Range(\"AF11:AF48\"), Type:=xlFillDefault"]
[null,null,null,null,null,null,null,null,null,null,null,null,null,null,null,null,null,null,null,null,null,null,null,"    Range(\"AF11:AF48\").Select","    Range(\"AF11:AF48\").Select","    Range(\"AF11:AF48\").Select",null,null,"    Range(\"AF11:AF48\").Select","    Range(\"AF11:AF48\").Select","    Range(\"AF11:AF48\").Select","    Range(\"AF11:AF48\").Select",null,"    Range(\"AF11:AF48\").Select","    Range(\"AF11:AF48\").Select","    Range(\"AF11:AF48\").Select","    Range(\"AF11:AF48\").Select",null,null,"    Range(\"AF11:AF48\").Select","    Range(\"AF11:AF48\").Select","    Range(\"AF11:AF48\").Select"]
[null,null,null,null,null,null,null,null,null,null,null,null,null,null,null,null,null,null,null,null,null,null,null,"    ActiveWindow.ScrollRow = 35","    ActiveWindow.ScrollRow = 35","    ActiveWindow.ScrollRow = 35",null,null,"    ActiveWindow.ScrollRow = 35","    ActiveWindow.ScrollRow = 35","    ActiveWindow.ScrollRow = 35","    ActiveWindow.ScrollRow = 35",null,"    ActiveWindow.ScrollRow = 35","    ActiveWindow.ScrollRow = 35","    ActiveWindow.ScrollRow = 35","    ActiveWindow.ScrollRow = 35",null,null,"    ActiveWindow.ScrollRow = 35","    ActiveWindow.ScrollRow = 35","    ActiveWindow.ScrollRow = 35"]
[null,null,null,null,null,null,null,null,null,null,null,null,null,null,null,null,null,null,null,null,null,null,null,"    ActiveWindow.ScrollRow = 32","    ActiveWindow.ScrollRow = 32","    ActiveWindow.ScrollRow = 32",null,null,"    ActiveWindow.ScrollRow = 32","    ActiveWindow.ScrollRow = 32","    ActiveWindow.ScrollRow = 32","    ActiveWindow.ScrollRow = 32",null,"    ActiveWindow.ScrollRow = 32","    ActiveWindow.ScrollRow = 32","    ActiveWindow.ScrollRow = 32","    ActiveWindow.ScrollRow = 32",null,null,"    ActiveWindow.ScrollRow = 32","    ActiveWindow.ScrollRow = 32","    ActiveWindow.ScrollRow = 32"]
[null,null,null,null,null,null,null,null,null,null,null,null,null,null,null,null,null,null,null,null,null,null,null,"    ActiveWindow.ScrollRow = 27","    ActiveWindow.ScrollRow = 27","    ActiveWindow.ScrollRow = 27",null,null,"    ActiveWindow.ScrollRow = 27","    ActiveWindow.ScrollRow = 27","    ActiveWindow.ScrollRow = 27","    ActiveWindow.ScrollRow = 27",null,"    ActiveWindow.ScrollRow = 27","    ActiveWindow.ScrollRow = 27","    ActiveWindow.ScrollRow = 27","    ActiveWindow.ScrollRow = 27",null,null,"    ActiveWindow.ScrollRow = 27","    ActiveWindow.ScrollRow = 27","    ActiveWindow.ScrollRow = 27"]
[null,null,null,null,null,null,null,null,null,null,null,null,null,null,null,null,null,null,null,null,null,null,null,"    ActiveWindow.ScrollRow = 22","    ActiveWindow.ScrollRow = 22","    ActiveWindow.ScrollRow = 22",null,null,"    ActiveWindow.ScrollRow = 22","    ActiveWindow.ScrollRow = 22","    ActiveWindow.ScrollRow = 22","    ActiveWindow.ScrollRow = 22",null,"    ActiveWindow.ScrollRow = 22","    ActiveWindow.ScrollRow = 22","    ActiveWindow.ScrollRow = 22","    ActiveWindow.ScrollRow = 22",null,null,"    ActiveWindow.ScrollRow = 22","    ActiveWindow.ScrollRow = 22","    ActiveWindow.ScrollRow = 22"]
[null,null,null,null,null,null,null,null,null,null,null,null,null,null,null,null,null,null,null,null,null,null,null,"    ActiveWindow.ScrollRow = 18","    ActiveWindow.ScrollRow = 18","    ActiveWindow.ScrollRow = 18",null,null,"    ActiveWindow.ScrollRow = 18","    ActiveWindow.ScrollRow = 18","    ActiveWindow.ScrollRow = 18","    ActiveWindow.ScrollRow = 18",null,"    ActiveWindow.ScrollRow = 18","    ActiveWindow.ScrollRow = 18","    ActiveWindow.ScrollRow = 18","    ActiveWindow.ScrollRow = 18",null,null,"    ActiveWindow.ScrollRow = 18","    ActiveWindow.ScrollRow = 18","    ActiveWindow.ScrollRow = 18"]
[null,null,null,null,null,null,null,null,null,null,null,null,null,null,null,null,null,null,null,null,null,null,null,"    ActiveWindow.ScrollRow = 17","    ActiveWindow.ScrollRow = 17","    ActiveWindow.ScrollRow = 17",null,null,"    ActiveWindow.ScrollRow = 17","    ActiveWindow.ScrollRow = 17","    ActiveWindow.ScrollRow = 17","    ActiveWindow.ScrollRow = 17",null,"    ActiveWindow.ScrollRow = 17","    ActiveWindow.ScrollRow = 17","    ActiveWindow.ScrollRow = 17","    ActiveWindow.ScrollRow = 17",null,null,"    ActiveWindow.ScrollRow = 17","    ActiveWindow.ScrollRow = 17","    ActiveWindow.ScrollRow = 17"]
[null,null,null,null,null,null,null,null,null,null,null,null,null,null,null,null,null,null,null,null,null,null,null,"    ActiveWindow.ScrollRow = 16","    ActiveWindow.ScrollRow = 16","    ActiveWindow.ScrollRow = 16",null,null,"    ActiveWindow.ScrollRow = 16","    ActiveWindow.ScrollRow = 16","    ActiveWindow.ScrollRow = 16","    ActiveWindow.ScrollRow = 16",null,"    ActiveWindow.ScrollRow = 16","    ActiveWindow.ScrollRow = 16","    ActiveWindow.ScrollRow = 16","    ActiveWindow.ScrollRow = 16",null,null,"    ActiveWindow.ScrollRow = 16","    ActiveWindow.ScrollRow = 16","    ActiveWindow.ScrollRow = 16"]
[null,null,null,null,null,null,null,null,null,null,null,null,null,null,null,null,null,null,null,null,null,null,null,"    ActiveWindow.ScrollRow = 13","    ActiveWindow.ScrollRow = 13","    ActiveWindow.ScrollRow = 13",null,null,"    ActiveWindow.ScrollRow = 13","    ActiveWindow.ScrollRow = 13","    ActiveWindow.ScrollRow = 13","    ActiveWindow.ScrollRow = 13",null,"    ActiveWindow.ScrollRow = 13","    ActiveWindow.ScrollRow = 13","    ActiveWindow.ScrollRow = 13","    ActiveWindow.ScrollRow = 13",null,null,"    ActiveWindow.ScrollRow = 13","    ActiveWindow.ScrollRow = 13","    ActiveWindow.ScrollRow = 13"]
[null,null,null,null,null,null,null,null,null,null,null,null,null,null,null,null,null,null,null,null,null,null,null,"    ActiveWindow.ScrollRow = 10","    ActiveWindow.ScrollRow = 10","    ActiveWindow.ScrollRow = 10",null,null,"    ActiveWindow.ScrollRow = 10","    ActiveWindow.ScrollRow = 10","    ActiveWindow.ScrollRow = 10","    ActiveWindow.ScrollRow = 10",null,"    ActiveWindow.ScrollRow = 10","    ActiveWindow.ScrollRow = 10","    ActiveWindow.ScrollRow = 10","    ActiveWindow.ScrollRow = 10",null,null,"    ActiveWindow.ScrollRow = 10","    ActiveWindow.ScrollRow = 10","    ActiveWindow.ScrollRow = 10"]
[null,null,null,null,null,null,null,null,null,null,null,null,null,null,null,null,null,null,null,null,null,null,null,"    ActiveWindow.ScrollRow = 9","    ActiveWindow.ScrollRow = 9","    ActiveWindow.ScrollRow = 9",null,null,"    ActiveWindow.ScrollRow = 9","    ActiveWindow.ScrollRow = 9","    ActiveWindow.ScrollRow = 9","    ActiveWindow.ScrollRow = 9",null,"    ActiveWindow.ScrollRow = 9","    ActiveWindow.ScrollRow = 9","    ActiveWindow.ScrollRow = 9","    ActiveWindow.ScrollRow = 9",null,null,"    ActiveWindow.ScrollRow = 9","    ActiveWindow.ScrollRow = 9","    ActiveWindow.ScrollRow = 9"]
[null,null,null,null,null,null,null,null,null,null,null,null,null,null,null,null,null,null,null,null,null,null,null,"    Range(\"AE11\").Select","    Range(\"AE11\").Select","    Range(\"AE11\").Select",null,null,"    Range(\"AE11\").Select","    Range(\"AE11\").Select","    Range(\"AE11\").Select","    Range(\"AE11\").Select",null,"    Range(\"AE11\").Select","    Range(\"AE11\").Select","    Range(\"AE11\").Select","    Range(\"AE11\").Select",null,null,"    Range(\"AE11\").Select","    Range(\"AE11\").Select","    Range(\"AE11\").Select"]
[null,null,null,null,null,null,null,null,null,null,null,null,null,null,null,null,null,null,null,null,null,null,null,"    ActiveSheet.PasteSpecial Format:=\"Texte Unicode\", Link:=False, _","    ActiveSheet.PasteSpecial Format:=\"Texte Unicode\", Link:=False, _","    ActiveSheet.PasteSpecial Format:=\"Texte Unicode\", Link:=False, _",null,null,"    ActiveSheet.PasteSpecial Format:=\"Texte Unicode\", Link:=False, _","    ActiveSheet.PasteSpecial Format:=\"Texte Unicode\", Link:=False, _","    ActiveSheet.PasteSpecial Format:=\"Texte Unicode\", Link:=False, _","    ActiveSheet.PasteSpecial Format:=\"Texte Unicode\", Link:=False, _",null,"    ActiveSheet.PasteSpecial Format:=\"Texte Unicode\", Link:=False, _","    ActiveSheet.PasteSpecial Format:=\"Texte Unicode\", Link:=False, _","    ActiveSheet.PasteSpecial Format:=\"Texte Unicode\", Link:=False, _","    ActiveSheet.PasteSpecial Format:=\"Texte Unicode\", Link:=False, _",null,null,"    ActiveSheet.PasteSpecial Format:=\"Texte Unicode\", Link:=False, _","    ActiveSheet.PasteSpecial Format:=\"Texte Unicode\", Link:=False, _","    ActiveSheet.PasteSpecial Format:=\"Texte Unicode\", Link:=False, _"]
[null,null,null,null,null,null,null,null,null,null,null,null,null,null,null,null,null,null,null,null,null,null,null,"        DisplayAsIcon:=False, NoHTMLFormatting:=True","        DisplayAsIcon:=False, NoHTMLFormatting:=True","        DisplayAsIcon:=False, NoHTMLFormatting:=True",null,null,"        DisplayAsIcon:=False, NoHTMLFormatting:=True","        DisplayAsIcon:=False, NoHTMLFormatting:=True","        DisplayAsIcon:=False, NoHTMLFormatting:=True","        DisplayAsIcon:=False, NoHTMLFormatting:=True",null,"        DisplayAsIcon:=False, NoHTMLFormatting:=True","        DisplayAsIcon:=False, NoHTMLFormatting:=True","        DisplayAsIcon:=False, NoHTMLFormatting:=True","        DisplayAsIcon:=False, NoHTMLFormatting:=True",null,null,"        DisplayAsIcon:=False, NoHTMLFormatting:=True","        DisplayAsIcon:=False, NoHTMLFormatting:=True","        DisplayAsIcon:=False, NoHTMLFormatting:=True"]
[null,null,null,null,null,null,null,null,null,null,null,null,null,null,null,null,null,null,null,null,null,null,null,"    ActiveWindow.SmallScroll ToRight:=-8","    ActiveWindow.SmallScroll ToRight:=-8","    ActiveWindow.SmallScroll ToRight:=-8",null,null,"    ActiveWindow.SmallScroll ToRight:=-8","    ActiveWindow.SmallScroll ToRight:=-8","    ActiveWindow.SmallScroll ToRight:=-8","    ActiveWindow.SmallScroll ToRight:=-8",null,"    ActiveWindow.SmallScroll ToRight:=-8","    ActiveWindow.SmallScroll ToRight:=-8","    ActiveWindow.SmallScroll ToRight:=-8","    ActiveWindow.SmallScroll ToRight:=-8",null,null,"    ActiveWindow.SmallScroll ToRight:=-8","    ActiveWindow.SmallScroll ToRight:=-8","    ActiveWindow.SmallScroll ToRight:=-8"]
[null,null,null,null,null,null,null,null,null,null,null,null,null,null,null,null,null,null,null,null,null,null,null,"    ActiveCell.FormulaR1C1 = \"=IF(R[-2]C[-19]=\"\"x\"\",R[-2]C[-11],\"\"\"\")\"","    ActiveCell.FormulaR1C1 = \"=IF(R[-2]C[-19]=\"\"x\"\",R[-2]C[-11],\"\"\"\")\"","    ActiveCell.FormulaR1C1 = \"=IF(R[-2]C[-19]=\"\"x\"\",R[-2]C[-11],\"\"\"\")\"",null,null,"    ActiveCell.FormulaR1C1 = \"=IF(R[-2]C[-19]=\"\"x\"\",R[-2]C[-11],\"\"\"\")\"","    ActiveCell.FormulaR1C1 = \"=IF(R[-2]C[-19]=\"\"x\"\",R[-2]C[-11],\"\"\"\")\"","    ActiveCell.FormulaR1C1 = \"=IF(R[-2]C[-19]=\"\"x\"\",R[-2]C[-11],\"\"\"\")\"","    ActiveCell.FormulaR1C1 = \"=IF(R[-2]C[-19]=\"\"x\"\",R[-2]C[-11],\"\"\"\")\"",null,"    ActiveCell.FormulaR1C1 = \"=IF(R[-2]C[-19]=\"\"x\"\",R[-2]C[-11],\"\"\"\")\"","    ActiveCell.FormulaR1C1 = \"=IF(R[-2]C[-19]=\"\"x\"\",R[-2]C[-11],\"\"\"\")\"","    ActiveCell.FormulaR1C1 = \"=IF(R[-2]C[-19]=\"\"x\"\",R[-2]C[-11],\"\"\"\")\"","    ActiveCell.FormulaR1C1 = \"=IF(R[-2]C[-19]=\"\"x\"\",R[-2]C[-11],\"\"\"\")\"",null,null,"    ActiveCell.FormulaR1C1 = \"=IF(R[-2]C[-19]=\"\"x\"\",R[-2]C[-11],\"\"\"\")\"","    ActiveCell.FormulaR1C1 = \"=IF(R[-2]C[-19]=\"\"x\"\",R[-2]C[-11],\"\"\"\")\"","    ActiveCell.FormulaR1C1 = \"=IF(R[-2]C[-19]=\"\"x\"\",R[-2]C[-11],\"\"\"\")\""]
[null,null,null,null,null,null,null,null,null,null,null,null,null,null,null,null,null,null,null,null,null,null,null,"    Range(\"AE11\").Select","    Range(\"AE11\").Select","    Range(\"AE11\").Select",null,null,"    Range(\"AE11\").Select","    Range(\"AE11\").Select","    Range(\"AE11\").Select","    Range(\"AE11\").Select",null,"    Range(\"AE11\").Select","    Range(\"AE11\").Select","    Range(\"AE11\").Select","    Range(\"AE11\").Select",null,null,"    Range(\"AE11\").Select","    Range(\"AE11\").Select","    Range(\"AE11\").Select"]
[null,null,null,null,null,null,null,null,null,null,null,null,null,null,null,null,null,null,null,null,null,null,null,"    Selection.AutoFill Destination:=Range(\"AE11:AE48\"), Type:=xlFillDefault","    Selection.AutoFill Destination:=Range(\"AE11:AE48\"), Type:=xlFillDefault","    Selection.AutoFill Destination:=Range(\"AE11:AE48\"), Type:=xlFillDefault",null,null,"    Selection.AutoFill Destination:=Range(\"AE11:AE48\"), Type:=xlFillDefault","    Selection.AutoFill Destination:=Range(\"AE11:AE48\"), Type:=xlFillDefault","    Selection.AutoFill Destination:=Range(\"AE11:AE48\"), Type:=xlFillDefault","    Selection.AutoFill Destination:=Range(\"AE11:AE48\"), Type:=xlFillDefault",null,"    Selection.AutoFill Destination:=Range(\"AE11:AE48\"), Type:=xlFillDefault","    Selection.AutoFill Destination:=Range(\"AE11:AE48\"), Type:=xlFillDefault","    Selection.AutoFill Destination:=Range(\"AE11:AE48\"), Type:=xlFillDefault","    Selection.AutoFill Destination:=Range(\"AE11:AE48\"), Type:=xlFillDefault",null,null,"    Selection.AutoFill Destination:=Range(\"AE11:AE48\"), Type:=xlFillDefault","    Selection.AutoFill Destination:=Range(\"AE11:AE48\"), Type:=xlFillDefault","    Selection.AutoFill Destination:=Range(\"AE11:AE48\"), Type:=xlFillDefault"]
[null,null,null,null,null,null,null,null,null,null,null,null,null,null,null,null,null,null,null,null,null,null,null,"    Range(\"AE11:AE48\").Select","    Range(\"AE11:AE48\").Select","    Range(\"AE11:AE48\").Select",null,null,"    Range(\"AE11:AE48\").Select","    Range(\"AE11:AE48\").Select","    Range(\"AE11:AE48\").Select","    Range(\"AE11:AE48\").Select",null,"    Range(\"AE11:AE48\").Select","    Range(\"AE11:AE48\").Select","    Range(\"AE11:AE48\").Select","    Range(\"AE11:AE48\").Select",null,null,"    Range(\"AE11:AE48\").Select","    Range(\"AE11:AE48\").Select","    Range(\"AE11:AE48\").Select"]
[null,null,null,null,null,null,null,null,null,null,null,null,null,null,null,null,null,null,null,null,null,null,null,"    ActiveWindow.ScrollRow = 34","    ActiveWindow.ScrollRow = 34","    ActiveWindow.ScrollRow = 34",null,null,"    ActiveWindow.ScrollRow = 34","    ActiveWindow.ScrollRow = 34","    ActiveWindow.ScrollRow = 34","    ActiveWindow.ScrollRow = 34",null,"    ActiveWindow.ScrollRow = 34","    ActiveWindow.ScrollRow = 34","    ActiveWindow.ScrollRow = 34","    ActiveWindow.ScrollRow = 34",null,null,"    ActiveWindow.ScrollRow = 34","    ActiveWindow.ScrollRow = 34","    ActiveWindow.ScrollRow = 34"]
[null,null,null,null,null,null,null,null,null,null,null,null,null,null,null,null,null,null,null,null,null,null,null,"    ActiveWindow.ScrollRow = 31","    ActiveWindow.ScrollRow = 31","    ActiveWindow.ScrollRow = 31",null,null,"    ActiveWindow.ScrollRow = 31","    ActiveWindow.ScrollRow = 31","    ActiveWindow.ScrollRow = 31","    ActiveWindow.ScrollRow = 31",null,"    ActiveWindow.ScrollRow = 31","    ActiveWindow.ScrollRow = 31","    ActiveWindow.ScrollRow = 31","    ActiveWindow.ScrollRow = 31",null,null,"    ActiveWindow.ScrollRow = 31","    ActiveWindow.ScrollRow = 31","    ActiveWindow.ScrollRow = 31"]
[null,null,null,null,null,null,null,null,null,null,null,null,null,null,null,null,null,null,null,null,null,null,null,"    ActiveWindow.ScrollRow = 24","    ActiveWindow.ScrollRow = 24","    ActiveWindow.ScrollRow = 24",null,null,"    ActiveWindow.ScrollRow = 24","    ActiveWindow.ScrollRow = 24","    ActiveWindow.ScrollRow = 24","    ActiveWindow.ScrollRow = 24",null,"    ActiveWindow.ScrollRow = 24","    ActiveWindow.ScrollRow = 24","    ActiveWindow.ScrollRow = 24","    ActiveWindow.ScrollRow = 24",null,null,"    ActiveWindow.ScrollRow = 24","    ActiveWindow.ScrollRow = 24","    ActiveWindow.ScrollRow = 24"]
[null,null,null,null,null,null,null,null,null,null,null,null,null,null,null,null,null,null,null,null,null,null,null,"    ActiveWindow.ScrollRow = 23","    ActiveWindow.ScrollRow = 23","    ActiveWindow.ScrollRow = 23",null,null,"    ActiveWindow.ScrollRow = 23","    ActiveWindow.ScrollRow = 23","    ActiveWindow.ScrollRow = 23","    ActiveWindow.ScrollRow = 23",null,"    ActiveWindow.ScrollRow = 23","    ActiveWindow.ScrollRow = 23","    ActiveWindow.ScrollRow = 23","    ActiveWindow.ScrollRow = 23",null,null,"    ActiveWindow.ScrollRow = 23","    ActiveWindow.ScrollRow = 23","    ActiveWindow.ScrollRow = 23"]
[null,null,null,null,null,null,null,null,null,null,null,null,null,null,null,null,null,null,null,null,null,null,null,"    ActiveWindow.ScrollRow = 22","    ActiveWindow.ScrollRow = 22","    ActiveWindow.ScrollRow = 22",null,null,"    ActiveWindow.ScrollRow = 22","    ActiveWindow.ScrollRow = 22","    ActiveWindow.ScrollRow = 22","    ActiveWindow.ScrollRow = 22",null,"    ActiveWindow.ScrollRow = 22","    ActiveWindow.ScrollRow = 22","    ActiveWindow.ScrollRow = 22","    ActiveWindow.ScrollRow = 22",null,null,"    ActiveWindow.ScrollRow = 22","    ActiveWindow.ScrollRow = 22","    ActiveWindow.ScrollRow = 22"]
[null,null,null,null,null,null,null,null,null,null,null,null,null,null,null,null,null,null,null,null,null,null,null,"    ActiveWindow.ScrollRow = 17","    ActiveWindow.ScrollRow = 17","    ActiveWindow.ScrollRow = 17",null,null,"    ActiveWindow.ScrollRow = 17","    ActiveWindow.ScrollRow = 17","    ActiveWindow.ScrollRow = 17","    ActiveWindow.ScrollRow = 17",null,"    ActiveWindow.ScrollRow = 17","    ActiveWindow.ScrollRow = 17","    ActiveWindow.ScrollRow = 17","    ActiveWindow.ScrollRow = 17",null,null,"    ActiveWindow.ScrollRow = 17","    ActiveWindow.ScrollRow = 17","    ActiveWindow.ScrollRow = 17"]
[null,null,null,null,null,null,null,null,null,null,null,null,null,null,null,null,null,null,null,null,null,null,null,"    ActiveWindow.ScrollRow = 11","    ActiveWindow.ScrollRow = 11","    ActiveWindow.ScrollRow = 11",null,null,"    ActiveWindow.ScrollRow = 11","    ActiveWindow.ScrollRow = 11","    ActiveWindow.ScrollRow = 11","    ActiveWindow.ScrollRow = 11",null,"    ActiveWindow.ScrollRow = 11","    ActiveWindow.ScrollRow = 11","    ActiveWindow.ScrollRow = 11","    ActiveWindow.ScrollRow = 11",null,null,"    ActiveWindow.ScrollRow = 11","    ActiveWindow.ScrollRow = 11","    ActiveWindow.ScrollRow = 11"]
[null,null,null,null,null,null,null,null,null,null,null,null,null,null,null,null,null,null,null,null,null,null,null,"    ActiveWindow.ScrollRow = 10","    ActiveWindow.ScrollRow = 10","    ActiveWindow.ScrollRow = 10",null,null,"    ActiveWindow.ScrollRow = 10","    ActiveWindow.ScrollRow = 10","    ActiveWindow.ScrollRow = 10","    ActiveWindow.ScrollRow = 10",null,"    ActiveWindow.ScrollRow = 10","    ActiveWindow.ScrollRow = 10","    ActiveWindow.ScrollRow = 10","    ActiveWindow.ScrollRow = 10",null,null,"    ActiveWindow.ScrollRow = 10","    ActiveWindow.ScrollRow = 10","    ActiveWindow.ScrollRow = 10"]
[null,null,null,null,null,null,null,null,null,null,null,null,null,null,null,null,null,null,null,null,null,null,null,"    Range(\"AD11\").Select","    Range(\"AD11\").Select","    Range(\"AD11\").Select",null,null,"    Range(\"AD11\").Select","    Range(\"AD11\").Select","    Range(\"AD11\").Select","    Range(\"AD11\").Select",null,"    Range(\"AD11\").Select","    Range(\"AD11\").Select","    Range(\"AD11\").Select","    Range(\"AD11\").Select",null,null,"    Range(\"AD11\").Select","    Range(\"AD11\").Select","    Range(\"AD11\").Select"]
[null,null,null,null,null,null,null,null,null,null,null,null,null,null,null,null,null,null,null,null,null,null,null,"    ActiveSheet.PasteSpecial Format:=\"Texte Unicode\", Link:=False, _","    ActiveSheet.PasteSpecial Format:=\"Texte Unicode\", Link:=False, _","    ActiveSheet.PasteSpecial Format:=\"Texte Unicode\", Link:=False, _",null,null,"    ActiveSheet.PasteSpecial Format:=\"Texte Unicode\", Link:=False, _","    ActiveSheet.PasteSpecial Format:=\"Texte Unicode\", Link:=False, _","    ActiveSheet.PasteSpecial Format:=\"Texte Unicode\", Link:=False, _","    ActiveSheet.PasteSpecial Format:=\"Texte Unicode\", Link:=False, _",null,"    ActiveSheet.PasteSpecial Format:=\"Texte Unicode\", Link:=False, _","    ActiveSheet.PasteSpecial Format:=\"Texte Unicode\", Link:=False, _","    ActiveSheet.PasteSpecial Format:=\"Texte Unicode\", Link:=False, _","    ActiveSheet.PasteSpecial Format:=\"Texte Unicode\", Link:=False, _",null,null,"    ActiveSheet.PasteSpecial Format:=\"Texte Unicode\", Link:=False, _","    ActiveSheet.PasteSpecial Format:=\"Texte Unicode\", Link:=False, _","    ActiveSheet.PasteSpecial Format:=\"Texte Unicode\", Link:=False, _"]
[null,null,null,null,null,null,null,null,null,null,null,null,null,null,null,null,null,null,null,null,null,null,null,"        DisplayAsIcon:=False, NoHTMLFormatting:=True","        DisplayAsIcon:=False, NoHTMLFormatting:=True","        DisplayAsIcon:=False, NoHTMLFormatting:=True",null,null,"        DisplayAsIcon:=False, NoHTMLFormatting:=True","        DisplayAsIcon:=False, NoHTMLFormatting:=True","        DisplayAsIcon:=False, NoHTMLFormatting:=True","        DisplayAsIcon:=False, NoHTMLFormatting:=True",null,"        DisplayAsIcon:=False, NoHTMLFormatting:=True","        DisplayAsIcon:=False, NoHTMLFormatting:=True","        DisplayAsIcon:=False, NoHTMLFormatting:=True","        DisplayAsIcon:=False, NoHTMLFormatting:=True",null,null,"        DisplayAsIcon:=False, NoHTMLFormatting:=True","        DisplayAsIcon:=False, NoHTMLFormatting:=True","        DisplayAsIcon:=False, NoHTMLFormatting:=True"]
[null,null,null,null,null,null,null,null,null,null,null,null,null,null,null,null,null,null,null,null,null,null,null,"    ActiveWindow.ScrollColumn = 16","    ActiveWindow.ScrollColumn = 16","    ActiveWindow.ScrollColumn = 16",null,null,"    ActiveWindow.ScrollColumn = 16","    ActiveWindow.ScrollColumn = 16","    ActiveWindow.ScrollColumn = 16","    ActiveWindow.ScrollColumn = 16",null,"    ActiveWindow.ScrollColumn = 16","    ActiveWindow.ScrollColumn = 16","    ActiveWindow.ScrollColumn = 16","    ActiveWindow.ScrollColumn = 16",null,null,"    ActiveWindow.ScrollColumn = 16","    ActiveWindow.ScrollColumn = 16","    ActiveWindow.ScrollColumn = 16"]
[null,null,null,null,null,null,null,null,null,null,null,null,null,null,null,null,null,null,null,null,null,null,null,"    ActiveWindow.ScrollColumn = 15","    ActiveWindow.ScrollColumn = 15","    ActiveWindow.ScrollColumn = 15",null,null,"    ActiveWindow.ScrollColumn = 15","    ActiveWindow.ScrollColumn = 15","    ActiveWindow.ScrollColumn = 15","    ActiveWindow.ScrollColumn = 15",null,"    ActiveWindow.ScrollColumn = 15","    ActiveWindow.ScrollColumn = 15","    ActiveWindow.ScrollColumn = 15","    ActiveWindow.ScrollColumn = 15",null,null,"    ActiveWindow.ScrollColumn = 15","    ActiveWindow.ScrollColumn = 15","    ActiveWindow.ScrollColumn = 15"]
[null,null,null,null,null,null,null,null,null,null,null,null,null,null,null,null,null,null,null,null,null,null,null,"    ActiveWindow.ScrollColumn = 14","    ActiveWindow.ScrollColumn = 14","    ActiveWindow.ScrollColumn = 14",null,null,"    ActiveWindow.ScrollColumn = 14","    ActiveWindow.ScrollColumn = 14","    ActiveWindow.ScrollColumn = 14","    ActiveWindow.ScrollColumn = 14",null,"    ActiveWindow.ScrollColumn = 14","    ActiveWindow.ScrollColumn = 14","    ActiveWindow.ScrollColumn = 14","    ActiveWindow.ScrollColumn = 14",null,null,"    ActiveWindow.ScrollColumn = 14","    ActiveWindow.ScrollColumn = 14","    ActiveWindow.ScrollColumn = 14"]
[null,null,null,null,null,null,null,null,null,null,null,null,null,null,null,null,null,null,null,null,null,null,null,"    ActiveWindow.ScrollColumn = 13","    ActiveWindow.ScrollColumn = 13","    ActiveWindow.ScrollColumn = 13",null,null,"    ActiveWindow.ScrollColumn = 13","    ActiveWindow.ScrollColumn = 13","    ActiveWindow.ScrollColumn = 13","    ActiveWindow.ScrollColumn = 13",null,"    ActiveWindow.ScrollColumn = 13","    ActiveWindow.ScrollColumn = 13","    ActiveWindow.ScrollColumn = 13","    ActiveWindow.ScrollColumn = 13",null,null,"    ActiveWindow.ScrollColumn = 13","    ActiveWindow.ScrollColumn = 13","    ActiveWindow.ScrollColumn = 13"]
[null,null,null,null,null,null,null,null,null,null,null,null,null,null,null,null,null,null,null,null,null,null,null,"    ActiveWindow.ScrollColumn = 11","    ActiveWindow.ScrollColumn = 11","    ActiveWindow.ScrollColumn = 11",null,null,"    ActiveWindow.ScrollColumn = 11","    ActiveWindow.ScrollColumn = 11","    ActiveWindow.ScrollColumn = 11","    ActiveWindow.ScrollColumn = 11",null,"    ActiveWindow.ScrollColumn = 11","    ActiveWindow.ScrollColumn = 11","    ActiveWindow.ScrollColumn = 11","    ActiveWindow.ScrollColumn = 11",null,null,"    ActiveWindow.ScrollColumn = 11","    ActiveWindow.ScrollColumn = 11","    ActiveWindow.ScrollColumn = 11"]
[null,null,null,null,null,null,null,null,null,null,null,null,null,null,null,null,null,null,null,null,null,null,null,"    ActiveWindow.ScrollColumn = 9","    ActiveWindow.ScrollColumn = 9","    ActiveWindow.ScrollColumn = 9",null,null,"    ActiveWindow.ScrollColumn = 9","    ActiveWindow.ScrollColumn = 9","    ActiveWindow.ScrollColumn = 9","    ActiveWindow.ScrollColumn = 9",null,"    ActiveWindow.ScrollColumn = 9","    ActiveWindow.ScrollColumn = 9","    ActiveWindow.ScrollColumn = 9","    ActiveWindow.ScrollColumn = 9",null,null,"    ActiveWindow.ScrollColumn = 9","    ActiveWindow.ScrollColumn = 9","    ActiveWindow.ScrollColumn = 9"]
[null,null,null,null,null,null,null,null,null,null,null,null,null,null,null,null,null,null,null,null,null,null,null,"    ActiveWindow.ScrollColumn = 8","    ActiveWindow.ScrollColumn = 8","    ActiveWindow.ScrollColumn = 8",null,null,"    ActiveWindow.ScrollColumn = 8","    ActiveWindow.ScrollColumn = 8","    ActiveWindow.ScrollColumn = 8","    ActiveWindow.ScrollColumn = 8",null,"    ActiveWindow.ScrollColumn = 8","    ActiveWindow.ScrollColumn = 8","    ActiveWindow.ScrollColumn = 8","    ActiveWindow.ScrollColumn = 8",null,null,"    ActiveWindow.ScrollColumn = 8","    ActiveWindow.ScrollColumn = 8","    ActiveWindow.ScrollColumn = 8"]
[null,null,null,null,null,null,null,null,null,null,null,null,null,null,null,null,null,null,null,null,null,null,null,"    ActiveWindow.ScrollColumn = 7","    ActiveWindow.ScrollColumn = 7","    ActiveWindow.ScrollColumn = 7",null,null,"    ActiveWindow.ScrollColumn = 7","    ActiveWindow.ScrollColumn = 7","    ActiveWindow.ScrollColumn = 7","    ActiveWindow.ScrollColumn = 7",null,"    ActiveWindow.ScrollColumn = 7","    ActiveWindow.ScrollColumn = 7","    ActiveWindow.ScrollColumn = 7","    ActiveWindow.ScrollColumn = 7",null,null,"    ActiveWindow.ScrollColumn = 7","    ActiveWindow.ScrollColumn = 7","    ActiveWindow.ScrollColumn = 7"]
[null,null,null,null,null,null,null,null,null,null,null,null,null,null,null,null,null,null,null,null,null,null,null,"    ActiveWindow.ScrollColumn = 6","    ActiveWindow.ScrollColumn = 6","    ActiveWindow.ScrollColumn = 6",null,null,"    ActiveWindow.ScrollColumn = 6","    ActiveWindow.ScrollColumn = 6","    ActiveWindow.ScrollColumn = 6","    ActiveWindow.ScrollColumn = 6",null,"    ActiveWindow.ScrollColumn = 6","    ActiveWindow.ScrollColumn = 6","    ActiveWindow.ScrollColumn = 6","    ActiveWindow.ScrollColumn = 6",null,null,"    ActiveWindow.ScrollColumn = 6","    ActiveWindow.ScrollColumn = 6","    ActiveWindow.ScrollColumn = 6"]
[null,null,null,null,null,null,null,null,null,null,null,null,null,null,null,null,null,null,null,null,null,null,null,"    ActiveWindow.ScrollColumn = 5","    ActiveWindow.ScrollColumn = 5","    ActiveWindow.ScrollColumn = 5",null,null,"    ActiveWindow.ScrollColumn = 5","    ActiveWindow.ScrollColumn = 5","    ActiveWindow.ScrollColumn = 5","    ActiveWindow.ScrollColumn = 5",null,"    ActiveWindow.ScrollColumn = 5","    ActiveWindow.ScrollColumn = 5","    ActiveWindow.ScrollColumn = 5","    ActiveWindow.ScrollColumn = 5",null,null,"    ActiveWindow.ScrollColumn = 5","    ActiveWindow.ScrollColumn = 5","    ActiveWindow.ScrollColumn = 5"]
[null,null,null,null,null,null,null,null,null,null,null,null,null,null,null,null,null,null,null,null,null,null,null,"    ActiveCell.FormulaR1C1 = \"=IF(R[-2]C[-22]=\"\"x\"\",R[-2]C[-10],\"\"\"\")\"","    ActiveCell.FormulaR1C1 = \"=IF(R[-2]C[-22]=\"\"x\"\",R[-2]C[-10],\"\"\"\")\"","    ActiveCell.FormulaR1C1 = \"=IF(R[-2]C[-22]=\"\"x\"\",R[-2]C[-10],\"\"\"\")\"",null,null,"    ActiveCell.FormulaR1C1 = \"=IF(R[-2]C[-22]=\"\"x\"\",R[-2]C[-10],\"\"\"\")\"","    ActiveCell.FormulaR1C1 = \"=IF(R[-2]C[-22]=\"\"x\"\",R[-2]C[-10],\"\"\"\")\"","    ActiveCell.FormulaR1C1 = \"=IF(R[-2]C[-22]=\"\"x\"\",R[-2]C[-10],\"\"\"\")\"","    ActiveCell.FormulaR1C1 = \"=IF(R[-2]C[-22]=\"\"x\"\",R[-2]C[-10],\"\"\"\")\"",null,"    ActiveCell.FormulaR1C1 = \"=IF(R[-2]C[-22]=\"\"x\"\",R[-2]C[-10],\"\"\"\")\"","    ActiveCell.FormulaR1C1 = \"=IF(R[-2]C[-22]=\"\"x\"\",R[-2]C[-10],\"\"\"\")\"","    ActiveCell.FormulaR1C1 = \"=IF(R[-2]C[-22]=\"\"x\"\",R[-2]C[-10],\"\"\"\")\"","    ActiveCell.FormulaR1C1 = \"=IF(R[-2]C[-22]=\"\"x\"\",R[-2]C[-10],\"\"\"\")\"",null,null,"    ActiveCell.FormulaR1C1 = \"=IF(R[-2]C[-22]=\"\"x\"\",R[-2]C[-10],\"\"\"\")\"","    ActiveCell.FormulaR1C1 = \"=IF(R[-2]C[-22]=\"\"x\"\",R[-2]C[-10],\"\"\"\")\"","    ActiveCell.FormulaR1C1 = \"=IF(R[-2]C[-22]=\"\"x\"\",R[-2]C[-10],\"\"\"\")\""]
[null,null,null,null,null,null,null,null,null,null,null,null,null,null,null,null,null,null,null,null,null,null,null,"    Range(\"AD11\").Select","    Range(\"AD11\").Select","    Range(\"AD11\").Select",null,null,"    Range(\"AD11\").Select","    Range(\"AD11\").Select","    Range(\"AD11\").Select","    Range(\"AD11\").Select",null,"    Range(\"AD11\").Select","    Range(\"AD11\").Select","    Range(\"AD11\").Select","    Range(\"AD11\").Select",null,null,"    Range(\"AD11\").Select","    Range(\"AD11\").Select","    Range(\"AD11\").Select"]
[null,null,null,null,null,null,null,null,null,null,null,null,null,null,null,null,null,null,null,null,null,null,null,"    Selection.AutoFill Destination:=Range(\"AD11:AD48\"), Type:=xlFillDefault","    Selection.AutoFill Destination:=Range(\"AD11:AD48\"), Type:=xlFillDefault","    Selection.AutoFill Destination:=Range(\"AD11:AD48\"), Type:=xlFillDefault",null,null,"    Selection.AutoFill Destination:=Range(\"AD11:AD48\"), Type:=xlFillDefault","    Selection.AutoFill Destination:=Range(\"AD11:AD48\"), Type:=xlFillDefault","    Selection.AutoFill Destination:=Range(\"AD11:AD48\"), Type:=xlFillDefault","    Selection.AutoFill Destination:=Range(\"AD11:AD48\"), Type:=xlFillDefault",null,"    Selection.AutoFill Destination:=Range(\"AD11:AD48\"), Type:=xlFillDefault","    Selection.AutoFill Destination:=Range(\"AD11:AD48\"), Type:=xlFillDefault","    Selection.AutoFill Destination:=Range(\"AD11:AD48\"), Type:=xlFillDefault","    Selection.AutoFill Destination:=Range(\"AD11:AD48\"), Type:=xlFillDefault",null,null,"    Selection.AutoFill Destination:=Range(\"AD11:AD48\"), Type:=xlFillDefault","    Selection.AutoFill Destination:=Range(\"AD11:AD48\"), Type:=xlFillDefault","    Selection.AutoFill Destination:=Range(\"AD11:AD48\"), Type:=xlFillDefault"]
[null,null,null,null,null,null,null,null,null,null,null,null,null,null,null,null,null,null,null,null,null,null,null,"    Range(\"AD11:AD48\").Select","    Range(\"AD11:AD48\").Select","    Range(\"AD11:AD48\").Select",null,null,"    Range(\"AD11:AD48\").Select","    Range(\"AD11:AD48\").Select","    Range(\"AD11:AD48\").Select","    Range(\"AD11:AD48\").Select",null,"    Range(\"AD11:AD48\").Select","    Range(\"AD11:AD48\").Select","    Range(\"AD11:AD48\").Select","    Range(\"AD11:AD48\").Select",null,null,"    Range(\"AD11:AD48\").Select","    Range(\"AD11:AD48\").Select","    Range(\"AD11:AD48\").Select"]
[null,null,null,null,null,null,null,null,null,null,null,null,null,null,null,null,null,null,null,null,null,null,null,"    ActiveWindow.ScrollRow = 32","    ActiveWindow.ScrollRow = 32","    ActiveWindow.ScrollRow = 32",null,null,"    ActiveWindow.ScrollRow = 32","    ActiveWindow.ScrollRow = 32","    ActiveWindow.ScrollRow = 32","    ActiveWindow.ScrollRow = 32",null,"    ActiveWindow.ScrollRow = 32","    ActiveWindow.ScrollRow = 32","    ActiveWindow.ScrollRow = 32","    ActiveWindow.ScrollRow = 32",null,null,"    ActiveWindow.ScrollRow = 32","    ActiveWindow.ScrollRow = 32","    ActiveWindow.ScrollRow = 32"]
[null,null,null,null,null,null,null,null,null,null,null,null,null,null,null,null,null,null,null,null,null,null,null,"    ActiveWindow.ScrollRow = 30","    ActiveWindow.ScrollRow = 30","    ActiveWindow.ScrollRow = 30",null,null,"    ActiveWindow.ScrollRow = 30","    ActiveWindow.ScrollRow = 30","    ActiveWindow.ScrollRow = 30","    ActiveWindow.ScrollRow = 30",null,"    ActiveWindow.ScrollRow = 30","    ActiveWindow.ScrollRow = 30","    ActiveWindow.ScrollRow = 30","    ActiveWindow.ScrollRow = 30",null,null,"    ActiveWindow.ScrollRow = 30","    ActiveWindow.ScrollRow = 30","    ActiveWindow.ScrollRow = 30"]
[null,null,null,null,null,null,null,null,null,null,null,null,null,null,null,null,null,null,null,null,null,null,null,"    ActiveWindow.ScrollRow = 26","    ActiveWindow.ScrollRow = 26","    ActiveWindow.ScrollRow = 26",null,null,"    ActiveWindow.ScrollRow = 26","    ActiveWindow.ScrollRow = 26","    ActiveWindow.ScrollRow = 26","    ActiveWindow.ScrollRow = 26",null,"    ActiveWindow.ScrollRow = 26","    ActiveWindow.ScrollRow = 26","    ActiveWindow.ScrollRow = 26","    ActiveWindow.ScrollRow = 26",null,null,"    ActiveWindow.ScrollRow = 26","    ActiveWindow.ScrollRow = 26","    ActiveWindow.ScrollRow = 26"]
[null,null,null,null,null,null,null,null,null,null,null,null,null,null,null,null,null,null,null,null,null,null,null,"    ActiveWindow.ScrollRow = 22","    ActiveWindow.ScrollRow = 22","    ActiveWindow.ScrollRow = 22",null,null,"    ActiveWindow.ScrollRow = 22","    ActiveWindow.ScrollRow = 22","    ActiveWindow.ScrollRow = 22","    ActiveWindow.ScrollRow = 22",null,"    ActiveWindow.ScrollRow = 22","    ActiveWindow.ScrollRow = 22","    ActiveWindow.ScrollRow = 22","    ActiveWindow.ScrollRow = 22",null,null,"    ActiveWindow.ScrollRow = 22","    ActiveWindow.ScrollRow = 22","    ActiveWindow.ScrollRow = 22"]
[null,null,null,null,null,null,null,null,null,null,null,null,null,null,null,null,null,null,null,null,null,null,null,"    ActiveWindow.ScrollRow = 21","    ActiveWindow.ScrollRow = 21","    ActiveWindow.ScrollRow = 21",null,null,"    ActiveWindow.ScrollRow = 21","    ActiveWindow.ScrollRow = 21","    ActiveWindow.ScrollRow = 21","    ActiveWindow.ScrollRow = 21",null,"    ActiveWindow.ScrollRow = 21","    ActiveWindow.ScrollRow = 21","    ActiveWindow.ScrollRow = 21","    ActiveWindow.ScrollRow = 21",null,null,"    ActiveWindow.ScrollRow = 21","    ActiveWindow.ScrollRow = 21","    ActiveWindow.ScrollRow = 21"]
[null,null,null,null,null,null,null,null,null,null,null,null,null,null,null,null,null,null,null,null,null,null,null,"    ActiveWindow.ScrollRow = 19","    ActiveWindow.ScrollRow = 19","    ActiveWindow.ScrollRow = 19",null,null,"    ActiveWindow.ScrollRow = 19","    ActiveWindow.ScrollRow = 19","    ActiveWindow.ScrollRow = 19","    ActiveWindow.ScrollRow = 19",null,"    ActiveWindow.ScrollRow = 19","    ActiveWindow.ScrollRow = 19","    ActiveWindow.ScrollRow = 19","    ActiveWindow.ScrollRow = 19",null,null,"    ActiveWindow.ScrollRow = 19","    ActiveWindow.ScrollRow = 19","    ActiveWindow.ScrollRow = 19"]
[null,null,null,null,null,null,null,null,null,null,null,null,null,null,null,null,null,null,null,null,null,null,null,"    ActiveWindow.ScrollRow = 18","    ActiveWindow.ScrollRow = 18","    ActiveWindow.ScrollRow = 18",null,null,"    ActiveWindow.ScrollRow = 18","    ActiveWindow.ScrollRow = 18","    ActiveWindow.ScrollRow = 18","    ActiveWindow.ScrollRow = 18",null,"    ActiveWindow.ScrollRow = 18","    ActiveWindow.ScrollRow = 18","    ActiveWindow.ScrollRow = 18","    ActiveWindow.ScrollRow = 18",null,null,"    ActiveWindow.ScrollRow = 18","    ActiveWindow.ScrollRow = 18","    ActiveWindow.ScrollRow = 18"]
[null,null,null,null,null,null,null,null,null,null,null,null,null,null,null,null,null,null,null,null,null,null,null,"    ActiveWindow.ScrollRow = 17","    ActiveWindow.ScrollRow = 17","    ActiveWindow.ScrollRow = 17",null,null,"    ActiveWindow.ScrollRow = 17","    ActiveWindow.ScrollRow = 17","    ActiveWindow.ScrollRow = 17","    ActiveWindow.ScrollRow = 17",null,"    ActiveWindow.ScrollRow = 17","    ActiveWindow.ScrollRow = 17","    ActiveWindow.ScrollRow = 17","    ActiveWindow.ScrollRow = 17",null,null,"    ActiveWindow.ScrollRow = 17","    ActiveWindow.ScrollRow = 17","    ActiveWindow.ScrollRow = 17"]
[null,null,null,null,null,null,null,null,null,null,null,null,null,null,null,null,null,null,null,null,null,null,null,"    ActiveWindow.ScrollRow = 13","    ActiveWindow.ScrollRow = 13","    ActiveWindow.ScrollRow = 13",null,null,"    ActiveWindow.ScrollRow = 13","    ActiveWindow.ScrollRow = 13","    ActiveWindow.ScrollRow = 13","    ActiveWindow.ScrollRow = 13",null,"    ActiveWindow.ScrollRow = 13","    ActiveWindow.ScrollRow = 13","    ActiveWindow.ScrollRow = 13","    ActiveWindow.ScrollRow = 13",null,null,"    ActiveWindow.ScrollRow = 13","    ActiveWindow.ScrollRow = 13","    ActiveWindow.ScrollRow = 13"]
[null,null,null,null,null,null,null,null,null,null,null,null,null,null,null,null,null,null,null,null,null,null,null,"    ActiveWindow.ScrollRow = 9","    ActiveWindow.ScrollRow = 9","    ActiveWindow.ScrollRow = 9",null,null,"    ActiveWindow.ScrollRow = 9","    ActiveWindow.ScrollRow = 9","    ActiveWindow.ScrollRow = 9","    ActiveWindow.ScrollRow = 9",null,"    ActiveWindow.ScrollRow = 9","    ActiveWindow.ScrollRow = 9","    ActiveWindow.ScrollRow = 9","    ActiveWindow.ScrollRow = 9",null,null,"    ActiveWindow.ScrollRow = 9","    ActiveWindow.ScrollRow = 9","    ActiveWindow.ScrollRow = 9"]
[null,null,null,null,null,null,null,null,null,null,null,null,null,null,null,null,null,null,null,null,null,null,null,"    Range(\"AC11\").Select","    Range(\"AC11\").Select","    Range(\"AC11\").Select",null,null,"    Range(\"AC11\").Select","    Range(\"AC11\").Select","    Range(\"AC11\").Select","    Range(\"AC11\").Select",null,"    Range(\"AC11\").Select","    Range(\"AC11\").Select","    Range(\"AC11\").Select","    Range(\"AC11\").Select",null,null,"    Range(\"AC11\").Select","    Range(\"AC11\").Select","    Range(\"AC11\").Select"]
[null,null,null,null,null,null,null,null,null,null,null,null,null,null,null,null,null,null,null,null,null,null,null,"    ActiveSheet.PasteSpecial Format:=\"Texte Unicode\", Link:=False, _","    ActiveSheet.PasteSpecial Format:=\"Texte Unicode\", Link:=False, _","    ActiveSheet.PasteSpecial Format:=\"Texte Unicode\", Link:=False, _",null,null,"    ActiveSheet.PasteSpecial Format:=\"Texte Unicode\", Link:=False, _","    ActiveSheet.PasteSpecial Format:=\"Texte Unicode\", Link:=False, _","    ActiveSheet.PasteSpecial Format:=\"Texte Unicode\", Link:=False, _","    ActiveSheet.PasteSpecial Format:=\"Texte Unicode\", Link:=False, _",null,"    ActiveSheet.PasteSpecial Format:=\"Texte Unicode\", Link:=False, _","    ActiveSheet.PasteSpecial Format:=\"Texte Unicode\", Link:=False, _","    ActiveSheet.PasteSpecial Format:=\"Texte Unicode\", Link:=False, _","    ActiveSheet.PasteSpecial Format:=\"Texte Unicode\", Link:=False, _",null,null,"    ActiveSheet.PasteSpecial Format:=\"Texte Unicode\", Link:=False, _","    ActiveSheet.PasteSpecial Format:=\"Texte Unicode\", Link:=False, _","    ActiveSheet.PasteSpecial Format:=\"Texte Unicode\", Link:=False, _"]
[null,null,null,null,null,null,null,null,null,null,null,null,null,null,null,null,null,null,null,null,null,null,null,"        DisplayAsIcon:=False, NoHTMLFormatting:=True","        DisplayAsIcon:=False, NoHTMLFormatting:=True","        DisplayAsIcon:=False, NoHTMLFormatting:=True",null,null,"        DisplayAsIcon:=False, NoHTMLFormatting:=True","        DisplayAsIcon:=False, NoHTMLFormatting:=True","        DisplayAsIcon:=False, NoHTMLFormatting:=True","        DisplayAsIcon:=False, NoHTMLFormatting:=True",null,"        DisplayAsIcon:=False, NoHTMLFormatting:=True","        DisplayAsIcon:=False, NoHTMLFormatting:=True","        DisplayAsIcon:=False, NoHTMLFormatting:=True","        DisplayAsIcon:=False, NoHTMLFormatting:=True",null,null,"        DisplayAsIcon:=False, NoHTMLFormatting:=True","        DisplayAsIcon:=False, NoHTMLFormatting:=True","        DisplayAsIcon:=False, NoHTMLFormatting:=True"]
[null,null,null,null,null,null,null,null,null,null,null,null,null,null,null,null,null,null,null,null,null,null,null,"    ActiveWindow.SmallScroll ToRight:=-10","    ActiveWindow.SmallScroll ToRight:=-10","    ActiveWindow.SmallScroll ToRight:=-10",null,null,"    ActiveWindow.SmallScroll ToRight:=-10","    ActiveWindow.SmallScroll ToRight:=-10","    ActiveWindow.SmallScroll ToRight:=-10","    ActiveWindow.SmallScroll ToRight:=-10",null,"    ActiveWindow.SmallScroll ToRight:=-10","    ActiveWindow.SmallScroll ToRight:=-10","    ActiveWindow.SmallScroll ToRight:=-10","    ActiveWindow.SmallScroll ToRight:=-10",null,null,"    ActiveWindow.SmallScroll ToRight:=-10","    ActiveWindow.SmallScroll ToRight:=-10","    ActiveWindow.SmallScroll ToRight:=-10"]
[null,null,null,null,null,null,null,null,null,null,null,null,null,null,null,null,null,null,null,null,null,null,null,"    ActiveCell.FormulaR1C1 = \"=IF(R[-2]C[-25]=\"\"x\"\",R[-2]C[-9],\"\"\"\")\"","    ActiveCell.FormulaR1C1 = \"=IF(R[-2]C[-25]=\"\"x\"\",R[-2]C[-9],\"\"\"\")\"","    ActiveCell.FormulaR1C1 = \"=IF(R[-2]C[-25]=\"\"x\"\",R[-2]C[-9],\"\"\"\")\"",null,null,"    ActiveCell.FormulaR1C1 = \"=IF(R[-2]C[-25]=\"\"x\"\",R[-2]C[-9],\"\"\"\")\"","    ActiveCell.FormulaR1C1 = \"=IF(R[-2]C[-25]=\"\"x\"\",R[-2]C[-9],\"\"\"\")\"","    ActiveCell.FormulaR1C1 = \"=IF(R[-2]C[-25]=\"\"x\"\",R[-2]C[-9],\"\"\"\")\"","    ActiveCell.FormulaR1C1 = \"=IF(R[-2]C[-25]=\"\"x\"\",R[-2]C[-9],\"\"\"\")\"",null,"    ActiveCell.FormulaR1C1 = \"=IF(R[-2]C[-25]=\"\"x\"\",R[-2]C[-9],\"\"\"\")\"","    ActiveCell.FormulaR1C1 = \"=IF(R[-2]C[-25]=\"\"x\"\",R[-2]C[-9],\"\"\"\")\"","    ActiveCell.FormulaR1C1 = \"=IF(R[-2]C[-25]=\"\"x\"\",R[-2]C[-9],\"\"\"\")\"","    ActiveCell.FormulaR1C1 = \"=IF(R[-2]C[-25]=\"\"x\"\",R[-2]C[-9],\"\"\"\")\"",null,null,"    ActiveCell.FormulaR1C1 = \"=IF(R[-2]C[-25]=\"\"x\"\",R[-2]C[-9],\"\"\"\")\"","    ActiveCell.FormulaR1C1 = \"=IF(R[-2]C[-25]=\"\"x\"\",R[-2]C[-9],\"\"\"\")\"","    ActiveCell.FormulaR1C1 = \"=IF(R[-2]C[-25]=\"\"x\"\",R[-2]C[-9],\"\"\"\")\""]
[null,null,null,null,null,null,null,null,null,null,null,null,null,null,null,null,null,null,null,null,null,null,null,"    Range(\"AC11\").Select","    Range(\"AC11\").Select","    Range(\"AC11\").Select",null,null,"    Range(\"AC11\").Select","    Range(\"AC11\").Select","    Range(\"AC11\").Select","    Range(\"AC11\").Select",null,"    Range(\"AC11\").Select","    Range(\"AC11\").Select","    Range(\"AC11\").Select","    Range(\"AC11\").Select",null,null,"    Range(\"AC11\").Select","    Range(\"AC11\").Select","    Range(\"AC11\").Select"]
[null,null,null,null,null,null,null,null,null,null,null,null,null,null,null,null,null,null,null,null,null,null,null,"    Selection.AutoFill Destination:=Range(\"AC11:AC48\"), Type:=xlFillDefault","    Selection.AutoFill Destination:=Range(\"AC11:AC48\"), Type:=xlFillDefault","    Selection.AutoFill Destination:=Range(\"AC11:AC48\"), Type:=xlFillDefault",null,null,"    Selection.AutoFill Destination:=Range(\"AC11:AC48\"), Type:=xlFillDefault","    Selection.AutoFill Destination:=Range(\"AC11:AC48\"), Type:=xlFillDefault","    Selection.AutoFill Destination:=Range(\"AC11:AC48\"), Type:=xlFillDefault","    Selection.AutoFill Destination:=Range(\"AC11:AC48\"), Type:=xlFillDefault",null,"    Selection.AutoFill Destination:=Range(\"AC11:AC48\"), Type:=xlFillDefault","    Selection.AutoFill Destination:=Range(\"AC11:AC48\"), Type:=xlFillDefault","    Selection.AutoFill Destination:=Range(\"AC11:AC48\"), Type:=xlFillDefault","    Selection.AutoFill Destination:=Range(\"AC11:AC48\"), Type:=xlFillDefault",null,null,"    Selection.AutoFill Destination:=Range(\"AC11:AC48\"), Type:=xlFillDefault","    Selection.AutoFill Destination:=Range(\"AC11:AC48\"), Type:=xlFillDefault","    Selection.AutoFill Destination:=Range(\"AC11:AC48\"), Type:=xlFillDefault"]
[null,null,null,null,null,null,null,null,null,null,null,null,null,null,null,null,null,null,null,null,null,null,null,"    Range(\"AC11:AC48\").Select","    Range(\"AC11:AC48\").Select","    Range(\"AC11:AC48\").Select",null,null,"    Range(\"AC11:AC48\").Select","    Range(\"AC11:AC48\").Select","    Range(\"AC11:AC48\").Select","    Range(\"AC11:AC48\").Select",null,"    Range(\"AC11:AC48\").Select","    Range(\"AC11:AC48\").Select","    Range(\"AC11:AC48\").Select","    Range(\"AC11:AC48\").Select",null,null,"    Range(\"AC11:AC48\").Select","    Range(\"AC11:AC48\").Select","    Range(\"AC11:AC48\").Select"]
[null,null,null,null,null,null,null,null,null,null,null,null,null,null,null,null,null,null,null,null,null,null,null,"End Sub","End Sub","End Sub",null,null,"End Sub","End Sub","End Sub","End Sub",null,"End Sub","End Sub","End Sub","End Sub",null,null,"End Sub","End Sub","End Sub"]
[null,null,null,null,null,null,null,null,null,null,null,null,null,null,null,null,null,null,null,null,null,null,null,"Sub FITAWR_TAMKINE()","Sub FITAWR_TAMKINE()","Sub FITAWR_TAMKINE()",null,null,"Sub FITAWR_TAMKINE()","Sub FITAWR_TAMKINE()","Sub FITAWR_TAMKINE()","Sub FITAWR_TAMKINE()",null,"Sub FITAWR_TAMKINE()","Sub FITAWR_TAMKINE()","Sub FITAWR_TAMKINE()","Sub FITAWR_TAMKINE()",null,null,"Sub FITAWR_TAMKINE()","Sub FITAWR_TAMKINE()","Sub FITAWR_TAMKINE()"]
[null,null,null,null,null,null,null,null,null,null,null,null,null,null,null,null,null,null,null,null,null,null,null,"'","'","'",null,null,"'","'","'","'",null,"'","'","'","'",null,null,"'","'","'"]
[null,null,null,null,null,null,null,null,null,null,null,null,null,null,null,null,null,null,null,null,null,null,null,"' FITAWR_TAMKINE Macro","' FITAWR_TAMKINE Macro","' FITAWR_TAMKINE Macro",null,null,"' FITAWR_TAMKINE Macro","' FITAWR_TAMKINE Macro","' FITAWR_TAMKINE Macro","' FITAWR_TAMKINE Macro",null,"' FITAWR_TAMKINE Macro","' FITAWR_TAMKINE Macro","' FITAWR_TAMKINE Macro","' FITAWR_TAMKINE Macro",null,null,"' FITAWR_TAMKINE Macro","' FITAWR_TAMKINE Macro","' FITAWR_TAMKINE Macro"]
[null,null,null,null,null,null,null,null,null,null,null,null,null,null,null,null,null,null,null,null,null,null,null,"'","'","'",null,null,"'","'","'","'",null,"'","'","'","'",null,null,"'","'","'"]
[]
[null,null,null,null,null,null,null,null,null,null,null,null,null,null,null,null,null,null,null,null,null,null,null,"'","'","'",null,null,"'","'","'","'",null,"'","'","'","'",null,null,"'","'","'"]
[null,null,null,null,null,null,null,null,null,null,null,null,null,null,null,null,null,null,null,null,null,null,null,"    Range(\"AK11\").Select","    Range(\"AK11\").Select","    Range(\"AK11\").Select",null,null,"    Range(\"AK11\").Select","    Range(\"AK11\").Select","    Range(\"AK11\").Select","    Range(\"AK11\").Select",null,"    Range(\"AK11\").Select","    Range(\"AK11\").Select","    Range(\"AK11\").Select","    Range(\"AK11\").Select",null,null,"    Range(\"AK11\").Select","    Range(\"AK11\").Select","    Range(\"AK11\").Select"]
[null,null,null,null,null,null,null,null,null,null,null,null,null,null,null,null,null,null,null,null,null,null,null,"    ActiveSheet.PasteSpecial Format:=\"Texte Unicode\", Link:=False, _","    ActiveSheet.PasteSpecial Format:=\"Texte Unicode\", Link:=False, _","    ActiveSheet.PasteSpecial Format:=\"Texte Unicode\", Link:=False, _",null,null,"    ActiveSheet.PasteSpecial Format:=\"Texte Unicode\", Link:=False, _","    ActiveSheet.PasteSpecial Format:=\"Texte Unicode\", Link:=False, _","    ActiveSheet.PasteSpecial Format:=\"Texte Unicode\", Link:=False, _","    ActiveSheet.PasteSpecial Format:=\"Texte Unicode\", Link:=False, _",null,"    ActiveSheet.PasteSpecial Format:=\"Texte Unicode\", Link:=False, _","    ActiveSheet.PasteSpecial Format:=\"Texte Unicode\", Link:=False, _","    ActiveSheet.PasteSpecial Format:=\"Texte Unicode\", Link:=False, _","    ActiveSheet.PasteSpecial Format:=\"Texte Unicode\", Link:=False, _",null,null,"    ActiveSheet.PasteSpecial Format:=\"Texte Unicode\", Link:=False, _","    ActiveSheet.PasteSpecial Format:=\"Texte Unicode\", Link:=False, _","    ActiveSheet.PasteSpecial Format:=\"Texte Unicode\", Link:=False, _"]
[null,null,null,null,null,null,null,null,null,null,null,null,null,null,null,null,null,null,null,null,null,null,null,"        DisplayAsIcon:=False, NoHTMLFormatting:=True","        DisplayAsIcon:=False, NoHTMLFormatting:=True","        DisplayAsIcon:=False, NoHTMLFormatting:=True",null,null,"        DisplayAsIcon:=False, NoHTMLFormatting:=True","        DisplayAsIcon:=False, NoHTMLFormatting:=True","        DisplayAsIcon:=False, NoHTMLFormatting:=True","        DisplayAsIcon:=False, NoHTMLFormatting:=True",null,"        DisplayAsIcon:=False, NoHTMLFormatting:=True","        DisplayAsIcon:=False, NoHTMLFormatting:=True","        DisplayAsIcon:=False, NoHTMLFormatting:=True","        DisplayAsIcon:=False, NoHTMLFormatting:=True",null,null,"        DisplayAsIcon:=False, NoHTMLFormatting:=True","        DisplayAsIcon:=False, NoHTMLFormatting:=True","        DisplayAsIcon:=False, NoHTMLFormatting:=True"]
[null,null,null,null,null,null,null,null,null,null,null,null,null,null,null,null,null,null,null,null,null,null,null,"    ActiveWindow.SmallScroll ToRight:=-14","    ActiveWindow.SmallScroll ToRight:=-14","    ActiveWindow.SmallScroll ToRight:=-14",null,null,"    ActiveWindow.SmallScroll ToRight:=-14","    ActiveWindow.SmallScroll ToRight:=-14","    ActiveWindow.SmallScroll ToRight:=-14","    ActiveWindow.SmallScroll ToRight:=-14",null,"    ActiveWindow.SmallScroll ToRight:=-14","    ActiveWindow.SmallScroll ToRight:=-14","    ActiveWindow.SmallScroll ToRight:=-14","    ActiveWindow.SmallScroll ToRight:=-14",null,null,"    ActiveWindow.SmallScroll ToRight:=-14","    ActiveWindow.SmallScroll ToRight:=-14","    ActiveWindow.SmallScroll ToRight:=-14"]
[null,null,null,null,null,null,null,null,null,null,null,null,null,null,null,null,null,null,null,null,null,null,null,"    ActiveCell.FormulaR1C1 = \"=IF(R[-2]C[-22]=\"\"x\"\",R[-2]C[-17],\"\"\"\")\"","    ActiveCell.FormulaR1C1 = \"=IF(R[-2]C[-22]=\"\"x\"\",R[-2]C[-17],\"\"\"\")\"","    ActiveCell.FormulaR1C1 = \"=IF(R[-2]C[-22]=\"\"x\"\",R[-2]C[-17],\"\"\"\")\"",null,null,"    ActiveCell.FormulaR1C1 = \"=IF(R[-2]C[-22]=\"\"x\"\",R[-2]C[-17],\"\"\"\")\"","    ActiveCell.FormulaR1C1 = \"=IF(R[-2]C[-22]=\"\"x\"\",R[-2]C[-17],\"\"\"\")\"","    ActiveCell.FormulaR1C1 = \"=IF(R[-2]C[-22]=\"\"x\"\",R[-2]C[-17],\"\"\"\")\"","    ActiveCell.FormulaR1C1 = \"=IF(R[-2]C[-22]=\"\"x\"\",R[-2]C[-17],\"\"\"\")\"",null,"    ActiveCell.FormulaR1C1 = \"=IF(R[-2]C[-22]=\"\"x\"\",R[-2]C[-17],\"\"\"\")\"","    ActiveCell.FormulaR1C1 = \"=IF(R[-2]C[-22]=\"\"x\"\",R[-2]C[-17],\"\"\"\")\"","    ActiveCell.FormulaR1C1 = \"=IF(R[-2]C[-22]=\"\"x\"\",R[-2]C[-17],\"\"\"\")\"","    ActiveCell.FormulaR1C1 = \"=IF(R[-2]C[-22]=\"\"x\"\",R[-2]C[-17],\"\"\"\")\"",null,null,"    ActiveCell.FormulaR1C1 = \"=IF(R[-2]C[-22]=\"\"x\"\",R[-2]C[-17],\"\"\"\")\"","    ActiveCell.FormulaR1C1 = \"=IF(R[-2]C[-22]=\"\"x\"\",R[-2]C[-17],\"\"\"\")\"","    ActiveCell.FormulaR1C1 = \"=IF(R[-2]C[-22]=\"\"x\"\",R[-2]C[-17],\"\"\"\")\""]
[null,null,null,null,null,null,null,null,null,null,null,null,null,null,null,null,null,null,null,null,null,null,null,"    Range(\"AK11\").Select","    Range(\"AK11\").Select","    Range(\"AK11\").Select",null,null,"    Range(\"AK11\").Select","    Range(\"AK11\").Select","    Range(\"AK11\").Select","    Range(\"AK11\").Select",null,"    Range(\"AK11\").Select","    Range(\"AK11\").Select","    Range(\"AK11\").Select","    Range(\"AK11\").Select",null,null,"    Range(\"AK11\").Select","    Range(\"AK11\").Select","    Range(\"AK11\").Select"]
[null,null,null,null,null,null,null,null,null,null,null,null,null,null,null,null,null,null,null,null,null,null,null,"    Selection.AutoFill Destination:=Range(\"AK11:AK48\"), Type:=xlFillDefault","    Selection.AutoFill Destination:=Range(\"AK11:AK48\"), Type:=xlFillDefault","    Selection.AutoFill Destination:=Range(\"AK11:AK48\"), Type:=xlFillDefault",null,null,"    Selection.AutoFill Destination:=Range(\"AK11:AK48\"), Type:=xlFillDefault","    Selection.AutoFill Destination:=Range(\"AK11:AK48\"), Type:=xlFillDefault","    Selection.AutoFill Destination:=Range(\"AK11:AK48\"), Type:=xlFillDefault","    Selection.AutoFill Destination:=Range(\"AK11:AK48\"), Type:=xlFillDefault",null,"    Selection.AutoFill Destination:=Range(\"AK11:AK48\"), Type:=xlFillDefault","    Selection.AutoFill Destination:=Range(\"AK11:AK48\"), Type:=xlFillDefault","    Selection.AutoFill Destination:=Range(\"AK11:AK48\"), Type:=xlFillDefault","    Selection.AutoFill Destination:=Range(\"AK11:AK48\"), Type:=xlFillDefault",null,null,"    Selection.AutoFill Destination:=Range(\"AK11:AK48\"), Type:=xlFillDefault","    Selection.AutoFill Destination:=Range(\"AK11:AK48\"), Type:=xlFillDefault","    Selection.AutoFill Destination:=Range(\"AK11:AK48\"), Type:=xlFillDefault"]
[null,null,null,null,null,null,null,null,null,null,null,null,null,null,null,null,null,null,null,null,null,null,null,"    Range(\"AK11:AK48\").Select","    Range(\"AK11:AK48\").Select","    Range(\"AK11:AK48\").Select",null,null,"    Range(\"AK11:AK48\").Select","    Range(\"AK11:AK48\").Select","    Range(\"AK11:AK48\").Select","    Range(\"AK11:AK48\").Select",null,"    Range(\"AK11:AK48\").Select","    Range(\"AK11:AK48\").Select","    Range(\"AK11:AK48\").Select","    Range(\"AK11:AK48\").Select",null,null,"    Range(\"AK11:AK48\").Select","    Range(\"AK11:AK48\").Select","    Range(\"AK11:AK48\").Select"]
[null,null,null,null,null,null,null,null,null,null,null,null,null,null,null,null,null,null,null,null,null,null,null,"    ActiveWindow.ScrollRow = 35","    ActiveWindow.ScrollRow = 35","    ActiveWindow.ScrollRow = 35",null,null,"    ActiveWindow.ScrollRow = 35","    ActiveWindow.ScrollRow = 35","    ActiveWindow.ScrollRow = 35","    ActiveWindow.ScrollRow = 35",null,"    ActiveWindow.ScrollRow = 35","    ActiveWindow.ScrollRow = 35","    ActiveWindow.ScrollRow = 35","    ActiveWindow.ScrollRow = 35",null,null,"    ActiveWindow.ScrollRow = 35","    ActiveWindow.ScrollRow = 35","    ActiveWindow.ScrollRow = 35"]
[null,null,null,null,null,null,null,null,null,null,null,null,null,null,null,null,null,null,null,null,null,null,null,"    ActiveWindow.ScrollRow = 30","    ActiveWindow.ScrollRow = 30","    ActiveWindow.ScrollRow = 30",null,null,"    ActiveWindow.ScrollRow = 30","    ActiveWindow.ScrollRow = 30","    ActiveWindow.ScrollRow = 30","    ActiveWindow.ScrollRow = 30",null,"    ActiveWindow.ScrollRow = 30","    ActiveWindow.ScrollRow = 30","    ActiveWindow.ScrollRow = 30","    ActiveWindow.ScrollRow = 30",null,null,"    ActiveWindow.ScrollRow = 30","    ActiveWindow.ScrollRow = 30","    ActiveWindow.ScrollRow = 30"]
[null,null,null,null,null,null,null,null,null,null,null,null,null,null,null,null,null,null,null,null,null,null,null,"    ActiveWindow.ScrollRow = 23","    ActiveWindow.ScrollRow = 23","    ActiveWindow.ScrollRow = 23",null,null,"    ActiveWindow.ScrollRow = 23","    ActiveWindow.ScrollRow = 23","    ActiveWindow.ScrollRow = 23","    ActiveWindow.ScrollRow = 23",null,"    ActiveWindow.ScrollRow = 23","    ActiveWindow.ScrollRow = 23","    ActiveWindow.ScrollRow = 23","    ActiveWindow.ScrollRow = 23",null,null,"    ActiveWindow.ScrollRow = 23","    ActiveWindow.ScrollRow = 23","    ActiveWindow.ScrollRow = 23"]
[null,null,null,null,null,null,null,null,null,null,null,null,null,null,null,null,null,null,null,null,null,null,null,"    ActiveWindow.ScrollRow = 20","    ActiveWindow.ScrollRow = 20","    ActiveWindow.ScrollRow = 20",null,null,"    ActiveWindow.ScrollRow = 20","    ActiveWindow.ScrollRow = 20","    ActiveWindow.ScrollRow = 20","    ActiveWindow.ScrollRow = 20",null,"    ActiveWindow.ScrollRow = 20","    ActiveWindow.ScrollRow = 20","    ActiveWindow.ScrollRow = 20","    ActiveWindow.ScrollRow = 20",null,null,"    ActiveWindow.ScrollRow = 20","    ActiveWindow.ScrollRow = 20","    ActiveWindow.ScrollRow = 20"]
[null,null,null,null,null,null,null,null,null,null,null,null,null,null,null,null,null,null,null,null,null,null,null,"    ActiveWindow.ScrollRow = 17","    ActiveWindow.ScrollRow = 17","    ActiveWindow.ScrollRow = 17",null,null,"    ActiveWindow.ScrollRow = 17","    ActiveWindow.ScrollRow = 17","    ActiveWindow.ScrollRow = 17","    ActiveWindow.ScrollRow = 17",null,"    ActiveWindow.ScrollRow = 17","    ActiveWindow.ScrollRow = 17","    ActiveWindow.ScrollRow = 17","    ActiveWindow.ScrollRow = 17",null,null,"    ActiveWindow.ScrollRow = 17","    ActiveWindow.ScrollRow = 17","    ActiveWindow.ScrollRow = 17"]
[null,null,null,null,null,null,null,null,null,null,null,null,null,null,null,null,null,null,null,null,null,null,null,"    ActiveWindow.ScrollRow = 16","    ActiveWindow.ScrollRow = 16","    ActiveWindow.ScrollRow = 16",null,null,"    ActiveWindow.ScrollRow = 16","    ActiveWindow.ScrollRow = 16","    ActiveWindow.ScrollRow = 16","    ActiveWindow.ScrollRow = 16",null,"    ActiveWindow.ScrollRow = 16","    ActiveWindow.ScrollRow = 16","    ActiveWindow.ScrollRow = 16","    ActiveWindow.ScrollRow = 16",null,null,"    ActiveWindow.ScrollRow = 16","    ActiveWindow.ScrollRow = 16","    ActiveWindow.ScrollRow = 16"]
[null,null,null,null,null,null,null,null,null,null,null,null,null,null,null,null,null,null,null,null,null,null,null,"    ActiveWindow.ScrollRow = 10","    ActiveWindow.ScrollRow = 10","    ActiveWindow.ScrollRow = 10",null,null,"    ActiveWindow.ScrollRow = 10","    ActiveWindow.ScrollRow = 10","    ActiveWindow.ScrollRow = 10","    ActiveWindow.ScrollRow = 10",null,"    ActiveWindow.ScrollRow = 10","    ActiveWindow.ScrollRow = 10","    ActiveWindow.ScrollRow = 10","    ActiveWindow.ScrollRow = 10",null,null,"    ActiveWindow.ScrollRow = 10","    ActiveWindow.ScrollRow = 10","    ActiveWindow.ScrollRow = 10"]
[null,null,null,null,null,null,null,null,null,null,null,null,null,null,null,null,null,null,null,null,null,null,null,"    ActiveWindow.ScrollRow = 9","    ActiveWindow.ScrollRow = 9","    ActiveWindow.ScrollRow = 9",null,null,"    ActiveWindow.ScrollRow = 9","    ActiveWindow.ScrollRow = 9","    ActiveWindow.ScrollRow = 9","    ActiveWindow.ScrollRow = 9",null,"    ActiveWindow.ScrollRow = 9","    ActiveWindow.ScrollRow = 9","    ActiveWindow.ScrollRow = 9","    ActiveWindow.ScrollRow = 9",null,null,"    ActiveWindow.ScrollRow = 9","    ActiveWindow.ScrollRow = 9","    ActiveWindow.ScrollRow = 9"]
[null,null,null,null,null,null,null,null,null,null,null,null,null,null,null,null,null,null,null,null,null,null,null,"    Range(\"AJ11\").Select","    Range(\"AJ11\").Select","    Range(\"AJ11\").Select",null,null,"    Range(\"AJ11\").Select","    Range(\"AJ11\").Select","    Range(\"AJ11\").Select","    Range(\"AJ11\").Select",null,"    Range(\"AJ11\").Select","    Range(\"AJ11\").Select","    Range(\"AJ11\").Select","    Range(\"AJ11\").Select",null,null,"    Range(\"AJ11\").Select","    Range(\"AJ11\").Select","    Range(\"AJ11\").Select"]
[null,null,null,null,null,null,null,null,null,null,null,null,null,null,null,null,null,null,null,null,null,null,null,"    ActiveSheet.PasteSpecial Format:=\"Texte Unicode\", Link:=False, _","    ActiveSheet.PasteSpecial Format:=\"Texte Unicode\", Link:=False, _","    ActiveSheet.PasteSpecial Format:=\"Texte Unicode\", Link:=False, _",null,null,"    ActiveSheet.PasteSpecial Format:=\"Texte Unicode\", Link:=False, _","    ActiveSheet.PasteSpecial Format:=\"Texte Unicode\", Link:=False, _","    ActiveSheet.PasteSpecial Format:=\"Texte Unicode\", Link:=False, _","    ActiveSheet.PasteSpecial Format:=\"Texte Unicode\", Link:=False, _",null,"    ActiveSheet.PasteSpecial Format:=\"Texte Unicode\", Link:=False, _","    ActiveSheet.PasteSpecial Format:=\"Texte Unicode\", Link:=False, _","    ActiveSheet.PasteSpecial Format:=\"Texte Unicode\", Link:=False, _","    ActiveSheet.PasteSpecial Format:=\"Texte Unicode\", Link:=False, _",null,null,"    ActiveSheet.PasteSpecial Format:=\"Texte Unicode\", Link:=False, _","    ActiveSheet.PasteSpecial Format:=\"Texte Unicode\", Link:=False, _","    ActiveSheet.PasteSpecial Format:=\"Texte Unicode\", Link:=False, _"]
[null,null,null,null,null,null,null,null,null,null,null,null,null,null,null,null,null,null,null,null,null,null,null,"        DisplayAsIcon:=False, NoHTMLFormatting:=True","        DisplayAsIcon:=False, NoHTMLFormatting:=True","        DisplayAsIcon:=False, NoHTMLFormatting:=True",null,null,"        DisplayAsIcon:=False, NoHTMLFormatting:=True","        DisplayAsIcon:=False, NoHTMLFormatting:=True","        DisplayAsIcon:=False, NoHTMLFormatting:=True","        DisplayAsIcon:=False, NoHTMLFormatting:=True",null,"        DisplayAsIcon:=False, NoHTMLFormatting:=True","        DisplayAsIcon:=False, NoHTMLFormatting:=True","        DisplayAsIcon:=False, NoHTMLFormatting:=True","        DisplayAsIcon:=False, NoHTMLFormatting:=True",null,null,"        DisplayAsIcon:=False, NoHTMLFormatting:=True","        DisplayAsIcon:=False, NoHTMLFormatting:=True","        DisplayAsIcon:=False, NoHTMLFormatting:=True"]
[null,null,null,null,null,null,null,null,null,null,null,null,null,null,null,null,null,null,null,null,null,null,null,"    ActiveCell.FormulaR1C1 = \"=IF(R[-2]C[-25]=\"\"x\"\",R[-2]C[-16],\"\"\"\")\"","    ActiveCell.FormulaR1C1 = \"=IF(R[-2]C[-25]=\"\"x\"\",R[-2]C[-16],\"\"\"\")\"","    ActiveCell.FormulaR1C1 = \"=IF(R[-2]C[-25]=\"\"x\"\",R[-2]C[-16],\"\"\"\")\"",null,null,"    ActiveCell.FormulaR1C1 = \"=IF(R[-2]C[-25]=\"\"x\"\",R[-2]C[-16],\"\"\"\")\"","    ActiveCell.FormulaR1C1 = \"=IF(R[-2]C[-25]=\"\"x\"\",R[-2]C[-16],\"\"\"\")\"","    ActiveCell.FormulaR1C1 = \"=IF(R[-2]C[-25]=\"\"x\"\",R[-2]C[-16],\"\"\"\")\"","    ActiveCell.FormulaR1C1 = \"=IF(R[-2]C[-25]=\"\"x\"\",R[-2]C[-16],\"\"\"\")\"",null,"    ActiveCell.FormulaR1C1 = \"=IF(R[-2]C[-25]=\"\"x\"\",R[-2]C[-16],\"\"\"\")\"","    ActiveCell.FormulaR1C1 = \"=IF(R[-2]C[-25]=\"\"x\"\",R[-2]C[-16],\"\"\"\")\"","    ActiveCell.FormulaR1C1 = \"=IF(R[-2]C[-25]=\"\"x\"\",R[-2]C[-16],\"\"\"\")\"","    ActiveCell.FormulaR1C1 = \"=IF(R[-2]C[-25]=\"\"x\"\",R[-2]C[-16],\"\"\"\")\"",null,null,"    ActiveCell.FormulaR1C1 = \"=IF(R[-2]C[-25]=\"\"x\"\",R[-2]C[-16],\"\"\"\")\"","    ActiveCell.FormulaR1C1 = \"=IF(R[-2]C[-25]=\"\"x\"\",R[-2]C[-16],\"\"\"\")\"","    ActiveCell.FormulaR1C1 = \"=IF(R[-2]C[-25]=\"\"x\"\",R[-2]C[-16],\"\"\"\")\""]
[null,null,null,null,null,null,null,null,null,null,null,null,null,null,null,null,null,null,null,null,null,null,null,"    Range(\"AJ11\").Select","    Range(\"AJ11\").Select","    Range(\"AJ11\").Select",null,null,"    Range(\"AJ11\").Select","    Range(\"AJ11\").Select","    Range(\"AJ11\").Select","    Range(\"AJ11\").Select",null,"    Range(\"AJ11\").Select","    Range(\"AJ11\").Select","    Range(\"AJ11\").Select","    Range(\"AJ11\").Select",null,null,"    Range(\"AJ11\").Select","    Range(\"AJ11\").Select","    Range(\"AJ11\").Select"]
[null,null,null,null,null,null,null,null,null,null,null,null,null,null,null,null,null,null,null,null,null,null,null,"    Selection.AutoFill Destination:=Range(\"AJ11:AJ48\"), Type:=xlFillDefault","    Selection.AutoFill Destination:=Range(\"AJ11:AJ48\"), Type:=xlFillDefault","    Selection.AutoFill Destination:=Range(\"AJ11:AJ48\"), Type:=xlFillDefault",null,null,"    Selection.AutoFill Destination:=Range(\"AJ11:AJ48\"), Type:=xlFillDefault","    Selection.AutoFill Destination:=Range(\"AJ11:AJ48\"), Type:=xlFillDefault","    Selection.AutoFill Destination:=Range(\"AJ11:AJ48\"), Type:=xlFillDefault","    Selection.AutoFill Destination:=Range(\"AJ11:AJ48\"), Type:=xlFillDefault",null,"    Selection.AutoFill Destination:=Range(\"AJ11:AJ48\"), Type:=xlFillDefault","    Selection.AutoFill Destination:=Range(\"AJ11:AJ48\"), Type:=xlFillDefault","    Selection.AutoFill Destination:=Range(\"AJ11:AJ48\"), Type:=xlFillDefault","    Selection.AutoFill Destination:=Range(\"AJ11:AJ48\"), Type:=xlFillDefault",null,null,"    Selection.AutoFill Destination:=Range(\"AJ11:AJ48\"), Type:=xlFillDefault","    Selection.AutoFill Destination:=Range(\"AJ11:AJ48\"), Type:=xlFillDefault","    Selection.AutoFill Destination:=Range(\"AJ11:AJ48\"), Type:=xlFillDefault"]
[null,null,null,null,null,null,null,null,null,null,null,null,null,null,null,null,null,null,null,null,null,null,null,"    Range(\"AJ11:AJ48\").Select","    Range(\"AJ11:AJ48\").Select","    Range(\"AJ11:AJ48\").Select",null,null,"    Range(\"AJ11:AJ48\").Select","    Range(\"AJ11:AJ48\").Select","    Range(\"AJ11:AJ48\").Select","    Range(\"AJ11:AJ48\").Select",null,"    Range(\"AJ11:AJ48\").Select","    Range(\"AJ11:AJ48\").Select","    Range(\"AJ11:AJ48\").Select","    Range(\"AJ11:AJ48\").Select",null,null,"    Range(\"AJ11:AJ48\").Select","    Range(\"AJ11:AJ48\").Select","    Range(\"AJ11:AJ48\").Select"]
[null,null,null,null,null,null,null,null,null,null,null,null,null,null,null,null,null,null,null,null,null,null,null,"    ActiveWindow.ScrollRow = 43","    ActiveWindow.ScrollRow = 43","    ActiveWindow.ScrollRow = 43",null,null,"    ActiveWindow.ScrollRow = 43","    ActiveWindow.ScrollRow = 43","    ActiveWindow.ScrollRow = 43","    ActiveWindow.ScrollRow = 43",null,"    ActiveWindow.ScrollRow = 43","    ActiveWindow.ScrollRow = 43","    ActiveWindow.ScrollRow = 43","    ActiveWindow.ScrollRow = 43",null,null,"    ActiveWindow.ScrollRow = 43","    ActiveWindow.ScrollRow = 43","    ActiveWindow.ScrollRow = 43"]
[null,null,null,null,null,null,null,null,null,null,null,null,null,null,null,null,null,null,null,null,null,null,null,"    ActiveWindow.ScrollRow = 40","    ActiveWindow.ScrollRow = 40","    ActiveWindow.ScrollRow = 40",null,null,"    ActiveWindow.ScrollRow = 40","    ActiveWindow.ScrollRow = 40","    ActiveWindow.ScrollRow = 40","    ActiveWindow.ScrollRow = 40",null,"    ActiveWindow.ScrollRow = 40","    ActiveWindow.ScrollRow = 40","    ActiveWindow.ScrollRow = 40","    ActiveWindow.ScrollRow = 40",null,null,"    ActiveWindow.ScrollRow = 40","    ActiveWindow.ScrollRow = 40","    ActiveWindow.ScrollRow = 40"]
[null,null,null,null,null,null,null,null,null,null,null,null,null,null,null,null,null,null,null,null,null,null,null,"    ActiveWindow.ScrollRow = 36","    ActiveWindow.ScrollRow = 36","    ActiveWindow.ScrollRow = 36",null,null,"    ActiveWindow.ScrollRow = 36","    ActiveWindow.ScrollRow = 36","    ActiveWindow.ScrollRow = 36","    ActiveWindow.ScrollRow = 36",null,"    ActiveWindow.ScrollRow = 36","    ActiveWindow.ScrollRow = 36","    ActiveWindow.ScrollRow = 36","    ActiveWindow.ScrollRow = 36",null,null,"    ActiveWindow.ScrollRow = 36","    ActiveWindow.ScrollRow = 36","    ActiveWindow.ScrollRow = 36"]
[null,null,null,null,null,null,null,null,null,null,null,null,null,null,null,null,null,null,null,null,null,null,null,"    ActiveWindow.ScrollRow = 33","    ActiveWindow.ScrollRow = 33","    ActiveWindow.ScrollRow = 33",null,null,"    ActiveWindow.ScrollRow = 33","    ActiveWindow.ScrollRow = 33","    ActiveWindow.ScrollRow = 33","    ActiveWindow.ScrollRow = 33",null,"    ActiveWindow.ScrollRow = 33","    ActiveWindow.ScrollRow = 33","    ActiveWindow.ScrollRow = 33","    ActiveWindow.ScrollRow = 33",null,null,"    ActiveWindow.ScrollRow = 33","    ActiveWindow.ScrollRow = 33","    ActiveWindow.ScrollRow = 33"]
[null,null,null,null,null,null,null,null,null,null,null,null,null,null,null,null,null,null,null,null,null,null,null,"    ActiveWindow.ScrollRow = 32","    ActiveWindow.ScrollRow = 32","    ActiveWindow.ScrollRow = 32",null,null,"    ActiveWindow.ScrollRow = 32","    ActiveWindow.ScrollRow = 32","    ActiveWindow.ScrollRow = 32","    ActiveWindow.ScrollRow = 32",null,"    ActiveWindow.ScrollRow = 32","    ActiveWindow.ScrollRow = 32","    ActiveWindow.ScrollRow = 32","    ActiveWindow.ScrollRow = 32",null,null,"    ActiveWindow.ScrollRow = 32","    ActiveWindow.ScrollRow = 32","    ActiveWindow.ScrollRow = 32"]
[null,null,null,null,null,null,null,null,null,null,null,null,null,null,null,null,null,null,null,null,null,null,null,"    ActiveWindow.ScrollRow = 29","    ActiveWindow.ScrollRow = 29","    ActiveWindow.ScrollRow = 29",null,null,"    ActiveWindow.ScrollRow = 29","    ActiveWindow.ScrollRow = 29","    ActiveWindow.ScrollRow = 29","    ActiveWindow.ScrollRow = 29",null,"    ActiveWindow.ScrollRow = 29","    ActiveWindow.ScrollRow = 29","    ActiveWindow.ScrollRow = 29","    ActiveWindow.ScrollRow = 29",null,null,"    ActiveWindow.ScrollRow = 29","    ActiveWindow.ScrollRow = 29","    ActiveWindow.ScrollRow = 29"]
[null,null,null,null,null,null,null,null,null,null,null,null,null,null,null,null,null,null,null,null,null,null,null,"    ActiveWindow.ScrollRow = 27","    ActiveWindow.ScrollRow = 27","    ActiveWindow.ScrollRow = 27",null,null,"    ActiveWindow.ScrollRow = 27","    ActiveWindow.ScrollRow = 27","    ActiveWindow.ScrollRow = 27","    ActiveWindow.ScrollRow = 27",null,"    ActiveWindow.ScrollRow = 27","    ActiveWindow.ScrollRow = 27","    ActiveWindow.ScrollRow = 27","    ActiveWindow.ScrollRow = 27",null,null,"    ActiveWindow.ScrollRow = 27","    ActiveWindow.ScrollRow = 27","    ActiveWindow.ScrollRow = 27"]
[null,null,null,null,null,null,null,null,null,null,null,null,null,null,null,null,null,null,null,null,null,null,null,"    ActiveWindow.ScrollRow = 24","    ActiveWindow.ScrollRow = 24","    ActiveWindow.ScrollRow = 24",null,null,"    ActiveWindow.ScrollRow = 24","    ActiveWindow.ScrollRow = 24","    ActiveWindow.ScrollRow = 24","    ActiveWindow.ScrollRow = 24",null,"    ActiveWindow.ScrollRow = 24","    ActiveWindow.ScrollRow = 24","    ActiveWindow.ScrollRow = 24","    ActiveWindow.ScrollRow = 24",null,null,"    ActiveWindow.ScrollRow = 24","    ActiveWindow.ScrollRow = 24","    ActiveWindow.ScrollRow = 24"]
[null,null,null,null,null,null,null,null,null,null,null,null,null,null,null,null,null,null,null,null,null,null,null,"    ActiveWindow.ScrollRow = 22","    ActiveWindow.ScrollRow = 22","    ActiveWindow.ScrollRow = 22",null,null,"    ActiveWindow.ScrollRow = 22","    ActiveWindow.ScrollRow = 22","    ActiveWindow.ScrollRow = 22","    ActiveWindow.ScrollRow = 22",null,"    ActiveWindow.ScrollRow = 22","    ActiveWindow.ScrollRow = 22","    ActiveWindow.ScrollRow = 22","    ActiveWindow.ScrollRow = 22",null,null,"    ActiveWindow.ScrollRow = 22","    ActiveWindow.ScrollRow = 22","    ActiveWindow.ScrollRow = 22"]
[null,null,null,null,null,null,null,null,null,null,null,null,null,null,null,null,null,null,null,null,null,null,null,"    ActiveWindow.ScrollRow = 21","    ActiveWindow.ScrollRow = 21","    ActiveWindow.ScrollRow = 21",null,null,"    ActiveWindow.ScrollRow = 21","    ActiveWindow.ScrollRow = 21","    ActiveWindow.ScrollRow = 21","    ActiveWindow.ScrollRow = 21",null,"    ActiveWindow.ScrollRow = 21","    ActiveWindow.ScrollRow = 21","    ActiveWindow.ScrollRow = 21","    ActiveWindow.ScrollRow = 21",null,null,"    ActiveWindow.ScrollRow = 21","    ActiveWindow.ScrollRow = 21","    ActiveWindow.ScrollRow = 21"]
[null,null,null,null,null,null,null,null,null,null,null,null,null,null,null,null,null,null,null,null,null,null,null,"    ActiveWindow.ScrollRow = 20","    ActiveWindow.ScrollRow = 20","    ActiveWindow.ScrollRow = 20",null,null,"    ActiveWindow.ScrollRow = 20","    ActiveWindow.ScrollRow = 20","    ActiveWindow.ScrollRow = 20","    ActiveWindow.ScrollRow = 20",null,"    ActiveWindow.ScrollRow = 20","    ActiveWindow.ScrollRow = 20","    ActiveWindow.ScrollRow = 20","    ActiveWindow.ScrollRow = 20",null,null,"    ActiveWindow.ScrollRow = 20","    ActiveWindow.ScrollRow = 20","    ActiveWindow.ScrollRow = 20"]
[null,null,null,null,null,null,null,null,null,null,null,null,null,null,null,null,null,null,null,null,null,null,null,"    ActiveWindow.ScrollRow = 19","    ActiveWindow.ScrollRow = 19","    ActiveWindow.ScrollRow = 19",null,null,"    ActiveWindow.ScrollRow = 19","    ActiveWindow.ScrollRow = 19","    ActiveWindow.ScrollRow = 19","    ActiveWindow.ScrollRow = 19",null,"    ActiveWindow.ScrollRow = 19","    ActiveWindow.ScrollRow = 19","    ActiveWindow.ScrollRow = 19","    ActiveWindow.ScrollRow = 19",null,null,"    ActiveWindow.ScrollRow = 19","    ActiveWindow.ScrollRow = 19","    ActiveWindow.ScrollRow = 19"]
[null,null,null,null,null,null,null,null,null,null,null,null,null,null,null,null,null,null,null,null,null,null,null,"    ActiveWindow.ScrollRow = 18","    ActiveWindow.ScrollRow = 18","    ActiveWindow.ScrollRow = 18",null,null,"    ActiveWindow.ScrollRow = 18","    ActiveWindow.ScrollRow = 18","    ActiveWindow.ScrollRow = 18","    ActiveWindow.ScrollRow = 18",null,"    ActiveWindow.ScrollRow = 18","    ActiveWindow.ScrollRow = 18","    ActiveWindow.ScrollRow = 18","    ActiveWindow.ScrollRow = 18",null,null,"    ActiveWindow.ScrollRow = 18","    ActiveWindow.ScrollRow = 18","    ActiveWindow.ScrollRow = 18"]
[null,null,null,null,null,null,null,null,null,null,null,null,null,null,null,null,null,null,null,null,null,null,null,"    ActiveWindow.ScrollRow = 17","    ActiveWindow.ScrollRow = 17","    ActiveWindow.ScrollRow = 17",null,null,"    ActiveWindow.ScrollRow = 17","    ActiveWindow.ScrollRow = 17","    ActiveWindow.ScrollRow = 17","    ActiveWindow.ScrollRow = 17",null,"    ActiveWindow.ScrollRow = 17","    ActiveWindow.ScrollRow = 17","    ActiveWindow.ScrollRow = 17","    ActiveWindow.ScrollRow = 17",null,null,"    ActiveWindow.ScrollRow = 17","    ActiveWindow.ScrollRow = 17","    ActiveWindow.ScrollRow = 17"]
[null,null,null,null,null,null,null,null,null,null,null,null,null,null,null,null,null,null,null,null,null,null,null,"    ActiveWindow.ScrollRow = 16","    ActiveWindow.ScrollRow = 16","    ActiveWindow.ScrollRow = 16",null,null,"    ActiveWindow.ScrollRow = 16","    ActiveWindow.ScrollRow = 16","    ActiveWindow.ScrollRow = 16","    ActiveWindow.ScrollRow = 16",null,"    ActiveWindow.ScrollRow = 16","    ActiveWindow.ScrollRow = 16","    ActiveWindow.ScrollRow = 16","    ActiveWindow.ScrollRow = 16",null,null,"    ActiveWindow.ScrollRow = 16","    ActiveWindow.ScrollRow = 16","    ActiveWindow.ScrollRow = 16"]
[null,null,null,null,null,null,null,null,null,null,null,null,null,null,null,null,null,null,null,null,null,null,null,"    ActiveWindow.ScrollRow = 15","    ActiveWindow.ScrollRow = 15","    ActiveWindow.ScrollRow = 15",null,null,"    ActiveWindow.ScrollRow = 15","    ActiveWindow.ScrollRow = 15","    ActiveWindow.ScrollRow = 15","    ActiveWindow.ScrollRow = 15",null,"    ActiveWindow.ScrollRow = 15","    ActiveWindow.ScrollRow = 15","    ActiveWindow.ScrollRow = 15","    ActiveWindow.ScrollRow = 15",null,null,"    ActiveWindow.ScrollRow = 15","    ActiveWindow.ScrollRow = 15","    ActiveWindow.ScrollRow = 15"]
[null,null,null,null,null,null,null,null,null,null,null,null,null,null,null,null,null,null,null,null,null,null,null,"    ActiveWindow.ScrollRow = 14","    ActiveWindow.ScrollRow = 14","    ActiveWindow.ScrollRow = 14",null,null,"    ActiveWindow.ScrollRow = 14","    ActiveWindow.ScrollRow = 14","    ActiveWindow.ScrollRow = 14","    ActiveWindow.ScrollRow = 14",null,"    ActiveWindow.ScrollRow = 14","    ActiveWindow.ScrollRow = 14","    ActiveWindow.ScrollRow = 14","    ActiveWindow.ScrollRow = 14",null,null,"    ActiveWindow.ScrollRow = 14","    ActiveWindow.ScrollRow = 14","    ActiveWindow.ScrollRow = 14"]
[null,null,null,null,null,null,null,null,null,null,null,null,null,null,null,null,null,null,null,null,null,null,null,"    ActiveWindow.ScrollRow = 13","    ActiveWindow.ScrollRow = 13","    ActiveWindow.ScrollRow = 13",null,null,"    ActiveWindow.ScrollRow = 13","    ActiveWindow.ScrollRow = 13","    ActiveWindow.ScrollRow = 13","    ActiveWindow.ScrollRow = 13",null,"    ActiveWindow.ScrollRow = 13","    ActiveWindow.ScrollRow = 13","    ActiveWindow.ScrollRow = 13","    ActiveWindow.ScrollRow = 13",null,null,"    ActiveWindow.ScrollRow = 13","    ActiveWindow.ScrollRow = 13","    ActiveWindow.ScrollRow = 13"]
[null,null,null,null,null,null,null,null,null,null,null,null,null,null,null,null,null,null,null,null,null,null,null,"    ActiveWindow.ScrollRow = 10","    ActiveWindow.ScrollRow = 10","    ActiveWindow.ScrollRow = 10",null,null,"    ActiveWindow.ScrollRow = 10","    ActiveWindow.ScrollRow = 10","    ActiveWindow.ScrollRow = 10","    ActiveWindow.ScrollRow = 10",null,"    ActiveWindow.ScrollRow = 10","    ActiveWindow.ScrollRow = 10","    ActiveWindow.ScrollRow = 10","    ActiveWindow.ScrollRow = 10",null,null,"    ActiveWindow.ScrollRow = 10","    ActiveWindow.ScrollRow = 10","    ActiveWindow.ScrollRow = 10"]
[null,null,null,null,null,null,null,null,null,null,null,null,null,null,null,null,null,null,null,null,null,null,null,"    ActiveWindow.ScrollRow = 9","    ActiveWindow.ScrollRow = 9","    ActiveWindow.ScrollRow = 9",null,null,"    ActiveWindow.ScrollRow = 9","    ActiveWindow.ScrollRow = 9","    ActiveWindow.ScrollRow = 9","    ActiveWindow.ScrollRow = 9",null,"    ActiveWindow.ScrollRow = 9","    ActiveWindow.ScrollRow = 9","    ActiveWindow.ScrollRow = 9","    ActiveWindow.ScrollRow = 9",null,null,"    ActiveWindow.ScrollRow = 9","    ActiveWindow.ScrollRow = 9","    ActiveWindow.ScrollRow = 9"]
[null,null,null,null,null,null,null,null,null,null,null,null,null,null,null,null,null,null,null,null,null,null,null,"    Range(\"AI11\").Select","    Range(\"AI11\").Select","    Range(\"AI11\").Select",null,null,"    Range(\"AI11\").Select","    Range(\"AI11\").Select","    Range(\"AI11\").Select","    Range(\"AI11\").Select",null,"    Range(\"AI11\").Select","    Range(\"AI11\").Select","    Range(\"AI11\").Select","    Range(\"AI11\").Select",null,null,"    Range(\"AI11\").Select","    Range(\"AI11\").Select","    Range(\"AI11\").Select"]
[null,null,null,null,null,null,null,null,null,null,null,null,null,null,null,null,null,null,null,null,null,null,null,"    ActiveSheet.PasteSpecial Format:=\"Texte Unicode\", Link:=False, _","    ActiveSheet.PasteSpecial Format:=\"Texte Unicode\", Link:=False, _","    ActiveSheet.PasteSpecial Format:=\"Texte Unicode\", Link:=False, _",null,null,"    ActiveSheet.PasteSpecial Format:=\"Texte Unicode\", Link:=False, _","    ActiveSheet.PasteSpecial Format:=\"Texte Unicode\", Link:=False, _","    ActiveSheet.PasteSpecial Format:=\"Texte Unicode\", Link:=False, _","    ActiveSheet.PasteSpecial Format:=\"Texte Unicode\", Link:=False, _",null,"    ActiveSheet.PasteSpecial Format:=\"Texte Unicode\", Link:=False, _","    ActiveSheet.PasteSpecial Format:=\"Texte Unicode\", Link:=False, _","    ActiveSheet.PasteSpecial Format:=\"Texte Unicode\", Link:=False, _","    ActiveSheet.PasteSpecial Format:=\"Texte Unicode\", Link:=False, _",null,null,"    ActiveSheet.PasteSpecial Format:=\"Texte Unicode\", Link:=False, _","    ActiveSheet.PasteSpecial Format:=\"Texte Unicode\", Link:=False, _","    ActiveSheet.PasteSpecial Format:=\"Texte Unicode\", Link:=False, _"]
[null,null,null,null,null,null,null,null,null,null,null,null,null,null,null,null,null,null,null,null,null,null,null,"        DisplayAsIcon:=False, NoHTMLFormatting:=True","        DisplayAsIcon:=False, NoHTMLFormatting:=True","        DisplayAsIcon:=False, NoHTMLFormatting:=True",null,null,"        DisplayAsIcon:=False, NoHTMLFormatting:=True","        DisplayAsIcon:=False, NoHTMLFormatting:=True","        DisplayAsIcon:=False, NoHTMLFormatting:=True","        DisplayAsIcon:=False, NoHTMLFormatting:=True",null,"        DisplayAsIcon:=False, NoHTMLFormatting:=True","        DisplayAsIcon:=False, NoHTMLFormatting:=True","        DisplayAsIcon:=False, NoHTMLFormatting:=True","        DisplayAsIcon:=False, NoHTMLFormatting:=True",null,null,"        DisplayAsIcon:=False, NoHTMLFormatting:=True","        DisplayAsIcon:=False, NoHTMLFormatting:=True","        DisplayAsIcon:=False, NoHTMLFormatting:=True"]
[null,null,null,null,null,null,null,null,null,null,null,null,null,null,null,null,null,null,null,null,null,null,null,"    ActiveWindow.ScrollColumn = 24","    ActiveWindow.ScrollColumn = 24","    ActiveWindow.ScrollColumn = 24",null,null,"    ActiveWindow.ScrollColumn = 24","    ActiveWindow.ScrollColumn = 24","    ActiveWindow.ScrollColumn = 24","    ActiveWindow.ScrollColumn = 24",null,"    ActiveWindow.ScrollColumn = 24","    ActiveWindow.ScrollColumn = 24","    ActiveWindow.ScrollColumn = 24","    ActiveWindow.ScrollColumn = 24",null,null,"    ActiveWindow.ScrollColumn = 24","    ActiveWindow.ScrollColumn = 24","    ActiveWindow.ScrollColumn = 24"]
[null,null,null,null,null,null,null,null,null,null,null,null,null,null,null,null,null,null,null,null,null,null,null,"    ActiveWindow.ScrollColumn = 23","    ActiveWindow.ScrollColumn = 23","    ActiveWindow.ScrollColumn = 23",null,null,"    ActiveWindow.ScrollColumn = 23","    ActiveWindow.ScrollColumn = 23","    ActiveWindow.ScrollColumn = 23","    ActiveWindow.ScrollColumn = 23",null,"    ActiveWindow.ScrollColumn = 23","    ActiveWindow.ScrollColumn = 23","    ActiveWindow.ScrollColumn = 23","    ActiveWindow.ScrollColumn = 23",null,null,"    ActiveWindow.ScrollColumn = 23","    ActiveWindow.ScrollColumn = 23","    ActiveWindow.ScrollColumn = 23"]
[null,null,null,null,null,null,null,null,null,null,null,null,null,null,null,null,null,null,null,null,null,null,null,"    ActiveWindow.ScrollColumn = 22","    ActiveWindow.ScrollColumn = 22","    ActiveWindow.ScrollColumn = 22",null,null,"    ActiveWindow.ScrollColumn = 22","    ActiveWindow.ScrollColumn = 22","    ActiveWindow.ScrollColumn = 22","    ActiveWindow.ScrollColumn = 22",null,"    ActiveWindow.ScrollColumn = 22","    ActiveWindow.ScrollColumn = 22","    ActiveWindow.ScrollColumn = 22","    ActiveWindow.ScrollColumn = 22",null,null,"    ActiveWindow.ScrollColumn = 22","    ActiveWindow.ScrollColumn = 22","    ActiveWindow.ScrollColumn = 22"]
[null,null,null,null,null,null,null,null,null,null,null,null,null,null,null,null,null,null,null,null,null,null,null,"    ActiveWindow.ScrollColumn = 23","    ActiveWindow.ScrollColumn = 23","    ActiveWindow.ScrollColumn = 23",null,null,"    ActiveWindow.ScrollColumn = 23","    ActiveWindow.ScrollColumn = 23","    ActiveWindow.ScrollColumn = 23","    ActiveWindow.ScrollColumn = 23",null,"    ActiveWindow.ScrollColumn = 23","    ActiveWindow.ScrollColumn = 23","    ActiveWindow.ScrollColumn = 23","    ActiveWindow.ScrollColumn = 23",null,null,"    ActiveWindow.ScrollColumn = 23","    ActiveWindow.ScrollColumn = 23","    ActiveWindow.ScrollColumn = 23"]
[null,null,null,null,null,null,null,null,null,null,null,null,null,null,null,null,null,null,null,null,null,null,null,"    ActiveWindow.ScrollColumn = 24","    ActiveWindow.ScrollColumn = 24","    ActiveWindow.ScrollColumn = 24",null,null,"    ActiveWindow.ScrollColumn = 24","    ActiveWindow.ScrollColumn = 24","    ActiveWindow.ScrollColumn = 24","    ActiveWindow.ScrollColumn = 24",null,"    ActiveWindow.ScrollColumn = 24","    ActiveWindow.ScrollColumn = 24","    ActiveWindow.ScrollColumn = 24","    ActiveWindow.ScrollColumn = 24",null,null,"    ActiveWindow.ScrollColumn = 24","    ActiveWindow.ScrollColumn = 24","    ActiveWindow.ScrollColumn = 24"]
[null,null,null,null,null,null,null,null,null,null,null,null,null,null,null,null,null,null,null,null,null,null,null,"    ActiveWindow.ScrollColumn = 25","    ActiveWindow.ScrollColumn = 25","    ActiveWindow.ScrollColumn = 25",null,null,"    ActiveWindow.ScrollColumn = 25","    ActiveWindow.ScrollColumn = 25","    ActiveWindow.ScrollColumn = 25","    ActiveWindow.ScrollColumn = 25",null,"    ActiveWindow.ScrollColumn = 25","    ActiveWindow.ScrollColumn = 25","    ActiveWindow.ScrollColumn = 25","    ActiveWindow.ScrollColumn = 25",null,null,"    ActiveWindow.ScrollColumn = 25","    ActiveWindow.ScrollColumn = 25","    ActiveWindow.ScrollColumn = 25"]
[null,null,null,null,null,null,null,null,null,null,null,null,null,null,null,null,null,null,null,null,null,null,null,"    ActiveWindow.ScrollColumn = 24","    ActiveWindow.ScrollColumn = 24","    ActiveWindow.ScrollColumn = 24",null,null,"    ActiveWindow.ScrollColumn = 24","    ActiveWindow.ScrollColumn = 24","    ActiveWindow.ScrollColumn = 24","    ActiveWindow.ScrollColumn = 24",null,"    ActiveWindow.ScrollColumn = 24","    ActiveWindow.ScrollColumn = 24","    ActiveWindow.ScrollColumn = 24","    ActiveWindow.ScrollColumn = 24",null,null,"    ActiveWindow.ScrollColumn = 24","    ActiveWindow.ScrollColumn = 24","    ActiveWindow.ScrollColumn = 24"]
[null,null,null,null,null,null,null,null,null,null,null,null,null,null,null,null,null,null,null,null,null,null,null,"    ActiveWindow.ScrollColumn = 19","    ActiveWindow.ScrollColumn = 19","    ActiveWindow.ScrollColumn = 19",null,null,"    ActiveWindow.ScrollColumn = 19","    ActiveWindow.ScrollColumn = 19","    ActiveWindow.ScrollColumn = 19","    ActiveWindow.ScrollColumn = 19",null,"    ActiveWindow.ScrollColumn = 19","    ActiveWindow.ScrollColumn = 19","    ActiveWindow.ScrollColumn = 19","    ActiveWindow.ScrollColumn = 19",null,null,"    ActiveWindow.ScrollColumn = 19","    ActiveWindow.ScrollColumn = 19","    ActiveWindow.ScrollColumn = 19"]
[null,null,null,null,null,null,null,null,null,null,null,null,null,null,null,null,null,null,null,null,null,null,null,"    ActiveWindow.ScrollColumn = 15","    ActiveWindow.ScrollColumn = 15","    ActiveWindow.ScrollColumn = 15",null,null,"    ActiveWindow.ScrollColumn = 15","    ActiveWindow.ScrollColumn = 15","    ActiveWindow.ScrollColumn = 15","    ActiveWindow.ScrollColumn = 15",null,"    ActiveWindow.ScrollColumn = 15","    ActiveWindow.ScrollColumn = 15","    ActiveWindow.ScrollColumn = 15","    ActiveWindow.ScrollColumn = 15",null,null,"    ActiveWindow.ScrollColumn = 15","    ActiveWindow.ScrollColumn = 15","    ActiveWindow.ScrollColumn = 15"]
[null,null,null,null,null,null,null,null,null,null,null,null,null,null,null,null,null,null,null,null,null,null,null,"    ActiveWindow.ScrollColumn = 14","    ActiveWindow.ScrollColumn = 14","    ActiveWindow.ScrollColumn = 14",null,null,"    ActiveWindow.ScrollColumn = 14","    ActiveWindow.ScrollColumn = 14","    ActiveWindow.ScrollColumn = 14","    ActiveWindow.ScrollColumn = 14",null,"    ActiveWindow.ScrollColumn = 14","    ActiveWindow.ScrollColumn = 14","    ActiveWindow.ScrollColumn = 14","    ActiveWindow.ScrollColumn = 14",null,null,"    ActiveWindow.ScrollColumn = 14","    ActiveWindow.ScrollColumn = 14","    ActiveWindow.ScrollColumn = 14"]
[null,null,null,null,null,null,null,null,null,null,null,null,null,null,null,null,null,null,null,null,null,null,null,"    ActiveWindow.ScrollColumn = 13","    ActiveWindow.ScrollColumn = 13","    ActiveWindow.ScrollColumn = 13",null,null,"    ActiveWindow.ScrollColumn = 13","    ActiveWindow.ScrollColumn = 13","    ActiveWindow.ScrollColumn = 13","    ActiveWindow.ScrollColumn = 13",null,"    ActiveWindow.ScrollColumn = 13","    ActiveWindow.ScrollColumn = 13","    ActiveWindow.ScrollColumn = 13","    ActiveWindow.ScrollColumn = 13",null,null,"    ActiveWindow.ScrollColumn = 13","    ActiveWindow.ScrollColumn = 13","    ActiveWindow.ScrollColumn = 13"]
[null,null,null,null,null,null,null,null,null,null,null,null,null,null,null,null,null,null,null,null,null,null,null,"    ActiveWindow.ScrollColumn = 10","    ActiveWindow.ScrollColumn = 10","    ActiveWindow.ScrollColumn = 10",null,null,"    ActiveWindow.ScrollColumn = 10","    ActiveWindow.ScrollColumn = 10","    ActiveWindow.ScrollColumn = 10","    ActiveWindow.ScrollColumn = 10",null,"    ActiveWindow.ScrollColumn = 10","    ActiveWindow.ScrollColumn = 10","    ActiveWindow.ScrollColumn = 10","    ActiveWindow.ScrollColumn = 10",null,null,"    ActiveWindow.ScrollColumn = 10","    ActiveWindow.ScrollColumn = 10","    ActiveWindow.ScrollColumn = 10"]
[null,null,null,null,null,null,null,null,null,null,null,null,null,null,null,null,null,null,null,null,null,null,null,"    ActiveWindow.ScrollColumn = 7","    ActiveWindow.ScrollColumn = 7","    ActiveWindow.ScrollColumn = 7",null,null,"    ActiveWindow.ScrollColumn = 7","    ActiveWindow.ScrollColumn = 7","    ActiveWindow.ScrollColumn = 7","    ActiveWindow.ScrollColumn = 7",null,"    ActiveWindow.ScrollColumn = 7","    ActiveWindow.ScrollColumn = 7","    ActiveWindow.ScrollColumn = 7","    ActiveWindow.ScrollColumn = 7",null,null,"    ActiveWindow.ScrollColumn = 7","    ActiveWindow.ScrollColumn = 7","    ActiveWindow.ScrollColumn = 7"]
[null,null,null,null,null,null,null,null,null,null,null,null,null,null,null,null,null,null,null,null,null,null,null,"    ActiveWindow.ScrollColumn = 6","    ActiveWindow.ScrollColumn = 6","    ActiveWindow.ScrollColumn = 6",null,null,"    ActiveWindow.ScrollColumn = 6","    ActiveWindow.ScrollColumn = 6","    ActiveWindow.ScrollColumn = 6","    ActiveWindow.ScrollColumn = 6",null,"    ActiveWindow.ScrollColumn = 6","    ActiveWindow.ScrollColumn = 6","    ActiveWindow.ScrollColumn = 6","    ActiveWindow.ScrollColumn = 6",null,null,"    ActiveWindow.ScrollColumn = 6","    ActiveWindow.ScrollColumn = 6","    ActiveWindow.ScrollColumn = 6"]
[null,null,null,null,null,null,null,null,null,null,null,null,null,null,null,null,null,null,null,null,null,null,null,"    ActiveWindow.ScrollColumn = 4","    ActiveWindow.ScrollColumn = 4","    ActiveWindow.ScrollColumn = 4",null,null,"    ActiveWindow.ScrollColumn = 4","    ActiveWindow.ScrollColumn = 4","    ActiveWindow.ScrollColumn = 4","    ActiveWindow.ScrollColumn = 4",null,"    ActiveWindow.ScrollColumn = 4","    ActiveWindow.ScrollColumn = 4","    ActiveWindow.ScrollColumn = 4","    ActiveWindow.ScrollColumn = 4",null,null,"    ActiveWindow.ScrollColumn = 4","    ActiveWindow.ScrollColumn = 4","    ActiveWindow.ScrollColumn = 4"]
[null,null,null,null,null,null,null,null,null,null,null,null,null,null,null,null,null,null,null,null,null,null,null,"    ActiveWindow.ScrollColumn = 3","    ActiveWindow.ScrollColumn = 3","    ActiveWindow.ScrollColumn = 3",null,null,"    ActiveWindow.ScrollColumn = 3","    ActiveWindow.ScrollColumn = 3","    ActiveWindow.ScrollColumn = 3","    ActiveWindow.ScrollColumn = 3",null,"    ActiveWindow.ScrollColumn = 3","    ActiveWindow.ScrollColumn = 3","    ActiveWindow.ScrollColumn = 3","    ActiveWindow.ScrollColumn = 3",null,null,"    ActiveWindow.ScrollColumn = 3","    ActiveWindow.ScrollColumn = 3","    ActiveWindow.ScrollColumn = 3"]
[null,null,null,null,null,null,null,null,null,null,null,null,null,null,null,null,null,null,null,null,null,null,null,"    ActiveCell.FormulaR1C1 = \"=IF(R[-2]C[-28]=\"\"x\"\",R[-2]C[-15],\"\"\"\")\"","    ActiveCell.FormulaR1C1 = \"=IF(R[-2]C[-28]=\"\"x\"\",R[-2]C[-15],\"\"\"\")\"","    ActiveCell.FormulaR1C1 = \"=IF(R[-2]C[-28]=\"\"x\"\",R[-2]C[-15],\"\"\"\")\"",null,null,"    ActiveCell.FormulaR1C1 = \"=IF(R[-2]C[-28]=\"\"x\"\",R[-2]C[-15],\"\"\"\")\"","    ActiveCell.FormulaR1C1 = \"=IF(R[-2]C[-28]=\"\"x\"\",R[-2]C[-15],\"\"\"\")\"","    ActiveCell.FormulaR1C1 = \"=IF(R[-2]C[-28]=\"\"x\"\",R[-2]C[-15],\"\"\"\")\"","    ActiveCell.FormulaR1C1 = \"=IF(R[-2]C[-28]=\"\"x\"\",R[-2]C[-15],\"\"\"\")\"",null,"    ActiveCell.FormulaR1C1 = \"=IF(R[-2]C[-28]=\"\"x\"\",R[-2]C[-15],\"\"\"\")\"","    ActiveCell.FormulaR1C1 = \"=IF(R[-2]C[-28]=\"\"x\"\",R[-2]C[-15],\"\"\"\")\"","    ActiveCell.FormulaR1C1 = \"=IF(R[-2]C[-28]=\"\"x\"\",R[-2]C[-15],\"\"\"\")\"","    ActiveCell.FormulaR1C1 = \"=IF(R[-2]C[-28]=\"\"x\"\",R[-2]C[-15],\"\"\"\")\"",null,null,"    ActiveCell.FormulaR1C1 = \"=IF(R[-2]C[-28]=\"\"x\"\",R[-2]C[-15],\"\"\"\")\"","    ActiveCell.FormulaR1C1 = \"=IF(R[-2]C[-28]=\"\"x\"\",R[-2]C[-15],\"\"\"\")\"","    ActiveCell.FormulaR1C1 = \"=IF(R[-2]C[-28]=\"\"x\"\",R[-2]C[-15],\"\"\"\")\""]
[null,null,null,null,null,null,null,null,null,null,null,null,null,null,null,null,null,null,null,null,null,null,null,"    Range(\"AI11\").Select","    Range(\"AI11\").Select","    Range(\"AI11\").Select",null,null,"    Range(\"AI11\").Select","    Range(\"AI11\").Select","    Range(\"AI11\").Select","    Range(\"AI11\").Select",null,"    Range(\"AI11\").Select","    Range(\"AI11\").Select","    Range(\"AI11\").Select","    Range(\"AI11\").Select",null,null,"    Range(\"AI11\").Select","    Range(\"AI11\").Select","    Range(\"AI11\").Select"]
[null,null,null,null,null,null,null,null,null,null,null,null,null,null,null,null,null,null,null,null,null,null,null,"    Selection.AutoFill Destination:=Range(\"AI11:AI48\"), Type:=xlFillDefault","    Selection.AutoFill Destination:=Range(\"AI11:AI48\"), Type:=xlFillDefault","    Selection.AutoFill Destination:=Range(\"AI11:AI48\"), Type:=xlFillDefault",null,null,"    Selection.AutoFill Destination:=Range(\"AI11:AI48\"), Type:=xlFillDefault","    Selection.AutoFill Destination:=Range(\"AI11:AI48\"), Type:=xlFillDefault","    Selection.AutoFill Destination:=Range(\"AI11:AI48\"), Type:=xlFillDefault","    Selection.AutoFill Destination:=Range(\"AI11:AI48\"), Type:=xlFillDefault",null,"    Selection.AutoFill Destination:=Range(\"AI11:AI48\"), Type:=xlFillDefault","    Selection.AutoFill Destination:=Range(\"AI11:AI48\"), Type:=xlFillDefault","    Selection.AutoFill Destination:=Range(\"AI11:AI48\"), Type:=xlFillDefault","    Selection.AutoFill Destination:=Range(\"AI11:AI48\"), Type:=xlFillDefault",null,null,"    Selection.AutoFill Destination:=Range(\"AI11:AI48\"), Type:=xlFillDefault","    Selection.AutoFill Destination:=Range(\"AI11:AI48\"), Type:=xlFillDefault","    Selection.AutoFill Destination:=Range(\"AI11:AI48\"), Type:=xlFillDefault"]
[null,null,null,null,null,null,null,null,null,null,null,null,null,null,null,null,null,null,null,null,null,null,null,"    Range(\"AI11:AI48\").Select","    Range(\"AI11:AI48\").Select","    Range(\"AI11:AI48\").Select",null,null,"    Range(\"AI11:AI48\").Select","    Range(\"AI11:AI48\").Select","    Range(\"AI11:AI48\").Select","    Range(\"AI11:AI48\").Select",null,"    Range(\"AI11:AI48\").Select","    Range(\"AI11:AI48\").Select","    Range(\"AI11:AI48\").Select","    Range(\"AI11:AI48\").Select",null,null,"    Range(\"AI11:AI48\").Select","    Range(\"AI11:AI48\").Select","    Range(\"AI11:AI48\").Select"]
[null,null,null,null,null,null,null,null,null,null,null,null,null,null,null,null,null,null,null,null,null,null,null,"    ActiveWindow.ScrollRow = 31","    ActiveWindow.ScrollRow = 31","    ActiveWindow.ScrollRow = 31",null,null,"    ActiveWindow.ScrollRow = 31","    ActiveWindow.ScrollRow = 31","    ActiveWindow.ScrollRow = 31","    ActiveWindow.ScrollRow = 31",null,"    ActiveWindow.ScrollRow = 31","    ActiveWindow.ScrollRow = 31","    ActiveWindow.ScrollRow = 31","    ActiveWindow.ScrollRow = 31",null,null,"    ActiveWindow.ScrollRow = 31","    ActiveWindow.ScrollRow = 31","    ActiveWindow.ScrollRow = 31"]
[null,null,null,null,null,null,null,null,null,null,null,null,null,null,null,null,null,null,null,null,null,null,null,"    ActiveWindow.ScrollRow = 29","    ActiveWindow.ScrollRow = 29","    ActiveWindow.ScrollRow = 29",null,null,"    ActiveWindow.ScrollRow = 29","    ActiveWindow.ScrollRow = 29","    ActiveWindow.ScrollRow = 29","    ActiveWindow.ScrollRow = 29",null,"    ActiveWindow.ScrollRow = 29","    ActiveWindow.ScrollRow = 29","    ActiveWindow.ScrollRow = 29","    ActiveWindow.ScrollRow = 29",null,null,"    ActiveWindow.ScrollRow = 29","    ActiveWindow.ScrollRow = 29","    ActiveWindow.ScrollRow = 29"]
[null,null,null,null,null,null,null,null,null,null,null,null,null,null,null,null,null,null,null,null,null,null,null,"    ActiveWindow.ScrollRow = 25","    ActiveWindow.ScrollRow = 25","    ActiveWindow.ScrollRow = 25",null,null,"    ActiveWindow.ScrollRow = 25","    ActiveWindow.ScrollRow = 25","    ActiveWindow.ScrollRow = 25","    ActiveWindow.ScrollRow = 25",null,"    ActiveWindow.ScrollRow = 25","    ActiveWindow.ScrollRow = 25","    ActiveWindow.ScrollRow = 25","    ActiveWindow.ScrollRow = 25",null,null,"    ActiveWindow.ScrollRow = 25","    ActiveWindow.ScrollRow = 25","    ActiveWindow.ScrollRow = 25"]
[null,null,null,null,null,null,null,null,null,null,null,null,null,null,null,null,null,null,null,null,null,null,null,"    ActiveWindow.ScrollRow = 22","    ActiveWindow.ScrollRow = 22","    ActiveWindow.ScrollRow = 22",null,null,"    ActiveWindow.ScrollRow = 22","    ActiveWindow.ScrollRow = 22","    ActiveWindow.ScrollRow = 22","    ActiveWindow.ScrollRow = 22",null,"    ActiveWindow.ScrollRow = 22","    ActiveWindow.ScrollRow = 22","    ActiveWindow.ScrollRow = 22","    ActiveWindow.ScrollRow = 22",null,null,"    ActiveWindow.ScrollRow = 22","    ActiveWindow.ScrollRow = 22","    ActiveWindow.ScrollRow = 22"]
[null,null,null,null,null,null,null,null,null,null,null,null,null,null,null,null,null,null,null,null,null,null,null,"    ActiveWindow.ScrollRow = 19","    ActiveWindow.ScrollRow = 19","    ActiveWindow.ScrollRow = 19",null,null,"    ActiveWindow.ScrollRow = 19","    ActiveWindow.ScrollRow = 19","    ActiveWindow.ScrollRow = 19","    ActiveWindow.ScrollRow = 19",null,"    ActiveWindow.ScrollRow = 19","    ActiveWindow.ScrollRow = 19","    ActiveWindow.ScrollRow = 19","    ActiveWindow.ScrollRow = 19",null,null,"    ActiveWindow.ScrollRow = 19","    ActiveWindow.ScrollRow = 19","    ActiveWindow.ScrollRow = 19"]
[null,null,null,null,null,null,null,null,null,null,null,null,null,null,null,null,null,null,null,null,null,null,null,"    ActiveWindow.ScrollRow = 16","    ActiveWindow.ScrollRow = 16","    ActiveWindow.ScrollRow = 16",null,null,"    ActiveWindow.ScrollRow = 16","    ActiveWindow.ScrollRow = 16","    ActiveWindow.ScrollRow = 16","    ActiveWindow.ScrollRow = 16",null,"    ActiveWindow.ScrollRow = 16","    ActiveWindow.ScrollRow = 16","    ActiveWindow.ScrollRow = 16","    ActiveWindow.ScrollRow = 16",null,null,"    ActiveWindow.ScrollRow = 16","    ActiveWindow.ScrollRow = 16","    ActiveWindow.ScrollRow = 16"]
[null,null,null,null,null,null,null,null,null,null,null,null,null,null,null,null,null,null,null,null,null,null,null,"    ActiveWindow.ScrollRow = 14","    ActiveWindow.ScrollRow = 14","    ActiveWindow.ScrollRow = 14",null,null,"    ActiveWindow.ScrollRow = 14","    ActiveWindow.ScrollRow = 14","    ActiveWindow.ScrollRow = 14","    ActiveWindow.ScrollRow = 14",null,"    ActiveWindow.ScrollRow = 14","    ActiveWindow.ScrollRow = 14","    ActiveWindow.ScrollRow = 14","    ActiveWindow.ScrollRow = 14",null,null,"    ActiveWindow.ScrollRow = 14","    ActiveWindow.ScrollRow = 14","    ActiveWindow.ScrollRow = 14"]
[null,null,null,null,null,null,null,null,null,null,null,null,null,null,null,null,null,null,null,null,null,null,null,"    ActiveWindow.ScrollRow = 13","    ActiveWindow.ScrollRow = 13","    ActiveWindow.ScrollRow = 13",null,null,"    ActiveWindow.ScrollRow = 13","    ActiveWindow.ScrollRow = 13","    ActiveWindow.ScrollRow = 13","    ActiveWindow.ScrollRow = 13",null,"    ActiveWindow.ScrollRow = 13","    ActiveWindow.ScrollRow = 13","    ActiveWindow.ScrollRow = 13","    ActiveWindow.ScrollRow = 13",null,null,"    ActiveWindow.ScrollRow = 13","    ActiveWindow.ScrollRow = 13","    ActiveWindow.ScrollRow = 13"]
[null,null,null,null,null,null,null,null,null,null,null,null,null,null,null,null,null,null,null,null,null,null,null,"    ActiveWindow.ScrollRow = 12","    ActiveWindow.ScrollRow = 12","    ActiveWindow.ScrollRow = 12",null,null,"    ActiveWindow.ScrollRow = 12","    ActiveWindow.ScrollRow = 12","    ActiveWindow.ScrollRow = 12","    ActiveWindow.ScrollRow = 12",null,"    ActiveWindow.ScrollRow = 12","    ActiveWindow.ScrollRow = 12","    ActiveWindow.ScrollRow = 12","    ActiveWindow.ScrollRow = 12",null,null,"    ActiveWindow.ScrollRow = 12","    ActiveWindow.ScrollRow = 12","    ActiveWindow.ScrollRow = 12"]
[null,null,null,null,null,null,null,null,null,null,null,null,null,null,null,null,null,null,null,null,null,null,null,"    ActiveWindow.ScrollRow = 10","    ActiveWindow.ScrollRow = 10","    ActiveWindow.ScrollRow = 10",null,null,"    ActiveWindow.ScrollRow = 10","    ActiveWindow.ScrollRow = 10","    ActiveWindow.ScrollRow = 10","    ActiveWindow.ScrollRow = 10",null,"    ActiveWindow.ScrollRow = 10","    ActiveWindow.ScrollRow = 10","    ActiveWindow.ScrollRow = 10","    ActiveWindow.ScrollRow = 10",null,null,"    ActiveWindow.ScrollRow = 10","    ActiveWindow.ScrollRow = 10","    ActiveWindow.ScrollRow = 10"]
[null,null,null,null,null,null,null,null,null,null,null,null,null,null,null,null,null,null,null,null,null,null,null,"    ActiveWindow.ScrollRow = 9","    ActiveWindow.ScrollRow = 9","    ActiveWindow.ScrollRow = 9",null,null,"    ActiveWindow.ScrollRow = 9","    ActiveWindow.ScrollRow = 9","    ActiveWindow.ScrollRow = 9","    ActiveWindow.ScrollRow = 9",null,"    ActiveWindow.ScrollRow = 9","    ActiveWindow.ScrollRow = 9","    ActiveWindow.ScrollRow = 9","    ActiveWindow.ScrollRow = 9",null,null,"    ActiveWindow.ScrollRow = 9","    ActiveWindow.ScrollRow = 9","    ActiveWindow.ScrollRow = 9"]
[null,null,null,null,null,null,null,null,null,null,null,null,null,null,null,null,null,null,null,null,null,null,null,"    Range(\"AH11\").Select","    Range(\"AH11\").Select","    Range(\"AH11\").Select",null,null,"    Range(\"AH11\").Select","    Range(\"AH11\").Select","    Range(\"AH11\").Select","    Range(\"AH11\").Select",null,"    Range(\"AH11\").Select","    Range(\"AH11\").Select","    Range(\"AH11\").Select","    Range(\"AH11\").Select",null,null,"    Range(\"AH11\").Select","    Range(\"AH11\").Select","    Range(\"AH11\").Select"]
[null,null,null,null,null,null,null,null,null,null,null,null,null,null,null,null,null,null,null,null,null,null,null,"    ActiveSheet.PasteSpecial Format:=\"Texte Unicode\", Link:=False, _","    ActiveSheet.PasteSpecial Format:=\"Texte Unicode\", Link:=False, _","    ActiveSheet.PasteSpecial Format:=\"Texte Unicode\", Link:=False, _",null,null,"    ActiveSheet.PasteSpecial Format:=\"Texte Unicode\", Link:=False, _","    ActiveSheet.PasteSpecial Format:=\"Texte Unicode\", Link:=False, _","    ActiveSheet.PasteSpecial Format:=\"Texte Unicode\", Link:=False, _","    ActiveSheet.PasteSpecial Format:=\"Texte Unicode\", Link:=False, _",null,"    ActiveSheet.PasteSpecial Format:=\"Texte Unicode\", Link:=False, _","    ActiveSheet.PasteSpecial Format:=\"Texte Unicode\", Link:=False, _","    ActiveSheet.PasteSpecial Format:=\"Texte Unicode\", Link:=False, _","    ActiveSheet.PasteSpecial Format:=\"Texte Unicode\", Link:=False, _",null,null,"    ActiveSheet.PasteSpecial Format:=\"Texte Unicode\", Link:=False, _","    ActiveSheet.PasteSpecial Format:=\"Texte Unicode\", Link:=False, _","    ActiveSheet.PasteSpecial Format:=\"Texte Unicode\", Link:=False, _"]
[null,null,null,null,null,null,null,null,null,null,null,null,null,null,null,null,null,null,null,null,null,null,null,"        DisplayAsIcon:=False, NoHTMLFormatting:=True","        DisplayAsIcon:=False, NoHTMLFormatting:=True","        DisplayAsIcon:=False, NoHTMLFormatting:=True",null,null,"        DisplayAsIcon:=False, NoHTMLFormatting:=True","        DisplayAsIcon:=False, NoHTMLFormatting:=True","        DisplayAsIcon:=False, NoHTMLFormatting:=True","        DisplayAsIcon:=False, NoHTMLFormatting:=True",null,"        DisplayAsIcon:=False, NoHTMLFormatting:=True","        DisplayAsIcon:=False, NoHTMLFormatting:=True","        DisplayAsIcon:=False, NoHTMLFormatting:=True","        DisplayAsIcon:=False, NoHTMLFormatting:=True",null,null,"        DisplayAsIcon:=False, NoHTMLFormatting:=True","        DisplayAsIcon:=False, NoHTMLFormatting:=True","        DisplayAsIcon:=False, NoHTMLFormatting:=True"]
[null,null,null,null,null,null,null,null,null,null,null,null,null,null,null,null,null,null,null,null,null,null,null,"    ActiveWindow.ScrollColumn = 22","    ActiveWindow.ScrollColumn = 22","    ActiveWindow.ScrollColumn = 22",null,null,"    ActiveWindow.ScrollColumn = 22","    ActiveWindow.ScrollColumn = 22","    ActiveWindow.ScrollColumn = 22","    ActiveWindow.ScrollColumn = 22",null,"    ActiveWindow.ScrollColumn = 22","    ActiveWindow.ScrollColumn = 22","    ActiveWindow.ScrollColumn = 22","    ActiveWindow.ScrollColumn = 22",null,null,"    ActiveWindow.ScrollColumn = 22","    ActiveWindow.ScrollColumn = 22","    ActiveWindow.ScrollColumn = 22"]
[null,null,null,null,null,null,null,null,null,null,null,null,null,null,null,null,null,null,null,null,null,null,null,"    ActiveWindow.ScrollColumn = 15","    ActiveWindow.ScrollColumn = 15","    ActiveWindow.ScrollColumn = 15",null,null,"    ActiveWindow.ScrollColumn = 15","    ActiveWindow.ScrollColumn = 15","    ActiveWindow.ScrollColumn = 15","    ActiveWindow.ScrollColumn = 15",null,"    ActiveWindow.ScrollColumn = 15","    ActiveWindow.ScrollColumn = 15","    ActiveWindow.ScrollColumn = 15","    ActiveWindow.ScrollColumn = 15",null,null,"    ActiveWindow.ScrollColumn = 15","    ActiveWindow.ScrollColumn = 15","    ActiveWindow.ScrollColumn = 15"]
[null,null,null,null,null,null,null,null,null,null,null,null,null,null,null,null,null,null,null,null,null,null,null,"    ActiveWindow.ScrollColumn = 13","    ActiveWindow.ScrollColumn = 13","    ActiveWindow.ScrollColumn = 13",null,null,"    ActiveWindow.ScrollColumn = 13","    ActiveWindow.ScrollColumn = 13","    ActiveWindow.ScrollColumn = 13","    ActiveWindow.ScrollColumn = 13",null,"    ActiveWindow.ScrollColumn = 13","    ActiveWindow.ScrollColumn = 13","    ActiveWindow.ScrollColumn = 13","    ActiveWindow.ScrollColumn = 13",null,null,"    ActiveWindow.ScrollColumn = 13","    ActiveWindow.ScrollColumn = 13","    ActiveWindow.ScrollColumn = 13"]
[null,null,null,null,null,null,null,null,null,null,null,null,null,null,null,null,null,null,null,null,null,null,null,"    ActiveWindow.ScrollColumn = 11","    ActiveWindow.ScrollColumn = 11","    ActiveWindow.ScrollColumn = 11",null,null,"    ActiveWindow.ScrollColumn = 11","    ActiveWindow.ScrollColumn = 11","    ActiveWindow.ScrollColumn = 11","    ActiveWindow.ScrollColumn = 11",null,"    ActiveWindow.ScrollColumn = 11","    ActiveWindow.ScrollColumn = 11","    ActiveWindow.ScrollColumn = 11","    ActiveWindow.ScrollColumn = 11",null,null,"    ActiveWindow.ScrollColumn = 11","    ActiveWindow.ScrollColumn = 11","    ActiveWindow.ScrollColumn = 11"]
[null,null,null,null,null,null,null,null,null,null,null,null,null,null,null,null,null,null,null,null,null,null,null,"    ActiveWindow.ScrollColumn = 10","    ActiveWindow.ScrollColumn = 10","    ActiveWindow.ScrollColumn = 10",null,null,"    ActiveWindow.ScrollColumn = 10","    ActiveWindow.ScrollColumn = 10","    ActiveWindow.ScrollColumn = 10","    ActiveWindow.ScrollColumn = 10",null,"    ActiveWindow.ScrollColumn = 10","    ActiveWindow.ScrollColumn = 10","    ActiveWindow.ScrollColumn = 10","    ActiveWindow.ScrollColumn = 10",null,null,"    ActiveWindow.ScrollColumn = 10","    ActiveWindow.ScrollColumn = 10","    ActiveWindow.ScrollColumn = 10"]
[null,null,null,null,null,null,null,null,null,null,null,null,null,null,null,null,null,null,null,null,null,null,null,"    ActiveWindow.ScrollColumn = 1","    ActiveWindow.ScrollColumn = 1","    ActiveWindow.ScrollColumn = 1",null,null,"    ActiveWindow.ScrollColumn = 1","    ActiveWindow.ScrollColumn = 1","    ActiveWindow.ScrollColumn = 1","    ActiveWindow.ScrollColumn = 1",null,"    ActiveWindow.ScrollColumn = 1","    ActiveWindow.ScrollColumn = 1","    ActiveWindow.ScrollColumn = 1","    ActiveWindow.ScrollColumn = 1",null,null,"    ActiveWindow.ScrollColumn = 1","    ActiveWindow.ScrollColumn = 1","    ActiveWindow.ScrollColumn = 1"]
[null,null,null,null,null,null,null,null,null,null,null,null,null,null,null,null,null,null,null,null,null,null,null,"    ActiveCell.FormulaR1C1 = \"=IF(R[-2]C[-31]=\"\"x\"\",R[-2]C[-14],\"\"\"\")\"","    ActiveCell.FormulaR1C1 = \"=IF(R[-2]C[-31]=\"\"x\"\",R[-2]C[-14],\"\"\"\")\"","    ActiveCell.FormulaR1C1 = \"=IF(R[-2]C[-31]=\"\"x\"\",R[-2]C[-14],\"\"\"\")\"",null,null,"    ActiveCell.FormulaR1C1 = \"=IF(R[-2]C[-31]=\"\"x\"\",R[-2]C[-14],\"\"\"\")\"","    ActiveCell.FormulaR1C1 = \"=IF(R[-2]C[-31]=\"\"x\"\",R[-2]C[-14],\"\"\"\")\"","    ActiveCell.FormulaR1C1 = \"=IF(R[-2]C[-31]=\"\"x\"\",R[-2]C[-14],\"\"\"\")\"","    ActiveCell.FormulaR1C1 = \"=IF(R[-2]C[-31]=\"\"x\"\",R[-2]C[-14],\"\"\"\")\"",null,"    ActiveCell.FormulaR1C1 = \"=IF(R[-2]C[-31]=\"\"x\"\",R[-2]C[-14],\"\"\"\")\"","    ActiveCell.FormulaR1C1 = \"=IF(R[-2]C[-31]=\"\"x\"\",R[-2]C[-14],\"\"\"\")\"","    ActiveCell.FormulaR1C1 = \"=IF(R[-2]C[-31]=\"\"x\"\",R[-2]C[-14],\"\"\"\")\"","    ActiveCell.FormulaR1C1 = \"=IF(R[-2]C[-31]=\"\"x\"\",R[-2]C[-14],\"\"\"\")\"",null,null,"    ActiveCell.FormulaR1C1 = \"=IF(R[-2]C[-31]=\"\"x\"\",R[-2]C[-14],\"\"\"\")\"","    ActiveCell.FormulaR1C1 = \"=IF(R[-2]C[-31]=\"\"x\"\",R[-2]C[-14],\"\"\"\")\"","    ActiveCell.FormulaR1C1 = \"=IF(R[-2]C[-31]=\"\"x\"\",R[-2]C[-14],\"\"\"\")\""]
[null,null,null,null,null,null,null,null,null,null,null,null,null,null,null,null,null,null,null,null,null,null,null,"    Range(\"AH11\").Select","    Range(\"AH11\").Select","    Range(\"AH11\").Select",null,null,"    Range(\"AH11\").Select","    Range(\"AH11\").Select","    Range(\"AH11\").Select","    Range(\"AH11\").Select",null,"    Range(\"AH11\").Select","    Range(\"AH11\").Select","    Range(\"AH11\").Select","    Range(\"AH11\").Select",null,null,"    Range(\"AH11\").Select","    Range(\"AH11\").Select","    Range(\"AH11\").Select"]
[null,null,null,null,null,null,null,null,null,null,null,null,null,null,null,null,null,null,null,null,null,null,null,"    Selection.AutoFill Destination:=Range(\"AH11:AH48\"), Type:=xlFillDefault","    Selection.AutoFill Destination:=Range(\"AH11:AH48\"), Type:=xlFillDefault","    Selection.AutoFill Destination:=Range(\"AH11:AH48\"), Type:=xlFillDefault",null,null,"    Selection.AutoFill Destination:=Range(\"AH11:AH48\"), Type:=xlFillDefault","    Selection.AutoFill Destination:=Range(\"AH11:AH48\"), Type:=xlFillDefault","    Selection.AutoFill Destination:=Range(\"AH11:AH48\"), Type:=xlFillDefault","    Selection.AutoFill Destination:=Range(\"AH11:AH48\"), Type:=xlFillDefault",null,"    Selection.AutoFill Destination:=Range(\"AH11:AH48\"), Type:=xlFillDefault","    Selection.AutoFill Destination:=Range(\"AH11:AH48\"), Type:=xlFillDefault","    Selection.AutoFill Destination:=Range(\"AH11:AH48\"), Type:=xlFillDefault","    Selection.AutoFill Destination:=Range(\"AH11:AH48\"), Type:=xlFillDefault",null,null,"    Selection.AutoFill Destination:=Range(\"AH11:AH48\"), Type:=xlFillDefault","    Selection.AutoFill Destination:=Range(\"AH11:AH48\"), Type:=xlFillDefault","    Selection.AutoFill Destination:=Range(\"AH11:AH48\"), Type:=xlFillDefault"]
[null,null,null,null,null,null,null,null,null,null,null,null,null,null,null,null,null,null,null,null,null,null,null,"    Range(\"AH11:AH48\").Select","    Range(\"AH11:AH48\").Select","    Range(\"AH11:AH48\").Select",null,null,"    Range(\"AH11:AH48\").Select","    Range(\"AH11:AH48\").Select","    Range(\"AH11:AH48\").Select","    Range(\"AH11:AH48\").Select",null,"    Range(\"AH11:AH48\").Select","    Range(\"AH11:AH48\").Select","    Range(\"AH11:AH48\").Select","    Range(\"AH11:AH48\").Select",null,null,"    Range(\"AH11:AH48\").Select","    Range(\"AH11:AH48\").Select","    Range(\"AH11:AH48\").Select"]
[null,null,null,null,null,null,null,null,null,null,null,null,null,null,null,null,null,null,null,null,null,null,null,"    ActiveWindow.ScrollRow = 31","    ActiveWindow.ScrollRow = 31","    ActiveWindow.ScrollRow = 31",null,null,"    ActiveWindow.ScrollRow = 31","    ActiveWindow.ScrollRow = 31","    ActiveWindow.ScrollRow = 31","    ActiveWindow.ScrollRow = 31",null,"    ActiveWindow.ScrollRow = 31","    ActiveWindow.ScrollRow = 31","    ActiveWindow.ScrollRow = 31","    ActiveWindow.ScrollRow = 31",null,null,"    ActiveWindow.ScrollRow = 31","    ActiveWindow.ScrollRow = 31","    ActiveWindow.ScrollRow = 31"]
[null,null,null,null,null,null,null,null,null,null,null,null,null,null,null,null,null,null,null,null,null,null,null,"    ActiveWindow.ScrollRow = 25","    ActiveWindow.ScrollRow = 25","    ActiveWindow.ScrollRow = 25",null,null,"    ActiveWindow.ScrollRow = 25","    ActiveWindow.ScrollRow = 25","    ActiveWindow.ScrollRow = 25","    ActiveWindow.ScrollRow = 25",null,"    ActiveWindow.ScrollRow = 25","    ActiveWindow.ScrollRow = 25","    ActiveWindow.ScrollRow = 25","    ActiveWindow.ScrollRow = 25",null,null,"    ActiveWindow.ScrollRow = 25","    ActiveWindow.ScrollRow = 25","    ActiveWindow.ScrollRow = 25"]
[null,null,null,null,null,null,null,null,null,null,null,null,null,null,null,null,null,null,null,null,null,null,null,"    ActiveWindow.ScrollRow = 19","    ActiveWindow.ScrollRow = 19","    ActiveWindow.ScrollRow = 19",null,null,"    ActiveWindow.ScrollRow = 19","    ActiveWindow.ScrollRow = 19","    ActiveWindow.ScrollRow = 19","    ActiveWindow.ScrollRow = 19",null,"    ActiveWindow.ScrollRow = 19","    ActiveWindow.ScrollRow = 19","    ActiveWindow.ScrollRow = 19","    ActiveWindow.ScrollRow = 19",null,null,"    ActiveWindow.ScrollRow = 19","    ActiveWindow.ScrollRow = 19","    ActiveWindow.ScrollRow = 19"]
[null,null,null,null,null,null,null,null,null,null,null,null,null,null,null,null,null,null,null,null,null,null,null,"    ActiveWindow.ScrollRow = 15","    ActiveWindow.ScrollRow = 15","    ActiveWindow.ScrollRow = 15",null,null,"    ActiveWindow.ScrollRow = 15","    ActiveWindow.ScrollRow = 15","    ActiveWindow.ScrollRow = 15","    ActiveWindow.ScrollRow = 15",null,"    ActiveWindow.ScrollRow = 15","    ActiveWindow.ScrollRow = 15","    ActiveWindow.ScrollRow = 15","    ActiveWindow.ScrollRow = 15",null,null,"    ActiveWindow.ScrollRow = 15","    ActiveWindow.ScrollRow = 15","    ActiveWindow.ScrollRow = 15"]
[null,null,null,null,null,null,null,null,null,null,null,null,null,null,null,null,null,null,null,null,null,null,null,"    ActiveWindow.ScrollRow = 13","    ActiveWindow.ScrollRow = 13","    ActiveWindow.ScrollRow = 13",null,null,"    ActiveWindow.ScrollRow = 13","    ActiveWindow.ScrollRow = 13","    ActiveWindow.ScrollRow = 13","    ActiveWindow.ScrollRow = 13",null,"    ActiveWindow.ScrollRow = 13","    ActiveWindow.ScrollRow = 13","    ActiveWindow.ScrollRow = 13","    ActiveWindow.ScrollRow = 13",null,null,"    ActiveWindow.ScrollRow = 13","    ActiveWindow.ScrollRow = 13","    ActiveWindow.ScrollRow = 13"]
[null,null,null,null,null,null,null,null,null,null,null,null,null,null,null,null,null,null,null,null,null,null,null,"    ActiveWindow.ScrollRow = 12","    ActiveWindow.ScrollRow = 12","    ActiveWindow.ScrollRow = 12",null,null,"    ActiveWindow.ScrollRow = 12","    ActiveWindow.ScrollRow = 12","    ActiveWindow.ScrollRow = 12","    ActiveWindow.ScrollRow = 12",null,"    ActiveWindow.ScrollRow = 12","    ActiveWindow.ScrollRow = 12","    ActiveWindow.ScrollRow = 12","    ActiveWindow.ScrollRow = 12",null,null,"    ActiveWindow.ScrollRow = 12","    ActiveWindow.ScrollRow = 12","    ActiveWindow.ScrollRow = 12"]
[null,null,null,null,null,null,null,null,null,null,null,null,null,null,null,null,null,null,null,null,null,null,null,"    ActiveWindow.ScrollRow = 11","    ActiveWindow.ScrollRow = 11","    ActiveWindow.ScrollRow = 11",null,null,"    ActiveWindow.ScrollRow = 11","    ActiveWindow.ScrollRow = 11","    ActiveWindow.ScrollRow = 11","    ActiveWindow.ScrollRow = 11",null,"    ActiveWindow.ScrollRow = 11","    ActiveWindow.ScrollRow = 11","    ActiveWindow.ScrollRow = 11","    ActiveWindow.ScrollRow = 11",null,null,"    ActiveWindow.ScrollRow = 11","    ActiveWindow.ScrollRow = 11","    ActiveWindow.ScrollRow = 11"]
[null,null,null,null,null,null,null,null,null,null,null,null,null,null,null,null,null,null,null,null,null,null,null,"    ActiveWindow.ScrollRow = 10","    ActiveWindow.ScrollRow = 10","    ActiveWindow.ScrollRow = 10",null,null,"    ActiveWindow.ScrollRow = 10","    ActiveWindow.ScrollRow = 10","    ActiveWindow.ScrollRow = 10","    ActiveWindow.ScrollRow = 10",null,"    ActiveWindow.ScrollRow = 10","    ActiveWindow.ScrollRow = 10","    ActiveWindow.ScrollRow = 10","    ActiveWindow.ScrollRow = 10",null,null,"    ActiveWindow.ScrollRow = 10","    ActiveWindow.ScrollRow = 10","    ActiveWindow.ScrollRow = 10"]
[null,null,null,null,null,null,null,null,null,null,null,null,null,null,null,null,null,null,null,null,null,null,null,"    ActiveWindow.ScrollRow = 9","    ActiveWindow.ScrollRow = 9","    ActiveWindow.ScrollRow = 9",null,null,"    ActiveWindow.ScrollRow = 9","    ActiveWindow.ScrollRow = 9","    ActiveWindow.ScrollRow = 9","    ActiveWindow.ScrollRow = 9",null,"    ActiveWindow.ScrollRow = 9","    ActiveWindow.ScrollRow = 9","    ActiveWindow.ScrollRow = 9","    ActiveWindow.ScrollRow = 9",null,null,"    ActiveWindow.ScrollRow = 9","    ActiveWindow.ScrollRow = 9","    ActiveWindow.ScrollRow = 9"]
[null,null,null,null,null,null,null,null,null,null,null,null,null,null,null,null,null,null,null,null,null,null,null,"    ActiveWindow.ScrollColumn = 20","    ActiveWindow.ScrollColumn = 20","    ActiveWindow.ScrollColumn = 20",null,null,"    ActiveWindow.ScrollColumn = 20","    ActiveWindow.ScrollColumn = 20","    ActiveWindow.ScrollColumn = 20","    ActiveWindow.ScrollColumn = 20",null,"    ActiveWindow.ScrollColumn = 20","    ActiveWindow.ScrollColumn = 20","    ActiveWindow.ScrollColumn = 20","    ActiveWindow.ScrollColumn = 20",null,null,"    ActiveWindow.ScrollColumn = 20","    ActiveWindow.ScrollColumn = 20","    ActiveWindow.ScrollColumn = 20"]
[null,null,null,null,null,null,null,null,null,null,null,null,null,null,null,null,null,null,null,null,null,null,null,"    ActiveWindow.ScrollColumn = 17","    ActiveWindow.ScrollColumn = 17","    ActiveWindow.ScrollColumn = 17",null,null,"    ActiveWindow.ScrollColumn = 17","    ActiveWindow.ScrollColumn = 17","    ActiveWindow.ScrollColumn = 17","    ActiveWindow.ScrollColumn = 17",null,"    ActiveWindow.ScrollColumn = 17","    ActiveWindow.ScrollColumn = 17","    ActiveWindow.ScrollColumn = 17","    ActiveWindow.ScrollColumn = 17",null,null,"    ActiveWindow.ScrollColumn = 17","    ActiveWindow.ScrollColumn = 17","    ActiveWindow.ScrollColumn = 17"]
[null,null,null,null,null,null,null,null,null,null,null,null,null,null,null,null,null,null,null,null,null,null,null,"    ActiveWindow.ScrollColumn = 16","    ActiveWindow.ScrollColumn = 16","    ActiveWindow.ScrollColumn = 16",null,null,"    ActiveWindow.ScrollColumn = 16","    ActiveWindow.ScrollColumn = 16","    ActiveWindow.ScrollColumn = 16","    ActiveWindow.ScrollColumn = 16",null,"    ActiveWindow.ScrollColumn = 16","    ActiveWindow.ScrollColumn = 16","    ActiveWindow.ScrollColumn = 16","    ActiveWindow.ScrollColumn = 16",null,null,"    ActiveWindow.ScrollColumn = 16","    ActiveWindow.ScrollColumn = 16","    ActiveWindow.ScrollColumn = 16"]
[null,null,null,null,null,null,null,null,null,null,null,null,null,null,null,null,null,null,null,null,null,null,null,"    ActiveWindow.ScrollColumn = 15","    ActiveWindow.ScrollColumn = 15","    ActiveWindow.ScrollColumn = 15",null,null,"    ActiveWindow.ScrollColumn = 15","    ActiveWindow.ScrollColumn = 15","    ActiveWindow.ScrollColumn = 15","    ActiveWindow.ScrollColumn = 15",null,"    ActiveWindow.ScrollColumn = 15","    ActiveWindow.ScrollColumn = 15","    ActiveWindow.ScrollColumn = 15","    ActiveWindow.ScrollColumn = 15",null,null,"    ActiveWindow.ScrollColumn = 15","    ActiveWindow.ScrollColumn = 15","    ActiveWindow.ScrollColumn = 15"]
[null,null,null,null,null,null,null,null,null,null,null,null,null,null,null,null,null,null,null,null,null,null,null,"    ActiveWindow.ScrollColumn = 6","    ActiveWindow.ScrollColumn = 6","    ActiveWindow.ScrollColumn = 6",null,null,"    ActiveWindow.ScrollColumn = 6","    ActiveWindow.ScrollColumn = 6","    ActiveWindow.ScrollColumn = 6","    ActiveWindow.ScrollColumn = 6",null,"    ActiveWindow.ScrollColumn = 6","    ActiveWindow.ScrollColumn = 6","    ActiveWindow.ScrollColumn = 6","    ActiveWindow.ScrollColumn = 6",null,null,"    ActiveWindow.ScrollColumn = 6","    ActiveWindow.ScrollColumn = 6","    ActiveWindow.ScrollColumn = 6"]
[null,null,null,null,null,null,null,null,null,null,null,null,null,null,null,null,null,null,null,null,null,null,null,"    ActiveWindow.ScrollColumn = 1","    ActiveWindow.ScrollColumn = 1","    ActiveWindow.ScrollColumn = 1",null,null,"    ActiveWindow.ScrollColumn = 1","    ActiveWindow.ScrollColumn = 1","    ActiveWindow.ScrollColumn = 1","    ActiveWindow.ScrollColumn = 1",null,"    ActiveWindow.ScrollColumn = 1","    ActiveWindow.ScrollColumn = 1","    ActiveWindow.ScrollColumn = 1","    ActiveWindow.ScrollColumn = 1",null,null,"    ActiveWindow.ScrollColumn = 1","    ActiveWindow.ScrollColumn = 1","    ActiveWindow.ScrollColumn = 1"]
[null,null,null,null,null,null,null,null,null,null,null,null,null,null,null,null,null,null,null,null,null,null,null,"    ActiveWindow.ScrollRow = 10","    ActiveWindow.ScrollRow = 10","    ActiveWindow.ScrollRow = 10",null,null,"    ActiveWindow.ScrollRow = 10","    ActiveWindow.ScrollRow = 10","    ActiveWindow.ScrollRow = 10","    ActiveWindow.ScrollRow = 10",null,"    ActiveWindow.ScrollRow = 10","    ActiveWindow.ScrollRow = 10","    ActiveWindow.ScrollRow = 10","    ActiveWindow.ScrollRow = 10",null,null,"    ActiveWindow.ScrollRow = 10","    ActiveWindow.ScrollRow = 10","    ActiveWindow.ScrollRow = 10"]
[null,null,null,null,null,null,null,null,null,null,null,null,null,null,null,null,null,null,null,null,null,null,null,"    ActiveWindow.ScrollRow = 11","    ActiveWindow.ScrollRow = 11","    ActiveWindow.ScrollRow = 11",null,null,"    ActiveWindow.ScrollRow = 11","    ActiveWindow.ScrollRow = 11","    ActiveWindow.ScrollRow = 11","    ActiveWindow.ScrollRow = 11",null,"    ActiveWindow.ScrollRow = 11","    ActiveWindow.ScrollRow = 11","    ActiveWindow.ScrollRow = 11","    ActiveWindow.ScrollRow = 11",null,null,"    ActiveWindow.ScrollRow = 11","    ActiveWindow.ScrollRow = 11","    ActiveWindow.ScrollRow = 11"]
[null,null,null,null,null,null,null,null,null,null,null,null,null,null,null,null,null,null,null,null,null,null,null,"    ActiveWindow.ScrollRow = 12","    ActiveWindow.ScrollRow = 12","    ActiveWindow.ScrollRow = 12",null,null,"    ActiveWindow.ScrollRow = 12","    ActiveWindow.ScrollRow = 12","    ActiveWindow.ScrollRow = 12","    ActiveWindow.ScrollRow = 12",null,"    ActiveWindow.ScrollRow = 12","    ActiveWindow.ScrollRow = 12","    ActiveWindow.ScrollRow = 12","    ActiveWindow.ScrollRow = 12",null,null,"    ActiveWindow.ScrollRow = 12","    ActiveWindow.ScrollRow = 12","    ActiveWindow.ScrollRow = 12"]
[null,null,null,null,null,null,null,null,null,null,null,null,null,null,null,null,null,null,null,null,null,null,null,"    ActiveWindow.ScrollRow = 13","    ActiveWindow.ScrollRow = 13","    ActiveWindow.ScrollRow = 13",null,null,"    ActiveWindow.ScrollRow = 13","    ActiveWindow.ScrollRow = 13","    ActiveWindow.ScrollRow = 13","    ActiveWindow.ScrollRow = 13",null,"    ActiveWindow.ScrollRow = 13","    ActiveWindow.ScrollRow = 13","    ActiveWindow.ScrollRow = 13","    ActiveWindow.ScrollRow = 13",null,null,"    ActiveWindow.ScrollRow = 13","    ActiveWindow.ScrollRow = 13","    ActiveWindow.ScrollRow = 13"]
[null,null,null,null,null,null,null,null,null,null,null,null,null,null,null,null,null,null,null,null,null,null,null,"    ActiveWindow.ScrollRow = 17","    ActiveWindow.ScrollRow = 17","    ActiveWindow.ScrollRow = 17",null,null,"    ActiveWindow.ScrollRow = 17","    ActiveWindow.ScrollRow = 17","    ActiveWindow.ScrollRow = 17","    ActiveWindow.ScrollRow = 17",null,"    ActiveWindow.ScrollRow = 17","    ActiveWindow.ScrollRow = 17","    ActiveWindow.ScrollRow = 17","    ActiveWindow.ScrollRow = 17",null,null,"    ActiveWindow.ScrollRow = 17","    ActiveWindow.ScrollRow = 17","    ActiveWindow.ScrollRow = 17"]
[null,null,null,null,null,null,null,null,null,null,null,null,null,null,null,null,null,null,null,null,null,null,null,"    ActiveWindow.ScrollRow = 20","    ActiveWindow.ScrollRow = 20","    ActiveWindow.ScrollRow = 20",null,null,"    ActiveWindow.ScrollRow = 20","    ActiveWindow.ScrollRow = 20","    ActiveWindow.ScrollRow = 20","    ActiveWindow.ScrollRow = 20",null,"    ActiveWindow.ScrollRow = 20","    ActiveWindow.ScrollRow = 20","    ActiveWindow.ScrollRow = 20","    ActiveWindow.ScrollRow = 20",null,null,"    ActiveWindow.ScrollRow = 20","    ActiveWindow.ScrollRow = 20","    ActiveWindow.ScrollRow = 20"]
[null,null,null,null,null,null,null,null,null,null,null,null,null,null,null,null,null,null,null,null,null,null,null,"    ActiveWindow.ScrollRow = 21","    ActiveWindow.ScrollRow = 21","    ActiveWindow.ScrollRow = 21",null,null,"    ActiveWindow.ScrollRow = 21","    ActiveWindow.ScrollRow = 21","    ActiveWindow.ScrollRow = 21","    ActiveWindow.ScrollRow = 21",null,"    ActiveWindow.ScrollRow = 21","    ActiveWindow.ScrollRow = 21","    ActiveWindow.ScrollRow = 21","    ActiveWindow.ScrollRow = 21",null,null,"    ActiveWindow.ScrollRow = 21","    ActiveWindow.ScrollRow = 21","    ActiveWindow.ScrollRow = 21"]
[null,null,null,null,null,null,null,null,null,null,null,null,null,null,null,null,null,null,null,null,null,null,null,"    ActiveWindow.ScrollRow = 22","    ActiveWindow.ScrollRow = 22","    ActiveWindow.ScrollRow = 22",null,null,"    ActiveWindow.ScrollRow = 22","    ActiveWindow.ScrollRow = 22","    ActiveWindow.ScrollRow = 22","    ActiveWindow.ScrollRow = 22",null,"    ActiveWindow.ScrollRow = 22","    ActiveWindow.ScrollRow = 22","    ActiveWindow.ScrollRow = 22","    ActiveWindow.ScrollRow = 22",null,null,"    ActiveWindow.ScrollRow = 22","    ActiveWindow.ScrollRow = 22","    ActiveWindow.ScrollRow = 22"]
[null,null,null,null,null,null,null,null,null,null,null,null,null,null,null,null,null,null,null,null,null,null,null,"    ActiveWindow.ScrollRow = 24","    ActiveWindow.ScrollRow = 24","    ActiveWindow.ScrollRow = 24",null,null,"    ActiveWindow.ScrollRow = 24","    ActiveWindow.ScrollRow = 24","    ActiveWindow.ScrollRow = 24","    ActiveWindow.ScrollRow = 24",null,"    ActiveWindow.ScrollRow = 24","    ActiveWindow.ScrollRow = 24","    ActiveWindow.ScrollRow = 24","    ActiveWindow.ScrollRow = 24",null,null,"    ActiveWindow.ScrollRow = 24","    ActiveWindow.ScrollRow = 24","    ActiveWindow.ScrollRow = 24"]
[null,null,null,null,null,null,null,null,null,null,null,null,null,null,null,null,null,null,null,null,null,null,null,"    ActiveWindow.ScrollRow = 26","    ActiveWindow.ScrollRow = 26","    ActiveWindow.ScrollRow = 26",null,null,"    ActiveWindow.ScrollRow = 26","    ActiveWindow.ScrollRow = 26","    ActiveWindow.ScrollRow = 26","    ActiveWindow.ScrollRow = 26",null,"    ActiveWindow.ScrollRow = 26","    ActiveWindow.ScrollRow = 26","    ActiveWindow.ScrollRow = 26","    ActiveWindow.ScrollRow = 26",null,null,"    ActiveWindow.ScrollRow = 26","    ActiveWindow.ScrollRow = 26","    ActiveWindow.ScrollRow = 26"]
[null,null,null,null,null,null,null,null,null,null,null,null,null,null,null,null,null,null,null,null,null,null,null,"    ActiveWindow.ScrollRow = 27","    ActiveWindow.ScrollRow = 27","    ActiveWindow.ScrollRow = 27",null,null,"    ActiveWindow.ScrollRow = 27","    ActiveWindow.ScrollRow = 27","    ActiveWindow.ScrollRow = 27","    ActiveWindow.ScrollRow = 27",null,"    ActiveWindow.ScrollRow = 27","    ActiveWindow.ScrollRow = 27","    ActiveWindow.ScrollRow = 27","    ActiveWindow.ScrollRow = 27",null,null,"    ActiveWindow.ScrollRow = 27","    ActiveWindow.ScrollRow = 27","    ActiveWindow.ScrollRow = 27"]
[null,null,null,null,null,null,null,null,null,null,null,null,null,null,null,null,null,null,null,null,null,null,null,"    ActiveWindow.ScrollRow = 28","    ActiveWindow.ScrollRow = 28","    ActiveWindow.ScrollRow = 28",null,null,"    ActiveWindow.ScrollRow = 28","    ActiveWindow.ScrollRow = 28","    ActiveWindow.ScrollRow = 28","    ActiveWindow.ScrollRow = 28",null,"    ActiveWindow.ScrollRow = 28","    ActiveWindow.ScrollRow = 28","    ActiveWindow.ScrollRow = 28","    ActiveWindow.ScrollRow = 28",null,null,"    ActiveWindow.ScrollRow = 28","    ActiveWindow.ScrollRow = 28","    ActiveWindow.ScrollRow = 28"]
[null,null,null,null,null,null,null,null,null,null,null,null,null,null,null,null,null,null,null,null,null,null,null,"    ActiveWindow.ScrollRow = 29","    ActiveWindow.ScrollRow = 29","    ActiveWindow.ScrollRow = 29",null,null,"    ActiveWindow.ScrollRow = 29","    ActiveWindow.ScrollRow = 29","    ActiveWindow.ScrollRow = 29","    ActiveWindow.ScrollRow = 29",null,"    ActiveWindow.ScrollRow = 29","    ActiveWindow.ScrollRow = 29","    ActiveWindow.ScrollRow = 29","    ActiveWindow.ScrollRow = 29",null,null,"    ActiveWindow.ScrollRow = 29","    ActiveWindow.ScrollRow = 29","    ActiveWindow.ScrollRow = 29"]
[null,null,null,null,null,null,null,null,null,null,null,null,null,null,null,null,null,null,null,null,null,null,null,"    ActiveWindow.ScrollRow = 30","    ActiveWindow.ScrollRow = 30","    ActiveWindow.ScrollRow = 30",null,null,"    ActiveWindow.ScrollRow = 30","    ActiveWindow.ScrollRow = 30","    ActiveWindow.ScrollRow = 30","    ActiveWindow.ScrollRow = 30",null,"    ActiveWindow.ScrollRow = 30","    ActiveWindow.ScrollRow = 30","    ActiveWindow.ScrollRow = 30","    ActiveWindow.ScrollRow = 30",null,null,"    ActiveWindow.ScrollRow = 30","    ActiveWindow.ScrollRow = 30","    ActiveWindow.ScrollRow = 30"]
[null,null,null,null,null,null,null,null,null,null,null,null,null,null,null,null,null,null,null,null,null,null,null,"    ActiveWindow.ScrollRow = 31","    ActiveWindow.ScrollRow = 31","    ActiveWindow.ScrollRow = 31",null,null,"    ActiveWindow.ScrollRow = 31","    ActiveWindow.ScrollRow = 31","    ActiveWindow.ScrollRow = 31","    ActiveWindow.ScrollRow = 31",null,"    ActiveWindow.ScrollRow = 31","    ActiveWindow.ScrollRow = 31","    ActiveWindow.ScrollRow = 31","    ActiveWindow.ScrollRow = 31",null,null,"    ActiveWindow.ScrollRow = 31","    ActiveWindow.ScrollRow = 31","    ActiveWindow.ScrollRow = 31"]
[null,null,null,null,null,null,null,null,null,null,null,null,null,null,null,null,null,null,null,null,null,null,null,"    ActiveWindow.ScrollRow = 32","    ActiveWindow.ScrollRow = 32","    ActiveWindow.ScrollRow = 32",null,null,"    ActiveWindow.ScrollRow = 32","    ActiveWindow.ScrollRow = 32","    ActiveWindow.ScrollRow = 32","    ActiveWindow.ScrollRow = 32",null,"    ActiveWindow.ScrollRow = 32","    ActiveWindow.ScrollRow = 32","    ActiveWindow.ScrollRow = 32","    ActiveWindow.ScrollRow = 32",null,null,"    ActiveWindow.ScrollRow = 32","    ActiveWindow.ScrollRow = 32","    ActiveWindow.ScrollRow = 32"]
[null,null,null,null,null,null,null,null,null,null,null,null,null,null,null,null,null,null,null,null,null,null,null,"    ActiveWindow.ScrollRow = 33","    ActiveWindow.ScrollRow = 33","    ActiveWindow.ScrollRow = 33",null,null,"    ActiveWindow.ScrollRow = 33","    ActiveWindow.ScrollRow = 33","    ActiveWindow.ScrollRow = 33","    ActiveWindow.ScrollRow = 33",null,"    ActiveWindow.ScrollRow = 33","    ActiveWindow.ScrollRow = 33","    ActiveWindow.ScrollRow = 33","    ActiveWindow.ScrollRow = 33",null,null,"    ActiveWindow.ScrollRow = 33","    ActiveWindow.ScrollRow = 33","    ActiveWindow.ScrollRow = 33"]
[null,null,null,null,null,null,null,null,null,null,null,null,null,null,null,null,null,null,null,null,null,null,null,"End Sub","End Sub","End Sub",null,null,"End Sub","End Sub","End Sub","End Sub",null,"End Sub","End Sub","End Sub","End Sub",null,null,"End Sub","End Sub","End Sub"]
[null,null,null,null,null,null,null,null,null,null,null,null,null,null,null,null,null,null,null,null,null,null,null,"Sub GHAYR_MOTAMAKININE()","Sub GHAYR_MOTAMAKININE()","Sub GHAYR_MOTAMAKININE()",null,null,"Sub GHAYR_MOTAMAKININE()","Sub GHAYR_MOTAMAKININE()","Sub GHAYR_MOTAMAKININE()","Sub GHAYR_MOTAMAKININE()",null,"Sub GHAYR_MOTAMAKININE()","Sub GHAYR_MOTAMAKININE()","Sub GHAYR_MOTAMAKININE()","Sub GHAYR_MOTAMAKININE()",null,null,"Sub GHAYR_MOTAMAKININE()","Sub GHAYR_MOTAMAKININE()","Sub GHAYR_MOTAMAKININE()"]
[null,null,null,null,null,null,null,null,null,null,null,null,null,null,null,null,null,null,null,null,null,null,null,"'","'","'",null,null,"'","'","'","'",null,"'","'","'","'",null,null,"'","'","'"]
[null,null,null,null,null,null,null,null,null,null,null,null,null,null,null,null,null,null,null,null,null,null,null,"' GHAYR_MOTAMAKININE Macro","' GHAYR_MOTAMAKININE Macro","' GHAYR_MOTAMAKININE Macro",null,null,"' GHAYR_MOTAMAKININE Macro","' GHAYR_MOTAMAKININE Macro","' GHAYR_MOTAMAKININE Macro","' GHAYR_MOTAMAKININE Macro",null,"' GHAYR_MOTAMAKININE Macro","' GHAYR_MOTAMAKININE Macro","' GHAYR_MOTAMAKININE Macro","' GHAYR_MOTAMAKININE Macro",null,null,"' GHAYR_MOTAMAKININE Macro","' GHAYR_MOTAMAKININE Macro","' GHAYR_MOTAMAKININE Macro"]
[null,null,null,null,null,null,null,null,null,null,null,null,null,null,null,null,null,null,null,null,null,null,null,"'","'","'",null,null,"'","'","'","'",null,"'","'","'","'",null,null,"'","'","'"]
[]
[null,null,null,null,null,null,null,null,null,null,null,null,null,null,null,null,null,null,null,null,null,null,null,"'","'","'",null,null,"'","'","'","'",null,"'","'","'","'",null,null,"'","'","'"]
[null,null,null,null,null,null,null,null,null,null,null,null,null,null,null,null,null,null,null,null,null,null,null,"    Range(\"AP11\").Select","    Range(\"AP11\").Select","    Range(\"AP11\").Select",null,null,"    Range(\"AP11\").Select","    Range(\"AP11\").Select","    Range(\"AP11\").Select","    Range(\"AP11\").Select",null,"    Range(\"AP11\").Select","    Range(\"AP11\").Select","    Range(\"AP11\").Select","    Range(\"AP11\").Select",null,null,"    Range(\"AP11\").Select","    Range(\"AP11\").Select","    Range(\"AP11\").Select"]
[null,null,null,null,null,null,null,null,null,null,null,null,null,null,null,null,null,null,null,null,null,null,null,"    ActiveSheet.PasteSpecial Format:=\"Texte Unicode\", Link:=False, _","    ActiveSheet.PasteSpecial Format:=\"Texte Unicode\", Link:=False, _","    ActiveSheet.PasteSpecial Format:=\"Texte Unicode\", Link:=False, _",null,null,"    ActiveSheet.PasteSpecial Format:=\"Texte Unicode\", Link:=False, _","    ActiveSheet.PasteSpecial Format:=\"Texte Unicode\", Link:=False, _","    ActiveSheet.PasteSpecial Format:=\"Texte Unicode\", Link:=False, _","    ActiveSheet.PasteSpecial Format:=\"Texte Unicode\", Link:=False, _",null,"    ActiveSheet.PasteSpecial Format:=\"Texte Unicode\", Link:=False, _","    ActiveSheet.PasteSpecial Format:=\"Texte Unicode\", Link:=False, _","    ActiveSheet.PasteSpecial Format:=\"Texte Unicode\", Link:=False, _","    ActiveSheet.PasteSpecial Format:=\"Texte Unicode\", Link:=False, _",null,null,"    ActiveSheet.PasteSpecial Format:=\"Texte Unicode\", Link:=False, _","    ActiveSheet.PasteSpecial Format:=\"Texte Unicode\", Link:=False, _","    ActiveSheet.PasteSpecial Format:=\"Texte Unicode\", Link:=False, _"]
[null,null,null,null,null,null,null,null,null,null,null,null,null,null,null,null,null,null,null,null,null,null,null,"        DisplayAsIcon:=False, NoHTMLFormatting:=True","        DisplayAsIcon:=False, NoHTMLFormatting:=True","        DisplayAsIcon:=False, NoHTMLFormatting:=True",null,null,"        DisplayAsIcon:=False, NoHTMLFormatting:=True","        DisplayAsIcon:=False, NoHTMLFormatting:=True","        DisplayAsIcon:=False, NoHTMLFormatting:=True","        DisplayAsIcon:=False, NoHTMLFormatting:=True",null,"        DisplayAsIcon:=False, NoHTMLFormatting:=True","        DisplayAsIcon:=False, NoHTMLFormatting:=True","        DisplayAsIcon:=False, NoHTMLFormatting:=True","        DisplayAsIcon:=False, NoHTMLFormatting:=True",null,null,"        DisplayAsIcon:=False, NoHTMLFormatting:=True","        DisplayAsIcon:=False, NoHTMLFormatting:=True","        DisplayAsIcon:=False, NoHTMLFormatting:=True"]
[null,null,null,null,null,null,null,null,null,null,null,null,null,null,null,null,null,null,null,null,null,null,null,"    ActiveWindow.SmallScroll ToRight:=-22","    ActiveWindow.SmallScroll ToRight:=-22","    ActiveWindow.SmallScroll ToRight:=-22",null,null,"    ActiveWindow.SmallScroll ToRight:=-22","    ActiveWindow.SmallScroll ToRight:=-22","    ActiveWindow.SmallScroll ToRight:=-22","    ActiveWindow.SmallScroll ToRight:=-22",null,"    ActiveWindow.SmallScroll ToRight:=-22","    ActiveWindow.SmallScroll ToRight:=-22","    ActiveWindow.SmallScroll ToRight:=-22","    ActiveWindow.SmallScroll ToRight:=-22",null,null,"    ActiveWindow.SmallScroll ToRight:=-22","    ActiveWindow.SmallScroll ToRight:=-22","    ActiveWindow.SmallScroll ToRight:=-22"]
[null,null,null,null,null,null,null,null,null,null,null,null,null,null,null,null,null,null,null,null,null,null,null,"    ActiveCell.FormulaR1C1 = \"=IF(R[-2]C[-28]=\"\"x\"\",R[-2]C[-22],\"\"\"\")\"","    ActiveCell.FormulaR1C1 = \"=IF(R[-2]C[-28]=\"\"x\"\",R[-2]C[-22],\"\"\"\")\"","    ActiveCell.FormulaR1C1 = \"=IF(R[-2]C[-28]=\"\"x\"\",R[-2]C[-22],\"\"\"\")\"",null,null,"    ActiveCell.FormulaR1C1 = \"=IF(R[-2]C[-28]=\"\"x\"\",R[-2]C[-22],\"\"\"\")\"","    ActiveCell.FormulaR1C1 = \"=IF(R[-2]C[-28]=\"\"x\"\",R[-2]C[-22],\"\"\"\")\"","    ActiveCell.FormulaR1C1 = \"=IF(R[-2]C[-28]=\"\"x\"\",R[-2]C[-22],\"\"\"\")\"","    ActiveCell.FormulaR1C1 = \"=IF(R[-2]C[-28]=\"\"x\"\",R[-2]C[-22],\"\"\"\")\"",null,"    ActiveCell.FormulaR1C1 = \"=IF(R[-2]C[-28]=\"\"x\"\",R[-2]C[-22],\"\"\"\")\"","    ActiveCell.FormulaR1C1 = \"=IF(R[-2]C[-28]=\"\"x\"\",R[-2]C[-22],\"\"\"\")\"","    ActiveCell.FormulaR1C1 = \"=IF(R[-2]C[-28]=\"\"x\"\",R[-2]C[-22],\"\"\"\")\"","    ActiveCell.FormulaR1C1 = \"=IF(R[-2]C[-28]=\"\"x\"\",R[-2]C[-22],\"\"\"\")\"",null,null,"    ActiveCell.FormulaR1C1 = \"=IF(R[-2]C[-28]=\"\"x\"\",R[-2]C[-22],\"\"\"\")\"","    ActiveCell.FormulaR1C1 = \"=IF(R[-2]C[-28]=\"\"x\"\",R[-2]C[-22],\"\"\"\")\"","    ActiveCell.FormulaR1C1 = \"=IF(R[-2]C[-28]=\"\"x\"\",R[-2]C[-22],\"\"\"\")\""]
[null,null,null,null,null,null,null,null,null,null,null,null,null,null,null,null,null,null,null,null,null,null,null,"    Range(\"AP11\").Select","    Range(\"AP11\").Select","    Range(\"AP11\").Select",null,null,"    Range(\"AP11\").Select","    Range(\"AP11\").Select","    Range(\"AP11\").Select","    Range(\"AP11\").Select",null,"    Range(\"AP11\").Select","    Range(\"AP11\").Select","    Range(\"AP11\").Select","    Range(\"AP11\").Select",null,null,"    Range(\"AP11\").Select","    Range(\"AP11\").Select","    Range(\"AP11\").Select"]
[null,null,null,null,null,null,null,null,null,null,null,null,null,null,null,null,null,null,null,null,null,null,null,"    Selection.AutoFill Destination:=Range(\"AP11:AP48\"), Type:=xlFillDefault","    Selection.AutoFill Destination:=Range(\"AP11:AP48\"), Type:=xlFillDefault","    Selection.AutoFill Destination:=Range(\"AP11:AP48\"), Type:=xlFillDefault",null,null,"    Selection.AutoFill Destination:=Range(\"AP11:AP48\"), Type:=xlFillDefault","    Selection.AutoFill Destination:=Range(\"AP11:AP48\"), Type:=xlFillDefault","    Selection.AutoFill Destination:=Range(\"AP11:AP48\"), Type:=xlFillDefault","    Selection.AutoFill Destination:=Range(\"AP11:AP48\"), Type:=xlFillDefault",null,"    Selection.AutoFill Destination:=Range(\"AP11:AP48\"), Type:=xlFillDefault","    Selection.AutoFill Destination:=Range(\"AP11:AP48\"), Type:=xlFillDefault","    Selection.AutoFill Destination:=Range(\"AP11:AP48\"), Type:=xlFillDefault","    Selection.AutoFill Destination:=Range(\"AP11:AP48\"), Type:=xlFillDefault",null,null,"    Selection.AutoFill Destination:=Range(\"AP11:AP48\"), Type:=xlFillDefault","    Selection.AutoFill Destination:=Range(\"AP11:AP48\"), Type:=xlFillDefault","    Selection.AutoFill Destination:=Range(\"AP11:AP48\"), Type:=xlFillDefault"]
[null,null,null,null,null,null,null,null,null,null,null,null,null,null,null,null,null,null,null,null,null,null,null,"    Range(\"AP11:AP48\").Select","    Range(\"AP11:AP48\").Select","    Range(\"AP11:AP48\").Select",null,null,"    Range(\"AP11:AP48\").Select","    Range(\"AP11:AP48\").Select","    Range(\"AP11:AP48\").Select","    Range(\"AP11:AP48\").Select",null,"    Range(\"AP11:AP48\").Select","    Range(\"AP11:AP48\").Select","    Range(\"AP11:AP48\").Select","    Range(\"AP11:AP48\").Select",null,null,"    Range(\"AP11:AP48\").Select","    Range(\"AP11:AP48\").Select","    Range(\"AP11:AP48\").Select"]
[null,null,null,null,null,null,null,null,null,null,null,null,null,null,null,null,null,null,null,null,null,null,null,"    ActiveWindow.ScrollRow = 37","    ActiveWindow.ScrollRow = 37","    ActiveWindow.ScrollRow = 37",null,null,"    ActiveWindow.ScrollRow = 37","    ActiveWindow.ScrollRow = 37","    ActiveWindow.ScrollRow = 37","    ActiveWindow.ScrollRow = 37",null,"    ActiveWindow.ScrollRow = 37","    ActiveWindow.ScrollRow = 37","    ActiveWindow.ScrollRow = 37","    ActiveWindow.ScrollRow = 37",null,null,"    ActiveWindow.ScrollRow = 37","    ActiveWindow.ScrollRow = 37","    ActiveWindow.ScrollRow = 37"]
[null,null,null,null,null,null,null,null,null,null,null,null,null,null,null,null,null,null,null,null,null,null,null,"    ActiveWindow.ScrollRow = 34","    ActiveWindow.ScrollRow = 34","    ActiveWindow.ScrollRow = 34",null,null,"    ActiveWindow.ScrollRow = 34","    ActiveWindow.ScrollRow = 34","    ActiveWindow.ScrollRow = 34","    ActiveWindow.ScrollRow = 34",null,"    ActiveWindow.ScrollRow = 34","    ActiveWindow.ScrollRow = 34","    ActiveWindow.ScrollRow = 34","    ActiveWindow.ScrollRow = 34",null,null,"    ActiveWindow.ScrollRow = 34","    ActiveWindow.ScrollRow = 34","    ActiveWindow.ScrollRow = 34"]
[null,null,null,null,null,null,null,null,null,null,null,null,null,null,null,null,null,null,null,null,null,null,null,"    ActiveWindow.ScrollRow = 27","    ActiveWindow.ScrollRow = 27","    ActiveWindow.ScrollRow = 27",null,null,"    ActiveWindow.ScrollRow = 27","    ActiveWindow.ScrollRow = 27","    ActiveWindow.ScrollRow = 27","    ActiveWindow.ScrollRow = 27",null,"    ActiveWindow.ScrollRow = 27","    ActiveWindow.ScrollRow = 27","    ActiveWindow.ScrollRow = 27","    ActiveWindow.ScrollRow = 27",null,null,"    ActiveWindow.ScrollRow = 27","    ActiveWindow.ScrollRow = 27","    ActiveWindow.ScrollRow = 27"]
[null,null,null,null,null,null,null,null,null,null,null,null,null,null,null,null,null,null,null,null,null,null,null,"    ActiveWindow.ScrollRow = 16","    ActiveWindow.ScrollRow = 16","    ActiveWindow.ScrollRow = 16",null,null,"    ActiveWindow.ScrollRow = 16","    ActiveWindow.ScrollRow = 16","    ActiveWindow.ScrollRow = 16","    ActiveWindow.ScrollRow = 16",null,"    ActiveWindow.ScrollRow = 16","    ActiveWindow.ScrollRow = 16","    ActiveWindow.ScrollRow = 16","    ActiveWindow.ScrollRow = 16",null,null,"    ActiveWindow.ScrollRow = 16","    ActiveWindow.ScrollRow = 16","    ActiveWindow.ScrollRow = 16"]
[null,null,null,null,null,null,null,null,null,null,null,null,null,null,null,null,null,null,null,null,null,null,null,"    ActiveWindow.ScrollRow = 14","    ActiveWindow.ScrollRow = 14","    ActiveWindow.ScrollRow = 14",null,null,"    ActiveWindow.ScrollRow = 14","    ActiveWindow.ScrollRow = 14","    ActiveWindow.ScrollRow = 14","    ActiveWindow.ScrollRow = 14",null,"    ActiveWindow.ScrollRow = 14","    ActiveWindow.ScrollRow = 14","    ActiveWindow.ScrollRow = 14","    ActiveWindow.ScrollRow = 14",null,null,"    ActiveWindow.ScrollRow = 14","    ActiveWindow.ScrollRow = 14","    ActiveWindow.ScrollRow = 14"]
[null,null,null,null,null,null,null,null,null,null,null,null,null,null,null,null,null,null,null,null,null,null,null,"    ActiveWindow.ScrollRow = 13","    ActiveWindow.ScrollRow = 13","    ActiveWindow.ScrollRow = 13",null,null,"    ActiveWindow.ScrollRow = 13","    ActiveWindow.ScrollRow = 13","    ActiveWindow.ScrollRow = 13","    ActiveWindow.ScrollRow = 13",null,"    ActiveWindow.ScrollRow = 13","    ActiveWindow.ScrollRow = 13","    ActiveWindow.ScrollRow = 13","    ActiveWindow.ScrollRow = 13",null,null,"    ActiveWindow.ScrollRow = 13","    ActiveWindow.ScrollRow = 13","    ActiveWindow.ScrollRow = 13"]
[null,null,null,null,null,null,null,null,null,null,null,null,null,null,null,null,null,null,null,null,null,null,null,"    ActiveWindow.ScrollRow = 12","    ActiveWindow.ScrollRow = 12","    ActiveWindow.ScrollRow = 12",null,null,"    ActiveWindow.ScrollRow = 12","    ActiveWindow.ScrollRow = 12","    ActiveWindow.ScrollRow = 12","    ActiveWindow.ScrollRow = 12",null,"    ActiveWindow.ScrollRow = 12","    ActiveWindow.ScrollRow = 12","    ActiveWindow.ScrollRow = 12","    ActiveWindow.ScrollRow = 12",null,null,"    ActiveWindow.ScrollRow = 12","    ActiveWindow.ScrollRow = 12","    ActiveWindow.ScrollRow = 12"]
[null,null,null,null,null,null,null,null,null,null,null,null,null,null,null,null,null,null,null,null,null,null,null,"    ActiveWindow.ScrollRow = 10","    ActiveWindow.ScrollRow = 10","    ActiveWindow.ScrollRow = 10",null,null,"    ActiveWindow.ScrollRow = 10","    ActiveWindow.ScrollRow = 10","    ActiveWindow.ScrollRow = 10","    ActiveWindow.ScrollRow = 10",null,"    ActiveWindow.ScrollRow = 10","    ActiveWindow.ScrollRow = 10","    ActiveWindow.ScrollRow = 10","    ActiveWindow.ScrollRow = 10",null,null,"    ActiveWindow.ScrollRow = 10","    ActiveWindow.ScrollRow = 10","    ActiveWindow.ScrollRow = 10"]
[null,null,null,null,null,null,null,null,null,null,null,null,null,null,null,null,null,null,null,null,null,null,null,"    ActiveWindow.ScrollRow = 9","    ActiveWindow.ScrollRow = 9","    ActiveWindow.ScrollRow = 9",null,null,"    ActiveWindow.ScrollRow = 9","    ActiveWindow.ScrollRow = 9","    ActiveWindow.ScrollRow = 9","    ActiveWindow.ScrollRow = 9",null,"    ActiveWindow.ScrollRow = 9","    ActiveWindow.ScrollRow = 9","    ActiveWindow.ScrollRow = 9","    ActiveWindow.ScrollRow = 9",null,null,"    ActiveWindow.ScrollRow = 9","    ActiveWindow.ScrollRow = 9","    ActiveWindow.ScrollRow = 9"]
[null,null,null,null,null,null,null,null,null,null,null,null,null,null,null,null,null,null,null,null,null,null,null,"    Range(\"AO11\").Select","    Range(\"AO11\").Select","    Range(\"AO11\").Select",null,null,"    Range(\"AO11\").Select","    Range(\"AO11\").Select","    Range(\"AO11\").Select","    Range(\"AO11\").Select",null,"    Range(\"AO11\").Select","    Range(\"AO11\").Select","    Range(\"AO11\").Select","    Range(\"AO11\").Select",null,null,"    Range(\"AO11\").Select","    Range(\"AO11\").Select","    Range(\"AO11\").Select"]
[null,null,null,null,null,null,null,null,null,null,null,null,null,null,null,null,null,null,null,null,null,null,null,"    ActiveSheet.PasteSpecial Format:=\"Texte Unicode\", Link:=False, _","    ActiveSheet.PasteSpecial Format:=\"Texte Unicode\", Link:=False, _","    ActiveSheet.PasteSpecial Format:=\"Texte Unicode\", Link:=False, _",null,null,"    ActiveSheet.PasteSpecial Format:=\"Texte Unicode\", Link:=False, _","    ActiveSheet.PasteSpecial Format:=\"Texte Unicode\", Link:=False, _","    ActiveSheet.PasteSpecial Format:=\"Texte Unicode\", Link:=False, _","    ActiveSheet.PasteSpecial Format:=\"Texte Unicode\", Link:=False, _",null,"    ActiveSheet.PasteSpecial Format:=\"Texte Unicode\", Link:=False, _","    ActiveSheet.PasteSpecial Format:=\"Texte Unicode\", Link:=False, _","    ActiveSheet.PasteSpecial Format:=\"Texte Unicode\", Link:=False, _","    ActiveSheet.PasteSpecial Format:=\"Texte Unicode\", Link:=False, _",null,null,"    ActiveSheet.PasteSpecial Format:=\"Texte Unicode\", Link:=False, _","    ActiveSheet.PasteSpecial Format:=\"Texte Unicode\", Link:=False, _","    ActiveSheet.PasteSpecial Format:=\"Texte Unicode\", Link:=False, _"]
[null,null,null,null,null,null,null,null,null,null,null,null,null,null,null,null,null,null,null,null,null,null,null,"        DisplayAsIcon:=False, NoHTMLFormatting:=True","        DisplayAsIcon:=False, NoHTMLFormatting:=True","        DisplayAsIcon:=False, NoHTMLFormatting:=True",null,null,"        DisplayAsIcon:=False, NoHTMLFormatting:=True","        DisplayAsIcon:=False, NoHTMLFormatting:=True","        DisplayAsIcon:=False, NoHTMLFormatting:=True","        DisplayAsIcon:=False, NoHTMLFormatting:=True",null,"        DisplayAsIcon:=False, NoHTMLFormatting:=True","        DisplayAsIcon:=False, NoHTMLFormatting:=True","        DisplayAsIcon:=False, NoHTMLFormatting:=True","        DisplayAsIcon:=False, NoHTMLFormatting:=True",null,null,"        DisplayAsIcon:=False, NoHTMLFormatting:=True","        DisplayAsIcon:=False, NoHTMLFormatting:=True","        DisplayAsIcon:=False, NoHTMLFormatting:=True"]
[null,null,null,null,null,null,null,null,null,null,null,null,null,null,null,null,null,null,null,null,null,null,null,"    ActiveWindow.ScrollColumn = 30","    ActiveWindow.ScrollColumn = 30","    ActiveWindow.ScrollColumn = 30",null,null,"    ActiveWindow.ScrollColumn = 30","    ActiveWindow.ScrollColumn = 30","    ActiveWindow.ScrollColumn = 30","    ActiveWindow.ScrollColumn = 30",null,"    ActiveWindow.ScrollColumn = 30","    ActiveWindow.ScrollColumn = 30","    ActiveWindow.ScrollColumn = 30","    ActiveWindow.ScrollColumn = 30",null,null,"    ActiveWindow.ScrollColumn = 30","    ActiveWindow.ScrollColumn = 30","    ActiveWindow.ScrollColumn = 30"]
[null,null,null,null,null,null,null,null,null,null,null,null,null,null,null,null,null,null,null,null,null,null,null,"    ActiveWindow.ScrollColumn = 29","    ActiveWindow.ScrollColumn = 29","    ActiveWindow.ScrollColumn = 29",null,null,"    ActiveWindow.ScrollColumn = 29","    ActiveWindow.ScrollColumn = 29","    ActiveWindow.ScrollColumn = 29","    ActiveWindow.ScrollColumn = 29",null,"    ActiveWindow.ScrollColumn = 29","    ActiveWindow.ScrollColumn = 29","    ActiveWindow.ScrollColumn = 29","    ActiveWindow.ScrollColumn = 29",null,null,"    ActiveWindow.ScrollColumn = 29","    ActiveWindow.ScrollColumn = 29","    ActiveWindow.ScrollColumn = 29"]
[null,null,null,null,null,null,null,null,null,null,null,null,null,null,null,null,null,null,null,null,null,null,null,"    ActiveWindow.ScrollColumn = 28","    ActiveWindow.ScrollColumn = 28","    ActiveWindow.ScrollColumn = 28",null,null,"    ActiveWindow.ScrollColumn = 28","    ActiveWindow.ScrollColumn = 28","    ActiveWindow.ScrollColumn = 28","    ActiveWindow.ScrollColumn = 28",null,"    ActiveWindow.ScrollColumn = 28","    ActiveWindow.ScrollColumn = 28","    ActiveWindow.ScrollColumn = 28","    ActiveWindow.ScrollColumn = 28",null,null,"    ActiveWindow.ScrollColumn = 28","    ActiveWindow.ScrollColumn = 28","    ActiveWindow.ScrollColumn = 28"]
[null,null,null,null,null,null,null,null,null,null,null,null,null,null,null,null,null,null,null,null,null,null,null,"    ActiveWindow.ScrollColumn = 26","    ActiveWindow.ScrollColumn = 26","    ActiveWindow.ScrollColumn = 26",null,null,"    ActiveWindow.ScrollColumn = 26","    ActiveWindow.ScrollColumn = 26","    ActiveWindow.ScrollColumn = 26","    ActiveWindow.ScrollColumn = 26",null,"    ActiveWindow.ScrollColumn = 26","    ActiveWindow.ScrollColumn = 26","    ActiveWindow.ScrollColumn = 26","    ActiveWindow.ScrollColumn = 26",null,null,"    ActiveWindow.ScrollColumn = 26","    ActiveWindow.ScrollColumn = 26","    ActiveWindow.ScrollColumn = 26"]
[null,null,null,null,null,null,null,null,null,null,null,null,null,null,null,null,null,null,null,null,null,null,null,"    ActiveWindow.ScrollColumn = 25","    ActiveWindow.ScrollColumn = 25","    ActiveWindow.ScrollColumn = 25",null,null,"    ActiveWindow.ScrollColumn = 25","    ActiveWindow.ScrollColumn = 25","    ActiveWindow.ScrollColumn = 25","    ActiveWindow.ScrollColumn = 25",null,"    ActiveWindow.ScrollColumn = 25","    ActiveWindow.ScrollColumn = 25","    ActiveWindow.ScrollColumn = 25","    ActiveWindow.ScrollColumn = 25",null,null,"    ActiveWindow.ScrollColumn = 25","    ActiveWindow.ScrollColumn = 25","    ActiveWindow.ScrollColumn = 25"]
[null,null,null,null,null,null,null,null,null,null,null,null,null,null,null,null,null,null,null,null,null,null,null,"    ActiveWindow.ScrollColumn = 24","    ActiveWindow.ScrollColumn = 24","    ActiveWindow.ScrollColumn = 24",null,null,"    ActiveWindow.ScrollColumn = 24","    ActiveWindow.ScrollColumn = 24","    ActiveWindow.ScrollColumn = 24","    ActiveWindow.ScrollColumn = 24",null,"    ActiveWindow.ScrollColumn = 24","    ActiveWindow.ScrollColumn = 24","    ActiveWindow.ScrollColumn = 24","    ActiveWindow.ScrollColumn = 24",null,null,"    ActiveWindow.ScrollColumn = 24","    ActiveWindow.ScrollColumn = 24","    ActiveWindow.ScrollColumn = 24"]
[null,null,null,null,null,null,null,null,null,null,null,null,null,null,null,null,null,null,null,null,null,null,null,"    ActiveWindow.ScrollColumn = 23","    ActiveWindow.ScrollColumn = 23","    ActiveWindow.ScrollColumn = 23",null,null,"    ActiveWindow.ScrollColumn = 23","    ActiveWindow.ScrollColumn = 23","    ActiveWindow.ScrollColumn = 23","    ActiveWindow.ScrollColumn = 23",null,"    ActiveWindow.ScrollColumn = 23","    ActiveWindow.ScrollColumn = 23","    ActiveWindow.ScrollColumn = 23","    ActiveWindow.ScrollColumn = 23",null,null,"    ActiveWindow.ScrollColumn = 23","    ActiveWindow.ScrollColumn = 23","    ActiveWindow.ScrollColumn = 23"]
[null,null,null,null,null,null,null,null,null,null,null,null,null,null,null,null,null,null,null,null,null,null,null,"    ActiveWindow.ScrollColumn = 20","    ActiveWindow.ScrollColumn = 20","    ActiveWindow.ScrollColumn = 20",null,null,"    ActiveWindow.ScrollColumn = 20","    ActiveWindow.ScrollColumn = 20","    ActiveWindow.ScrollColumn = 20","    ActiveWindow.ScrollColumn = 20",null,"    ActiveWindow.ScrollColumn = 20","    ActiveWindow.ScrollColumn = 20","    ActiveWindow.ScrollColumn = 20","    ActiveWindow.ScrollColumn = 20",null,null,"    ActiveWindow.ScrollColumn = 20","    ActiveWindow.ScrollColumn = 20","    ActiveWindow.ScrollColumn = 20"]
[null,null,null,null,null,null,null,null,null,null,null,null,null,null,null,null,null,null,null,null,null,null,null,"    ActiveWindow.ScrollColumn = 18","    ActiveWindow.ScrollColumn = 18","    ActiveWindow.ScrollColumn = 18",null,null,"    ActiveWindow.ScrollColumn = 18","    ActiveWindow.ScrollColumn = 18","    ActiveWindow.ScrollColumn = 18","    ActiveWindow.ScrollColumn = 18",null,"    ActiveWindow.ScrollColumn = 18","    ActiveWindow.ScrollColumn = 18","    ActiveWindow.ScrollColumn = 18","    ActiveWindow.ScrollColumn = 18",null,null,"    ActiveWindow.ScrollColumn = 18","    ActiveWindow.ScrollColumn = 18","    ActiveWindow.ScrollColumn = 18"]
[null,null,null,null,null,null,null,null,null,null,null,null,null,null,null,null,null,null,null,null,null,null,null,"    ActiveWindow.ScrollColumn = 17","    ActiveWindow.ScrollColumn = 17","    ActiveWindow.ScrollColumn = 17",null,null,"    ActiveWindow.ScrollColumn = 17","    ActiveWindow.ScrollColumn = 17","    ActiveWindow.ScrollColumn = 17","    ActiveWindow.ScrollColumn = 17",null,"    ActiveWindow.ScrollColumn = 17","    ActiveWindow.ScrollColumn = 17","    ActiveWindow.ScrollColumn = 17","    ActiveWindow.ScrollColumn = 17",null,null,"    ActiveWindow.ScrollColumn = 17","    ActiveWindow.ScrollColumn = 17","    ActiveWindow.ScrollColumn = 17"]
[null,null,null,null,null,null,null,null,null,null,null,null,null,null,null,null,null,null,null,null,null,null,null,"    ActiveWindow.ScrollColumn = 16","    ActiveWindow.ScrollColumn = 16","    ActiveWindow.ScrollColumn = 16",null,null,"    ActiveWindow.ScrollColumn = 16","    ActiveWindow.ScrollColumn = 16","    ActiveWindow.ScrollColumn = 16","    ActiveWindow.ScrollColumn = 16",null,"    ActiveWindow.ScrollColumn = 16","    ActiveWindow.ScrollColumn = 16","    ActiveWindow.ScrollColumn = 16","    ActiveWindow.ScrollColumn = 16",null,null,"    ActiveWindow.ScrollColumn = 16","    ActiveWindow.ScrollColumn = 16","    ActiveWindow.ScrollColumn = 16"]
[null,null,null,null,null,null,null,null,null,null,null,null,null,null,null,null,null,null,null,null,null,null,null,"    ActiveWindow.ScrollColumn = 15","    ActiveWindow.ScrollColumn = 15","    ActiveWindow.ScrollColumn = 15",null,null,"    ActiveWindow.ScrollColumn = 15","    ActiveWindow.ScrollColumn = 15","    ActiveWindow.ScrollColumn = 15","    ActiveWindow.ScrollColumn = 15",null,"    ActiveWindow.ScrollColumn = 15","    ActiveWindow.ScrollColumn = 15","    ActiveWindow.ScrollColumn = 15","    ActiveWindow.ScrollColumn = 15",null,null,"    ActiveWindow.ScrollColumn = 15","    ActiveWindow.ScrollColumn = 15","    ActiveWindow.ScrollColumn = 15"]
[null,null,null,null,null,null,null,null,null,null,null,null,null,null,null,null,null,null,null,null,null,null,null,"    ActiveWindow.ScrollColumn = 14","    ActiveWindow.ScrollColumn = 14","    ActiveWindow.ScrollColumn = 14",null,null,"    ActiveWindow.ScrollColumn = 14","    ActiveWindow.ScrollColumn = 14","    ActiveWindow.ScrollColumn = 14","    ActiveWindow.ScrollColumn = 14",null,"    ActiveWindow.ScrollColumn = 14","    ActiveWindow.ScrollColumn = 14","    ActiveWindow.ScrollColumn = 14","    ActiveWindow.ScrollColumn = 14",null,null,"    ActiveWindow.ScrollColumn = 14","    ActiveWindow.ScrollColumn = 14","    ActiveWindow.ScrollColumn = 14"]
[null,null,null,null,null,null,null,null,null,null,null,null,null,null,null,null,null,null,null,null,null,null,null,"    ActiveWindow.ScrollColumn = 13","    ActiveWindow.ScrollColumn = 13","    ActiveWindow.ScrollColumn = 13",null,null,"    ActiveWindow.ScrollColumn = 13","    ActiveWindow.ScrollColumn = 13","    ActiveWindow.ScrollColumn = 13","    ActiveWindow.ScrollColumn = 13",null,"    ActiveWindow.ScrollColumn = 13","    ActiveWindow.ScrollColumn = 13","    ActiveWindow.ScrollColumn = 13","    ActiveWindow.ScrollColumn = 13",null,null,"    ActiveWindow.ScrollColumn = 13","    ActiveWindow.ScrollColumn = 13","    ActiveWindow.ScrollColumn = 13"]
[null,null,null,null,null,null,null,null,null,null,null,null,null,null,null,null,null,null,null,null,null,null,null,"    ActiveWindow.ScrollColumn = 12","    ActiveWindow.ScrollColumn = 12","    ActiveWindow.ScrollColumn = 12",null,null,"    ActiveWindow.ScrollColumn = 12","    ActiveWindow.ScrollColumn = 12","    ActiveWindow.ScrollColumn = 12","    ActiveWindow.ScrollColumn = 12",null,"    ActiveWindow.ScrollColumn = 12","    ActiveWindow.ScrollColumn = 12","    ActiveWindow.ScrollColumn = 12","    ActiveWindow.ScrollColumn = 12",null,null,"    ActiveWindow.ScrollColumn = 12","    ActiveWindow.ScrollColumn = 12","    ActiveWindow.ScrollColumn = 12"]
[null,null,null,null,null,null,null,null,null,null,null,null,null,null,null,null,null,null,null,null,null,null,null,"    ActiveWindow.ScrollColumn = 11","    ActiveWindow.ScrollColumn = 11","    ActiveWindow.ScrollColumn = 11",null,null,"    ActiveWindow.ScrollColumn = 11","    ActiveWindow.ScrollColumn = 11","    ActiveWindow.ScrollColumn = 11","    ActiveWindow.ScrollColumn = 11",null,"    ActiveWindow.ScrollColumn = 11","    ActiveWindow.ScrollColumn = 11","    ActiveWindow.ScrollColumn = 11","    ActiveWindow.ScrollColumn = 11",null,null,"    ActiveWindow.ScrollColumn = 11","    ActiveWindow.ScrollColumn = 11","    ActiveWindow.ScrollColumn = 11"]
[null,null,null,null,null,null,null,null,null,null,null,null,null,null,null,null,null,null,null,null,null,null,null,"    ActiveWindow.ScrollColumn = 10","    ActiveWindow.ScrollColumn = 10","    ActiveWindow.ScrollColumn = 10",null,null,"    ActiveWindow.ScrollColumn = 10","    ActiveWindow.ScrollColumn = 10","    ActiveWindow.ScrollColumn = 10","    ActiveWindow.ScrollColumn = 10",null,"    ActiveWindow.ScrollColumn = 10","    ActiveWindow.ScrollColumn = 10","    ActiveWindow.ScrollColumn = 10","    ActiveWindow.ScrollColumn = 10",null,null,"    ActiveWindow.ScrollColumn = 10","    ActiveWindow.ScrollColumn = 10","    ActiveWindow.ScrollColumn = 10"]
[null,null,null,null,null,null,null,null,null,null,null,null,null,null,null,null,null,null,null,null,null,null,null,"    ActiveWindow.ScrollColumn = 9","    ActiveWindow.ScrollColumn = 9","    ActiveWindow.ScrollColumn = 9",null,null,"    ActiveWindow.ScrollColumn = 9","    ActiveWindow.ScrollColumn = 9","    ActiveWindow.ScrollColumn = 9","    ActiveWindow.ScrollColumn = 9",null,"    ActiveWindow.ScrollColumn = 9","    ActiveWindow.ScrollColumn = 9","    ActiveWindow.ScrollColumn = 9","    ActiveWindow.ScrollColumn = 9",null,null,"    ActiveWindow.ScrollColumn = 9","    ActiveWindow.ScrollColumn = 9","    ActiveWindow.ScrollColumn = 9"]
[null,null,null,null,null,null,null,null,null,null,null,null,null,null,null,null,null,null,null,null,null,null,null,"    ActiveCell.FormulaR1C1 = \"=IF(R[-2]C[-31]=\"\"x\"\",R[-2]C[-21],\"\"\"\")\"","    ActiveCell.FormulaR1C1 = \"=IF(R[-2]C[-31]=\"\"x\"\",R[-2]C[-21],\"\"\"\")\"","    ActiveCell.FormulaR1C1 = \"=IF(R[-2]C[-31]=\"\"x\"\",R[-2]C[-21],\"\"\"\")\"",null,null,"    ActiveCell.FormulaR1C1 = \"=IF(R[-2]C[-31]=\"\"x\"\",R[-2]C[-21],\"\"\"\")\"","    ActiveCell.FormulaR1C1 = \"=IF(R[-2]C[-31]=\"\"x\"\",R[-2]C[-21],\"\"\"\")\"","    ActiveCell.FormulaR1C1 = \"=IF(R[-2]C[-31]=\"\"x\"\",R[-2]C[-21],\"\"\"\")\"","    ActiveCell.FormulaR1C1 = \"=IF(R[-2]C[-31]=\"\"x\"\",R[-2]C[-21],\"\"\"\")\"",null,"    ActiveCell.FormulaR1C1 = \"=IF(R[-2]C[-31]=\"\"x\"\",R[-2]C[-21],\"\"\"\")\"","    ActiveCell.FormulaR1C1 = \"=IF(R[-2]C[-31]=\"\"x\"\",R[-2]C[-21],\"\"\"\")\"","    ActiveCell.FormulaR1C1 = \"=IF(R[-2]C[-31]=\"\"x\"\",R[-2]C[-21],\"\"\"\")\"","    ActiveCell.FormulaR1C1 = \"=IF(R[-2]C[-31]=\"\"x\"\",R[-2]C[-21],\"\"\"\")\"",null,null,"    ActiveCell.FormulaR1C1 = \"=IF(R[-2]C[-31]=\"\"x\"\",R[-2]C[-21],\"\"\"\")\"","    ActiveCell.FormulaR1C1 = \"=IF(R[-2]C[-31]=\"\"x\"\",R[-2]C[-21],\"\"\"\")\"","    ActiveCell.FormulaR1C1 = \"=IF(R[-2]C[-31]=\"\"x\"\",R[-2]C[-21],\"\"\"\")\""]
[null,null,null,null,null,null,null,null,null,null,null,null,null,null,null,null,null,null,null,null,null,null,null,"    Range(\"AO11\").Select","    Range(\"AO11\").Select","    Range(\"AO11\").Select",null,null,"    Range(\"AO11\").Select","    Range(\"AO11\").Select","    Range(\"AO11\").Select","    Range(\"AO11\").Select",null,"    Range(\"AO11\").Select","    Range(\"AO11\").Select","    Range(\"AO11\").Select","    Range(\"AO11\").Select",null,null,"    Range(\"AO11\").Select","    Range(\"AO11\").Select","    Range(\"AO11\").Select"]
[null,null,null,null,null,null,null,null,null,null,null,null,null,null,null,null,null,null,null,null,null,null,null,"    Selection.AutoFill Destination:=Range(\"AO11:AO48\"), Type:=xlFillDefault","    Selection.AutoFill Destination:=Range(\"AO11:AO48\"), Type:=xlFillDefault","    Selection.AutoFill Destination:=Range(\"AO11:AO48\"), Type:=xlFillDefault",null,null,"    Selection.AutoFill Destination:=Range(\"AO11:AO48\"), Type:=xlFillDefault","    Selection.AutoFill Destination:=Range(\"AO11:AO48\"), Type:=xlFillDefault","    Selection.AutoFill Destination:=Range(\"AO11:AO48\"), Type:=xlFillDefault","    Selection.AutoFill Destination:=Range(\"AO11:AO48\"), Type:=xlFillDefault",null,"    Selection.AutoFill Destination:=Range(\"AO11:AO48\"), Type:=xlFillDefault","    Selection.AutoFill Destination:=Range(\"AO11:AO48\"), Type:=xlFillDefault","    Selection.AutoFill Destination:=Range(\"AO11:AO48\"), Type:=xlFillDefault","    Selection.AutoFill Destination:=Range(\"AO11:AO48\"), Type:=xlFillDefault",null,null,"    Selection.AutoFill Destination:=Range(\"AO11:AO48\"), Type:=xlFillDefault","    Selection.AutoFill Destination:=Range(\"AO11:AO48\"), Type:=xlFillDefault","    Selection.AutoFill Destination:=Range(\"AO11:AO48\"), Type:=xlFillDefault"]
[null,null,null,null,null,null,null,null,null,null,null,null,null,null,null,null,null,null,null,null,null,null,null,"    Range(\"AO11:AO48\").Select","    Range(\"AO11:AO48\").Select","    Range(\"AO11:AO48\").Select",null,null,"    Range(\"AO11:AO48\").Select","    Range(\"AO11:AO48\").Select","    Range(\"AO11:AO48\").Select","    Range(\"AO11:AO48\").Select",null,"    Range(\"AO11:AO48\").Select","    Range(\"AO11:AO48\").Select","    Range(\"AO11:AO48\").Select","    Range(\"AO11:AO48\").Select",null,null,"    Range(\"AO11:AO48\").Select","    Range(\"AO11:AO48\").Select","    Range(\"AO11:AO48\").Select"]
[null,null,null,null,null,null,null,null,null,null,null,null,null,null,null,null,null,null,null,null,null,null,null,"    ActiveWindow.ScrollRow = 35","    ActiveWindow.ScrollRow = 35","    ActiveWindow.ScrollRow = 35",null,null,"    ActiveWindow.ScrollRow = 35","    ActiveWindow.ScrollRow = 35","    ActiveWindow.ScrollRow = 35","    ActiveWindow.ScrollRow = 35",null,"    ActiveWindow.ScrollRow = 35","    ActiveWindow.ScrollRow = 35","    ActiveWindow.ScrollRow = 35","    ActiveWindow.ScrollRow = 35",null,null,"    ActiveWindow.ScrollRow = 35","    ActiveWindow.ScrollRow = 35","    ActiveWindow.ScrollRow = 35"]
[null,null,null,null,null,null,null,null,null,null,null,null,null,null,null,null,null,null,null,null,null,null,null,"    ActiveWindow.ScrollRow = 30","    ActiveWindow.ScrollRow = 30","    ActiveWindow.ScrollRow = 30",null,null,"    ActiveWindow.ScrollRow = 30","    ActiveWindow.ScrollRow = 30","    ActiveWindow.ScrollRow = 30","    ActiveWindow.ScrollRow = 30",null,"    ActiveWindow.ScrollRow = 30","    ActiveWindow.ScrollRow = 30","    ActiveWindow.ScrollRow = 30","    ActiveWindow.ScrollRow = 30",null,null,"    ActiveWindow.ScrollRow = 30","    ActiveWindow.ScrollRow = 30","    ActiveWindow.ScrollRow = 30"]
[null,null,null,null,null,null,null,null,null,null,null,null,null,null,null,null,null,null,null,null,null,null,null,"    ActiveWindow.ScrollRow = 22","    ActiveWindow.ScrollRow = 22","    ActiveWindow.ScrollRow = 22",null,null,"    ActiveWindow.ScrollRow = 22","    ActiveWindow.ScrollRow = 22","    ActiveWindow.ScrollRow = 22","    ActiveWindow.ScrollRow = 22",null,"    ActiveWindow.ScrollRow = 22","    ActiveWindow.ScrollRow = 22","    ActiveWindow.ScrollRow = 22","    ActiveWindow.ScrollRow = 22",null,null,"    ActiveWindow.ScrollRow = 22","    ActiveWindow.ScrollRow = 22","    ActiveWindow.ScrollRow = 22"]
[null,null,null,null,null,null,null,null,null,null,null,null,null,null,null,null,null,null,null,null,null,null,null,"    ActiveWindow.ScrollRow = 12","    ActiveWindow.ScrollRow = 12","    ActiveWindow.ScrollRow = 12",null,null,"    ActiveWindow.ScrollRow = 12","    ActiveWindow.ScrollRow = 12","    ActiveWindow.ScrollRow = 12","    ActiveWindow.ScrollRow = 12",null,"    ActiveWindow.ScrollRow = 12","    ActiveWindow.ScrollRow = 12","    ActiveWindow.ScrollRow = 12","    ActiveWindow.ScrollRow = 12",null,null,"    ActiveWindow.ScrollRow = 12","    ActiveWindow.ScrollRow = 12","    ActiveWindow.ScrollRow = 12"]
[null,null,null,null,null,null,null,null,null,null,null,null,null,null,null,null,null,null,null,null,null,null,null,"    ActiveWindow.ScrollRow = 9","    ActiveWindow.ScrollRow = 9","    ActiveWindow.ScrollRow = 9",null,null,"    ActiveWindow.ScrollRow = 9","    ActiveWindow.ScrollRow = 9","    ActiveWindow.ScrollRow = 9","    ActiveWindow.ScrollRow = 9",null,"    ActiveWindow.ScrollRow = 9","    ActiveWindow.ScrollRow = 9","    ActiveWindow.ScrollRow = 9","    ActiveWindow.ScrollRow = 9",null,null,"    ActiveWindow.ScrollRow = 9","    ActiveWindow.ScrollRow = 9","    ActiveWindow.ScrollRow = 9"]
[null,null,null,null,null,null,null,null,null,null,null,null,null,null,null,null,null,null,null,null,null,null,null,"    ActiveWindow.ScrollColumn = 29","    ActiveWindow.ScrollColumn = 29","    ActiveWindow.ScrollColumn = 29",null,null,"    ActiveWindow.ScrollColumn = 29","    ActiveWindow.ScrollColumn = 29","    ActiveWindow.ScrollColumn = 29","    ActiveWindow.ScrollColumn = 29",null,"    ActiveWindow.ScrollColumn = 29","    ActiveWindow.ScrollColumn = 29","    ActiveWindow.ScrollColumn = 29","    ActiveWindow.ScrollColumn = 29",null,null,"    ActiveWindow.ScrollColumn = 29","    ActiveWindow.ScrollColumn = 29","    ActiveWindow.ScrollColumn = 29"]
[null,null,null,null,null,null,null,null,null,null,null,null,null,null,null,null,null,null,null,null,null,null,null,"    ActiveWindow.ScrollColumn = 28","    ActiveWindow.ScrollColumn = 28","    ActiveWindow.ScrollColumn = 28",null,null,"    ActiveWindow.ScrollColumn = 28","    ActiveWindow.ScrollColumn = 28","    ActiveWindow.ScrollColumn = 28","    ActiveWindow.ScrollColumn = 28",null,"    ActiveWindow.ScrollColumn = 28","    ActiveWindow.ScrollColumn = 28","    ActiveWindow.ScrollColumn = 28","    ActiveWindow.ScrollColumn = 28",null,null,"    ActiveWindow.ScrollColumn = 28","    ActiveWindow.ScrollColumn = 28","    ActiveWindow.ScrollColumn = 28"]
[null,null,null,null,null,null,null,null,null,null,null,null,null,null,null,null,null,null,null,null,null,null,null,"    ActiveWindow.ScrollColumn = 27","    ActiveWindow.ScrollColumn = 27","    ActiveWindow.ScrollColumn = 27",null,null,"    ActiveWindow.ScrollColumn = 27","    ActiveWindow.ScrollColumn = 27","    ActiveWindow.ScrollColumn = 27","    ActiveWindow.ScrollColumn = 27",null,"    ActiveWindow.ScrollColumn = 27","    ActiveWindow.ScrollColumn = 27","    ActiveWindow.ScrollColumn = 27","    ActiveWindow.ScrollColumn = 27",null,null,"    ActiveWindow.ScrollColumn = 27","    ActiveWindow.ScrollColumn = 27","    ActiveWindow.ScrollColumn = 27"]
[null,null,null,null,null,null,null,null,null,null,null,null,null,null,null,null,null,null,null,null,null,null,null,"    ActiveWindow.ScrollColumn = 26","    ActiveWindow.ScrollColumn = 26","    ActiveWindow.ScrollColumn = 26",null,null,"    ActiveWindow.ScrollColumn = 26","    ActiveWindow.ScrollColumn = 26","    ActiveWindow.ScrollColumn = 26","    ActiveWindow.ScrollColumn = 26",null,"    ActiveWindow.ScrollColumn = 26","    ActiveWindow.ScrollColumn = 26","    ActiveWindow.ScrollColumn = 26","    ActiveWindow.ScrollColumn = 26",null,null,"    ActiveWindow.ScrollColumn = 26","    ActiveWindow.ScrollColumn = 26","    ActiveWindow.ScrollColumn = 26"]
[null,null,null,null,null,null,null,null,null,null,null,null,null,null,null,null,null,null,null,null,null,null,null,"    ActiveWindow.ScrollColumn = 25","    ActiveWindow.ScrollColumn = 25","    ActiveWindow.ScrollColumn = 25",null,null,"    ActiveWindow.ScrollColumn = 25","    ActiveWindow.ScrollColumn = 25","    ActiveWindow.ScrollColumn = 25","    ActiveWindow.ScrollColumn = 25",null,"    ActiveWindow.ScrollColumn = 25","    ActiveWindow.ScrollColumn = 25","    ActiveWindow.ScrollColumn = 25","    ActiveWindow.ScrollColumn = 25",null,null,"    ActiveWindow.ScrollColumn = 25","    ActiveWindow.ScrollColumn = 25","    ActiveWindow.ScrollColumn = 25"]
[null,null,null,null,null,null,null,null,null,null,null,null,null,null,null,null,null,null,null,null,null,null,null,"    ActiveWindow.ScrollColumn = 24","    ActiveWindow.ScrollColumn = 24","    ActiveWindow.ScrollColumn = 24",null,null,"    ActiveWindow.ScrollColumn = 24","    ActiveWindow.ScrollColumn = 24","    ActiveWindow.ScrollColumn = 24","    ActiveWindow.ScrollColumn = 24",null,"    ActiveWindow.ScrollColumn = 24","    ActiveWindow.ScrollColumn = 24","    ActiveWindow.ScrollColumn = 24","    ActiveWindow.ScrollColumn = 24",null,null,"    ActiveWindow.ScrollColumn = 24","    ActiveWindow.ScrollColumn = 24","    ActiveWindow.ScrollColumn = 24"]
[null,null,null,null,null,null,null,null,null,null,null,null,null,null,null,null,null,null,null,null,null,null,null,"    ActiveWindow.ScrollColumn = 23","    ActiveWindow.ScrollColumn = 23","    ActiveWindow.ScrollColumn = 23",null,null,"    ActiveWindow.ScrollColumn = 23","    ActiveWindow.ScrollColumn = 23","    ActiveWindow.ScrollColumn = 23","    ActiveWindow.ScrollColumn = 23",null,"    ActiveWindow.ScrollColumn = 23","    ActiveWindow.ScrollColumn = 23","    ActiveWindow.ScrollColumn = 23","    ActiveWindow.ScrollColumn = 23",null,null,"    ActiveWindow.ScrollColumn = 23","    ActiveWindow.ScrollColumn = 23","    ActiveWindow.ScrollColumn = 23"]
[null,null,null,null,null,null,null,null,null,null,null,null,null,null,null,null,null,null,null,null,null,null,null,"    ActiveWindow.ScrollColumn = 22","    ActiveWindow.ScrollColumn = 22","    ActiveWindow.ScrollColumn = 22",null,null,"    ActiveWindow.ScrollColumn = 22","    ActiveWindow.ScrollColumn = 22","    ActiveWindow.ScrollColumn = 22","    ActiveWindow.ScrollColumn = 22",null,"    ActiveWindow.ScrollColumn = 22","    ActiveWindow.ScrollColumn = 22","    ActiveWindow.ScrollColumn = 22","    ActiveWindow.ScrollColumn = 22",null,null,"    ActiveWindow.ScrollColumn = 22","    ActiveWindow.ScrollColumn = 22","    ActiveWindow.ScrollColumn = 22"]
[null,null,null,null,null,null,null,null,null,null,null,null,null,null,null,null,null,null,null,null,null,null,null,"    ActiveWindow.ScrollColumn = 21","    ActiveWindow.ScrollColumn = 21","    ActiveWindow.ScrollColumn = 21",null,null,"    ActiveWindow.ScrollColumn = 21","    ActiveWindow.ScrollColumn = 21","    ActiveWindow.ScrollColumn = 21","    ActiveWindow.ScrollColumn = 21",null,"    ActiveWindow.ScrollColumn = 21","    ActiveWindow.ScrollColumn = 21","    ActiveWindow.ScrollColumn = 21","    ActiveWindow.ScrollColumn = 21",null,null,"    ActiveWindow.ScrollColumn = 21","    ActiveWindow.ScrollColumn = 21","    ActiveWindow.ScrollColumn = 21"]
[null,null,null,null,null,null,null,null,null,null,null,null,null,null,null,null,null,null,null,null,null,null,null,"    ActiveWindow.ScrollColumn = 20","    ActiveWindow.ScrollColumn = 20","    ActiveWindow.ScrollColumn = 20",null,null,"    ActiveWindow.ScrollColumn = 20","    ActiveWindow.ScrollColumn = 20","    ActiveWindow.ScrollColumn = 20","    ActiveWindow.ScrollColumn = 20",null,"    ActiveWindow.ScrollColumn = 20","    ActiveWindow.ScrollColumn = 20","    ActiveWindow.ScrollColumn = 20","    ActiveWindow.ScrollColumn = 20",null,null,"    ActiveWindow.ScrollColumn = 20","    ActiveWindow.ScrollColumn = 20","    ActiveWindow.ScrollColumn = 20"]
[null,null,null,null,null,null,null,null,null,null,null,null,null,null,null,null,null,null,null,null,null,null,null,"    ActiveWindow.ScrollColumn = 19","    ActiveWindow.ScrollColumn = 19","    ActiveWindow.ScrollColumn = 19",null,null,"    ActiveWindow.ScrollColumn = 19","    ActiveWindow.ScrollColumn = 19","    ActiveWindow.ScrollColumn = 19","    ActiveWindow.ScrollColumn = 19",null,"    ActiveWindow.ScrollColumn = 19","    ActiveWindow.ScrollColumn = 19","    ActiveWindow.ScrollColumn = 19","    ActiveWindow.ScrollColumn = 19",null,null,"    ActiveWindow.ScrollColumn = 19","    ActiveWindow.ScrollColumn = 19","    ActiveWindow.ScrollColumn = 19"]
[null,null,null,null,null,null,null,null,null,null,null,null,null,null,null,null,null,null,null,null,null,null,null,"    ActiveWindow.ScrollColumn = 18","    ActiveWindow.ScrollColumn = 18","    ActiveWindow.ScrollColumn = 18",null,null,"    ActiveWindow.ScrollColumn = 18","    ActiveWindow.ScrollColumn = 18","    ActiveWindow.ScrollColumn = 18","    ActiveWindow.ScrollColumn = 18",null,"    ActiveWindow.ScrollColumn = 18","    ActiveWindow.ScrollColumn = 18","    ActiveWindow.ScrollColumn = 18","    ActiveWindow.ScrollColumn = 18",null,null,"    ActiveWindow.ScrollColumn = 18","    ActiveWindow.ScrollColumn = 18","    ActiveWindow.ScrollColumn = 18"]
[null,null,null,null,null,null,null,null,null,null,null,null,null,null,null,null,null,null,null,null,null,null,null,"    ActiveWindow.ScrollColumn = 17","    ActiveWindow.ScrollColumn = 17","    ActiveWindow.ScrollColumn = 17",null,null,"    ActiveWindow.ScrollColumn = 17","    ActiveWindow.ScrollColumn = 17","    ActiveWindow.ScrollColumn = 17","    ActiveWindow.ScrollColumn = 17",null,"    ActiveWindow.ScrollColumn = 17","    ActiveWindow.ScrollColumn = 17","    ActiveWindow.ScrollColumn = 17","    ActiveWindow.ScrollColumn = 17",null,null,"    ActiveWindow.ScrollColumn = 17","    ActiveWindow.ScrollColumn = 17","    ActiveWindow.ScrollColumn = 17"]
[null,null,null,null,null,null,null,null,null,null,null,null,null,null,null,null,null,null,null,null,null,null,null,"    ActiveWindow.ScrollColumn = 16","    ActiveWindow.ScrollColumn = 16","    ActiveWindow.ScrollColumn = 16",null,null,"    ActiveWindow.ScrollColumn = 16","    ActiveWindow.ScrollColumn = 16","    ActiveWindow.ScrollColumn = 16","    ActiveWindow.ScrollColumn = 16",null,"    ActiveWindow.ScrollColumn = 16","    ActiveWindow.ScrollColumn = 16","    ActiveWindow.ScrollColumn = 16","    ActiveWindow.ScrollColumn = 16",null,null,"    ActiveWindow.ScrollColumn = 16","    ActiveWindow.ScrollColumn = 16","    ActiveWindow.ScrollColumn = 16"]
[null,null,null,null,null,null,null,null,null,null,null,null,null,null,null,null,null,null,null,null,null,null,null,"    ActiveWindow.ScrollColumn = 15","    ActiveWindow.ScrollColumn = 15","    ActiveWindow.ScrollColumn = 15",null,null,"    ActiveWindow.ScrollColumn = 15","    ActiveWindow.ScrollColumn = 15","    ActiveWindow.ScrollColumn = 15","    ActiveWindow.ScrollColumn = 15",null,"    ActiveWindow.ScrollColumn = 15","    ActiveWindow.ScrollColumn = 15","    ActiveWindow.ScrollColumn = 15","    ActiveWindow.ScrollColumn = 15",null,null,"    ActiveWindow.ScrollColumn = 15","    ActiveWindow.ScrollColumn = 15","    ActiveWindow.ScrollColumn = 15"]
[null,null,null,null,null,null,null,null,null,null,null,null,null,null,null,null,null,null,null,null,null,null,null,"    ActiveWindow.ScrollColumn = 14","    ActiveWindow.ScrollColumn = 14","    ActiveWindow.ScrollColumn = 14",null,null,"    ActiveWindow.ScrollColumn = 14","    ActiveWindow.ScrollColumn = 14","    ActiveWindow.ScrollColumn = 14","    ActiveWindow.ScrollColumn = 14",null,"    ActiveWindow.ScrollColumn = 14","    ActiveWindow.ScrollColumn = 14","    ActiveWindow.ScrollColumn = 14","    ActiveWindow.ScrollColumn = 14",null,null,"    ActiveWindow.ScrollColumn = 14","    ActiveWindow.ScrollColumn = 14","    ActiveWindow.ScrollColumn = 14"]
[null,null,null,null,null,null,null,null,null,null,null,null,null,null,null,null,null,null,null,null,null,null,null,"    ActiveWindow.ScrollColumn = 13","    ActiveWindow.ScrollColumn = 13","    ActiveWindow.ScrollColumn = 13",null,null,"    ActiveWindow.ScrollColumn = 13","    ActiveWindow.ScrollColumn = 13","    ActiveWindow.ScrollColumn = 13","    ActiveWindow.ScrollColumn = 13",null,"    ActiveWindow.ScrollColumn = 13","    ActiveWindow.ScrollColumn = 13","    ActiveWindow.ScrollColumn = 13","    ActiveWindow.ScrollColumn = 13",null,null,"    ActiveWindow.ScrollColumn = 13","    ActiveWindow.ScrollColumn = 13","    ActiveWindow.ScrollColumn = 13"]
[null,null,null,null,null,null,null,null,null,null,null,null,null,null,null,null,null,null,null,null,null,null,null,"    ActiveWindow.ScrollColumn = 12","    ActiveWindow.ScrollColumn = 12","    ActiveWindow.ScrollColumn = 12",null,null,"    ActiveWindow.ScrollColumn = 12","    ActiveWindow.ScrollColumn = 12","    ActiveWindow.ScrollColumn = 12","    ActiveWindow.ScrollColumn = 12",null,"    ActiveWindow.ScrollColumn = 12","    ActiveWindow.ScrollColumn = 12","    ActiveWindow.ScrollColumn = 12","    ActiveWindow.ScrollColumn = 12",null,null,"    ActiveWindow.ScrollColumn = 12","    ActiveWindow.ScrollColumn = 12","    ActiveWindow.ScrollColumn = 12"]
[null,null,null,null,null,null,null,null,null,null,null,null,null,null,null,null,null,null,null,null,null,null,null,"    ActiveWindow.ScrollColumn = 11","    ActiveWindow.ScrollColumn = 11","    ActiveWindow.ScrollColumn = 11",null,null,"    ActiveWindow.ScrollColumn = 11","    ActiveWindow.ScrollColumn = 11","    ActiveWindow.ScrollColumn = 11","    ActiveWindow.ScrollColumn = 11",null,"    ActiveWindow.ScrollColumn = 11","    ActiveWindow.ScrollColumn = 11","    ActiveWindow.ScrollColumn = 11","    ActiveWindow.ScrollColumn = 11",null,null,"    ActiveWindow.ScrollColumn = 11","    ActiveWindow.ScrollColumn = 11","    ActiveWindow.ScrollColumn = 11"]
[null,null,null,null,null,null,null,null,null,null,null,null,null,null,null,null,null,null,null,null,null,null,null,"    ActiveWindow.ScrollColumn = 10","    ActiveWindow.ScrollColumn = 10","    ActiveWindow.ScrollColumn = 10",null,null,"    ActiveWindow.ScrollColumn = 10","    ActiveWindow.ScrollColumn = 10","    ActiveWindow.ScrollColumn = 10","    ActiveWindow.ScrollColumn = 10",null,"    ActiveWindow.ScrollColumn = 10","    ActiveWindow.ScrollColumn = 10","    ActiveWindow.ScrollColumn = 10","    ActiveWindow.ScrollColumn = 10",null,null,"    ActiveWindow.ScrollColumn = 10","    ActiveWindow.ScrollColumn = 10","    ActiveWindow.ScrollColumn = 10"]
[null,null,null,null,null,null,null,null,null,null,null,null,null,null,null,null,null,null,null,null,null,null,null,"    ActiveWindow.ScrollColumn = 9","    ActiveWindow.ScrollColumn = 9","    ActiveWindow.ScrollColumn = 9",null,null,"    ActiveWindow.ScrollColumn = 9","    ActiveWindow.ScrollColumn = 9","    ActiveWindow.ScrollColumn = 9","    ActiveWindow.ScrollColumn = 9",null,"    ActiveWindow.ScrollColumn = 9","    ActiveWindow.ScrollColumn = 9","    ActiveWindow.ScrollColumn = 9","    ActiveWindow.ScrollColumn = 9",null,null,"    ActiveWindow.ScrollColumn = 9","    ActiveWindow.ScrollColumn = 9","    ActiveWindow.ScrollColumn = 9"]
[null,null,null,null,null,null,null,null,null,null,null,null,null,null,null,null,null,null,null,null,null,null,null,"    ActiveWindow.ScrollColumn = 8","    ActiveWindow.ScrollColumn = 8","    ActiveWindow.ScrollColumn = 8",null,null,"    ActiveWindow.ScrollColumn = 8","    ActiveWindow.ScrollColumn = 8","    ActiveWindow.ScrollColumn = 8","    ActiveWindow.ScrollColumn = 8",null,"    ActiveWindow.ScrollColumn = 8","    ActiveWindow.ScrollColumn = 8","    ActiveWindow.ScrollColumn = 8","    ActiveWindow.ScrollColumn = 8",null,null,"    ActiveWindow.ScrollColumn = 8","    ActiveWindow.ScrollColumn = 8","    ActiveWindow.ScrollColumn = 8"]
[null,null,null,null,null,null,null,null,null,null,null,null,null,null,null,null,null,null,null,null,null,null,null,"    ActiveWindow.ScrollColumn = 6","    ActiveWindow.ScrollColumn = 6","    ActiveWindow.ScrollColumn = 6",null,null,"    ActiveWindow.ScrollColumn = 6","    ActiveWindow.ScrollColumn = 6","    ActiveWindow.ScrollColumn = 6","    ActiveWindow.ScrollColumn = 6",null,"    ActiveWindow.ScrollColumn = 6","    ActiveWindow.ScrollColumn = 6","    ActiveWindow.ScrollColumn = 6","    ActiveWindow.ScrollColumn = 6",null,null,"    ActiveWindow.ScrollColumn = 6","    ActiveWindow.ScrollColumn = 6","    ActiveWindow.ScrollColumn = 6"]
[null,null,null,null,null,null,null,null,null,null,null,null,null,null,null,null,null,null,null,null,null,null,null,"    ActiveWindow.ScrollColumn = 5","    ActiveWindow.ScrollColumn = 5","    ActiveWindow.ScrollColumn = 5",null,null,"    ActiveWindow.ScrollColumn = 5","    ActiveWindow.ScrollColumn = 5","    ActiveWindow.ScrollColumn = 5","    ActiveWindow.ScrollColumn = 5",null,"    ActiveWindow.ScrollColumn = 5","    ActiveWindow.ScrollColumn = 5","    ActiveWindow.ScrollColumn = 5","    ActiveWindow.ScrollColumn = 5",null,null,"    ActiveWindow.ScrollColumn = 5","    ActiveWindow.ScrollColumn = 5","    ActiveWindow.ScrollColumn = 5"]
[null,null,null,null,null,null,null,null,null,null,null,null,null,null,null,null,null,null,null,null,null,null,null,"    ActiveWindow.ScrollColumn = 6","    ActiveWindow.ScrollColumn = 6","    ActiveWindow.ScrollColumn = 6",null,null,"    ActiveWindow.ScrollColumn = 6","    ActiveWindow.ScrollColumn = 6","    ActiveWindow.ScrollColumn = 6","    ActiveWindow.ScrollColumn = 6",null,"    ActiveWindow.ScrollColumn = 6","    ActiveWindow.ScrollColumn = 6","    ActiveWindow.ScrollColumn = 6","    ActiveWindow.ScrollColumn = 6",null,null,"    ActiveWindow.ScrollColumn = 6","    ActiveWindow.ScrollColumn = 6","    ActiveWindow.ScrollColumn = 6"]
[null,null,null,null,null,null,null,null,null,null,null,null,null,null,null,null,null,null,null,null,null,null,null,"    ActiveWindow.ScrollColumn = 8","    ActiveWindow.ScrollColumn = 8","    ActiveWindow.ScrollColumn = 8",null,null,"    ActiveWindow.ScrollColumn = 8","    ActiveWindow.ScrollColumn = 8","    ActiveWindow.ScrollColumn = 8","    ActiveWindow.ScrollColumn = 8",null,"    ActiveWindow.ScrollColumn = 8","    ActiveWindow.ScrollColumn = 8","    ActiveWindow.ScrollColumn = 8","    ActiveWindow.ScrollColumn = 8",null,null,"    ActiveWindow.ScrollColumn = 8","    ActiveWindow.ScrollColumn = 8","    ActiveWindow.ScrollColumn = 8"]
[null,null,null,null,null,null,null,null,null,null,null,null,null,null,null,null,null,null,null,null,null,null,null,"    ActiveWindow.ScrollColumn = 11","    ActiveWindow.ScrollColumn = 11","    ActiveWindow.ScrollColumn = 11",null,null,"    ActiveWindow.ScrollColumn = 11","    ActiveWindow.ScrollColumn = 11","    ActiveWindow.ScrollColumn = 11","    ActiveWindow.ScrollColumn = 11",null,"    ActiveWindow.ScrollColumn = 11","    ActiveWindow.ScrollColumn = 11","    ActiveWindow.ScrollColumn = 11","    ActiveWindow.ScrollColumn = 11",null,null,"    ActiveWindow.ScrollColumn = 11","    ActiveWindow.ScrollColumn = 11","    ActiveWindow.ScrollColumn = 11"]
[null,null,null,null,null,null,null,null,null,null,null,null,null,null,null,null,null,null,null,null,null,null,null,"    ActiveWindow.ScrollColumn = 12","    ActiveWindow.ScrollColumn = 12","    ActiveWindow.ScrollColumn = 12",null,null,"    ActiveWindow.ScrollColumn = 12","    ActiveWindow.ScrollColumn = 12","    ActiveWindow.ScrollColumn = 12","    ActiveWindow.ScrollColumn = 12",null,"    ActiveWindow.ScrollColumn = 12","    ActiveWindow.ScrollColumn = 12","    ActiveWindow.ScrollColumn = 12","    ActiveWindow.ScrollColumn = 12",null,null,"    ActiveWindow.ScrollColumn = 12","    ActiveWindow.ScrollColumn = 12","    ActiveWindow.ScrollColumn = 12"]
[null,null,null,null,null,null,null,null,null,null,null,null,null,null,null,null,null,null,null,null,null,null,null,"    ActiveWindow.ScrollColumn = 14","    ActiveWindow.ScrollColumn = 14","    ActiveWindow.ScrollColumn = 14",null,null,"    ActiveWindow.ScrollColumn = 14","    ActiveWindow.ScrollColumn = 14","    ActiveWindow.ScrollColumn = 14","    ActiveWindow.ScrollColumn = 14",null,"    ActiveWindow.ScrollColumn = 14","    ActiveWindow.ScrollColumn = 14","    ActiveWindow.ScrollColumn = 14","    ActiveWindow.ScrollColumn = 14",null,null,"    ActiveWindow.ScrollColumn = 14","    ActiveWindow.ScrollColumn = 14","    ActiveWindow.ScrollColumn = 14"]
[null,null,null,null,null,null,null,null,null,null,null,null,null,null,null,null,null,null,null,null,null,null,null,"    ActiveWindow.ScrollColumn = 15","    ActiveWindow.ScrollColumn = 15","    ActiveWindow.ScrollColumn = 15",null,null,"    ActiveWindow.ScrollColumn = 15","    ActiveWindow.ScrollColumn = 15","    ActiveWindow.ScrollColumn = 15","    ActiveWindow.ScrollColumn = 15",null,"    ActiveWindow.ScrollColumn = 15","    ActiveWindow.ScrollColumn = 15","    ActiveWindow.ScrollColumn = 15","    ActiveWindow.ScrollColumn = 15",null,null,"    ActiveWindow.ScrollColumn = 15","    ActiveWindow.ScrollColumn = 15","    ActiveWindow.ScrollColumn = 15"]
[null,null,null,null,null,null,null,null,null,null,null,null,null,null,null,null,null,null,null,null,null,null,null,"    ActiveWindow.ScrollColumn = 17","    ActiveWindow.ScrollColumn = 17","    ActiveWindow.ScrollColumn = 17",null,null,"    ActiveWindow.ScrollColumn = 17","    ActiveWindow.ScrollColumn = 17","    ActiveWindow.ScrollColumn = 17","    ActiveWindow.ScrollColumn = 17",null,"    ActiveWindow.ScrollColumn = 17","    ActiveWindow.ScrollColumn = 17","    ActiveWindow.ScrollColumn = 17","    ActiveWindow.ScrollColumn = 17",null,null,"    ActiveWindow.ScrollColumn = 17","    ActiveWindow.ScrollColumn = 17","    ActiveWindow.ScrollColumn = 17"]
[null,null,null,null,null,null,null,null,null,null,null,null,null,null,null,null,null,null,null,null,null,null,null,"    ActiveWindow.ScrollColumn = 18","    ActiveWindow.ScrollColumn = 18","    ActiveWindow.ScrollColumn = 18",null,null,"    ActiveWindow.ScrollColumn = 18","    ActiveWindow.ScrollColumn = 18","    ActiveWindow.ScrollColumn = 18","    ActiveWindow.ScrollColumn = 18",null,"    ActiveWindow.ScrollColumn = 18","    ActiveWindow.ScrollColumn = 18","    ActiveWindow.ScrollColumn = 18","    ActiveWindow.ScrollColumn = 18",null,null,"    ActiveWindow.ScrollColumn = 18","    ActiveWindow.ScrollColumn = 18","    ActiveWindow.ScrollColumn = 18"]
[null,null,null,null,null,null,null,null,null,null,null,null,null,null,null,null,null,null,null,null,null,null,null,"    ActiveWindow.ScrollColumn = 20","    ActiveWindow.ScrollColumn = 20","    ActiveWindow.ScrollColumn = 20",null,null,"    ActiveWindow.ScrollColumn = 20","    ActiveWindow.ScrollColumn = 20","    ActiveWindow.ScrollColumn = 20","    ActiveWindow.ScrollColumn = 20",null,"    ActiveWindow.ScrollColumn = 20","    ActiveWindow.ScrollColumn = 20","    ActiveWindow.ScrollColumn = 20","    ActiveWindow.ScrollColumn = 20",null,null,"    ActiveWindow.ScrollColumn = 20","    ActiveWindow.ScrollColumn = 20","    ActiveWindow.ScrollColumn = 20"]
[null,null,null,null,null,null,null,null,null,null,null,null,null,null,null,null,null,null,null,null,null,null,null,"    ActiveWindow.ScrollColumn = 22","    ActiveWindow.ScrollColumn = 22","    ActiveWindow.ScrollColumn = 22",null,null,"    ActiveWindow.ScrollColumn = 22","    ActiveWindow.ScrollColumn = 22","    ActiveWindow.ScrollColumn = 22","    ActiveWindow.ScrollColumn = 22",null,"    ActiveWindow.ScrollColumn = 22","    ActiveWindow.ScrollColumn = 22","    ActiveWindow.ScrollColumn = 22","    ActiveWindow.ScrollColumn = 22",null,null,"    ActiveWindow.ScrollColumn = 22","    ActiveWindow.ScrollColumn = 22","    ActiveWindow.ScrollColumn = 22"]
[null,null,null,null,null,null,null,null,null,null,null,null,null,null,null,null,null,null,null,null,null,null,null,"    ActiveWindow.ScrollColumn = 24","    ActiveWindow.ScrollColumn = 24","    ActiveWindow.ScrollColumn = 24",null,null,"    ActiveWindow.ScrollColumn = 24","    ActiveWindow.ScrollColumn = 24","    ActiveWindow.ScrollColumn = 24","    ActiveWindow.ScrollColumn = 24",null,"    ActiveWindow.ScrollColumn = 24","    ActiveWindow.ScrollColumn = 24","    ActiveWindow.ScrollColumn = 24","    ActiveWindow.ScrollColumn = 24",null,null,"    ActiveWindow.ScrollColumn = 24","    ActiveWindow.ScrollColumn = 24","    ActiveWindow.ScrollColumn = 24"]
[null,null,null,null,null,null,null,null,null,null,null,null,null,null,null,null,null,null,null,null,null,null,null,"    ActiveWindow.ScrollColumn = 25","    ActiveWindow.ScrollColumn = 25","    ActiveWindow.ScrollColumn = 25",null,null,"    ActiveWindow.ScrollColumn = 25","    ActiveWindow.ScrollColumn = 25","    ActiveWindow.ScrollColumn = 25","    ActiveWindow.ScrollColumn = 25",null,"    ActiveWindow.ScrollColumn = 25","    ActiveWindow.ScrollColumn = 25","    ActiveWindow.ScrollColumn = 25","    ActiveWindow.ScrollColumn = 25",null,null,"    ActiveWindow.ScrollColumn = 25","    ActiveWindow.ScrollColumn = 25","    ActiveWindow.ScrollColumn = 25"]
[null,null,null,null,null,null,null,null,null,null,null,null,null,null,null,null,null,null,null,null,null,null,null,"    ActiveWindow.ScrollColumn = 26","    ActiveWindow.ScrollColumn = 26","    ActiveWindow.ScrollColumn = 26",null,null,"    ActiveWindow.ScrollColumn = 26","    ActiveWindow.ScrollColumn = 26","    ActiveWindow.ScrollColumn = 26","    ActiveWindow.ScrollColumn = 26",null,"    ActiveWindow.ScrollColumn = 26","    ActiveWindow.ScrollColumn = 26","    ActiveWindow.ScrollColumn = 26","    ActiveWindow.ScrollColumn = 26",null,null,"    ActiveWindow.ScrollColumn = 26","    ActiveWindow.ScrollColumn = 26","    ActiveWindow.ScrollColumn = 26"]
[null,null,null,null,null,null,null,null,null,null,null,null,null,null,null,null,null,null,null,null,null,null,null,"    ActiveWindow.ScrollColumn = 27","    ActiveWindow.ScrollColumn = 27","    ActiveWindow.ScrollColumn = 27",null,null,"    ActiveWindow.ScrollColumn = 27","    ActiveWindow.ScrollColumn = 27","    ActiveWindow.ScrollColumn = 27","    ActiveWindow.ScrollColumn = 27",null,"    ActiveWindow.ScrollColumn = 27","    ActiveWindow.ScrollColumn = 27","    ActiveWindow.ScrollColumn = 27","    ActiveWindow.ScrollColumn = 27",null,null,"    ActiveWindow.ScrollColumn = 27","    ActiveWindow.ScrollColumn = 27","    ActiveWindow.ScrollColumn = 27"]
[null,null,null,null,null,null,null,null,null,null,null,null,null,null,null,null,null,null,null,null,null,null,null,"    ActiveWindow.ScrollColumn = 28","    ActiveWindow.ScrollColumn = 28","    ActiveWindow.ScrollColumn = 28",null,null,"    ActiveWindow.ScrollColumn = 28","    ActiveWindow.ScrollColumn = 28","    ActiveWindow.ScrollColumn = 28","    ActiveWindow.ScrollColumn = 28",null,"    ActiveWindow.ScrollColumn = 28","    ActiveWindow.ScrollColumn = 28","    ActiveWindow.ScrollColumn = 28","    ActiveWindow.ScrollColumn = 28",null,null,"    ActiveWindow.ScrollColumn = 28","    ActiveWindow.ScrollColumn = 28","    ActiveWindow.ScrollColumn = 28"]
[null,null,null,null,null,null,null,null,null,null,null,null,null,null,null,null,null,null,null,null,null,null,null,"    ActiveWindow.ScrollColumn = 29","    ActiveWindow.ScrollColumn = 29","    ActiveWindow.ScrollColumn = 29",null,null,"    ActiveWindow.ScrollColumn = 29","    ActiveWindow.ScrollColumn = 29","    ActiveWindow.ScrollColumn = 29","    ActiveWindow.ScrollColumn = 29",null,"    ActiveWindow.ScrollColumn = 29","    ActiveWindow.ScrollColumn = 29","    ActiveWindow.ScrollColumn = 29","    ActiveWindow.ScrollColumn = 29",null,null,"    ActiveWindow.ScrollColumn = 29","    ActiveWindow.ScrollColumn = 29","    ActiveWindow.ScrollColumn = 29"]
[null,null,null,null,null,null,null,null,null,null,null,null,null,null,null,null,null,null,null,null,null,null,null,"    Range(\"AN11\").Select","    Range(\"AN11\").Select","    Range(\"AN11\").Select",null,null,"    Range(\"AN11\").Select","    Range(\"AN11\").Select","    Range(\"AN11\").Select","    Range(\"AN11\").Select",null,"    Range(\"AN11\").Select","    Range(\"AN11\").Select","    Range(\"AN11\").Select","    Range(\"AN11\").Select",null,null,"    Range(\"AN11\").Select","    Range(\"AN11\").Select","    Range(\"AN11\").Select"]
[null,null,null,null,null,null,null,null,null,null,null,null,null,null,null,null,null,null,null,null,null,null,null,"    ActiveSheet.PasteSpecial Format:=\"Texte Unicode\", Link:=False, _","    ActiveSheet.PasteSpecial Format:=\"Texte Unicode\", Link:=False, _","    ActiveSheet.PasteSpecial Format:=\"Texte Unicode\", Link:=False, _",null,null,"    ActiveSheet.PasteSpecial Format:=\"Texte Unicode\", Link:=False, _","    ActiveSheet.PasteSpecial Format:=\"Texte Unicode\", Link:=False, _","    ActiveSheet.PasteSpecial Format:=\"Texte Unicode\", Link:=False, _","    ActiveSheet.PasteSpecial Format:=\"Texte Unicode\", Link:=False, _",null,"    ActiveSheet.PasteSpecial Format:=\"Texte Unicode\", Link:=False, _","    ActiveSheet.PasteSpecial Format:=\"Texte Unicode\", Link:=False, _","    ActiveSheet.PasteSpecial Format:=\"Texte Unicode\", Link:=False, _","    ActiveSheet.PasteSpecial Format:=\"Texte Unicode\", Link:=False, _",null,null,"    ActiveSheet.PasteSpecial Format:=\"Texte Unicode\", Link:=False, _","    ActiveSheet.PasteSpecial Format:=\"Texte Unicode\", Link:=False, _","    ActiveSheet.PasteSpecial Format:=\"Texte Unicode\", Link:=False, _"]
[null,null,null,null,null,null,null,null,null,null,null,null,null,null,null,null,null,null,null,null,null,null,null,"        DisplayAsIcon:=False, NoHTMLFormatting:=True","        DisplayAsIcon:=False, NoHTMLFormatting:=True","        DisplayAsIcon:=False, NoHTMLFormatting:=True",null,null,"        DisplayAsIcon:=False, NoHTMLFormatting:=True","        DisplayAsIcon:=False, NoHTMLFormatting:=True","        DisplayAsIcon:=False, NoHTMLFormatting:=True","        DisplayAsIcon:=False, NoHTMLFormatting:=True",null,"        DisplayAsIcon:=False, NoHTMLFormatting:=True","        DisplayAsIcon:=False, NoHTMLFormatting:=True","        DisplayAsIcon:=False, NoHTMLFormatting:=True","        DisplayAsIcon:=False, NoHTMLFormatting:=True",null,null,"        DisplayAsIcon:=False, NoHTMLFormatting:=True","        DisplayAsIcon:=False, NoHTMLFormatting:=True","        DisplayAsIcon:=False, NoHTMLFormatting:=True"]
[null,null,null,null,null,null,null,null,null,null,null,null,null,null,null,null,null,null,null,null,null,null,null,"    ActiveCell.FormulaR1C1 = \"=IF(R[-2]C[-34]=\"\"x\"\",R[-2]C[-20],\"\"\"\")\"","    ActiveCell.FormulaR1C1 = \"=IF(R[-2]C[-34]=\"\"x\"\",R[-2]C[-20],\"\"\"\")\"","    ActiveCell.FormulaR1C1 = \"=IF(R[-2]C[-34]=\"\"x\"\",R[-2]C[-20],\"\"\"\")\"",null,null,"    ActiveCell.FormulaR1C1 = \"=IF(R[-2]C[-34]=\"\"x\"\",R[-2]C[-20],\"\"\"\")\"","    ActiveCell.FormulaR1C1 = \"=IF(R[-2]C[-34]=\"\"x\"\",R[-2]C[-20],\"\"\"\")\"","    ActiveCell.FormulaR1C1 = \"=IF(R[-2]C[-34]=\"\"x\"\",R[-2]C[-20],\"\"\"\")\"","    ActiveCell.FormulaR1C1 = \"=IF(R[-2]C[-34]=\"\"x\"\",R[-2]C[-20],\"\"\"\")\"",null,"    ActiveCell.FormulaR1C1 = \"=IF(R[-2]C[-34]=\"\"x\"\",R[-2]C[-20],\"\"\"\")\"","    ActiveCell.FormulaR1C1 = \"=IF(R[-2]C[-34]=\"\"x\"\",R[-2]C[-20],\"\"\"\")\"","    ActiveCell.FormulaR1C1 = \"=IF(R[-2]C[-34]=\"\"x\"\",R[-2]C[-20],\"\"\"\")\"","    ActiveCell.FormulaR1C1 = \"=IF(R[-2]C[-34]=\"\"x\"\",R[-2]C[-20],\"\"\"\")\"",null,null,"    ActiveCell.FormulaR1C1 = \"=IF(R[-2]C[-34]=\"\"x\"\",R[-2]C[-20],\"\"\"\")\"","    ActiveCell.FormulaR1C1 = \"=IF(R[-2]C[-34]=\"\"x\"\",R[-2]C[-20],\"\"\"\")\"","    ActiveCell.FormulaR1C1 = \"=IF(R[-2]C[-34]=\"\"x\"\",R[-2]C[-20],\"\"\"\")\""]
[null,null,null,null,null,null,null,null,null,null,null,null,null,null,null,null,null,null,null,null,null,null,null,"    Range(\"AN11\").Select","    Range(\"AN11\").Select","    Range(\"AN11\").Select",null,null,"    Range(\"AN11\").Select","    Range(\"AN11\").Select","    Range(\"AN11\").Select","    Range(\"AN11\").Select",null,"    Range(\"AN11\").Select","    Range(\"AN11\").Select","    Range(\"AN11\").Select","    Range(\"AN11\").Select",null,null,"    Range(\"AN11\").Select","    Range(\"AN11\").Select","    Range(\"AN11\").Select"]
[null,null,null,null,null,null,null,null,null,null,null,null,null,null,null,null,null,null,null,null,null,null,null,"    Selection.AutoFill Destination:=Range(\"AN11:AN48\"), Type:=xlFillDefault","    Selection.AutoFill Destination:=Range(\"AN11:AN48\"), Type:=xlFillDefault","    Selection.AutoFill Destination:=Range(\"AN11:AN48\"), Type:=xlFillDefault",null,null,"    Selection.AutoFill Destination:=Range(\"AN11:AN48\"), Type:=xlFillDefault","    Selection.AutoFill Destination:=Range(\"AN11:AN48\"), Type:=xlFillDefault","    Selection.AutoFill Destination:=Range(\"AN11:AN48\"), Type:=xlFillDefault","    Selection.AutoFill Destination:=Range(\"AN11:AN48\"), Type:=xlFillDefault",null,"    Selection.AutoFill Destination:=Range(\"AN11:AN48\"), Type:=xlFillDefault","    Selection.AutoFill Destination:=Range(\"AN11:AN48\"), Type:=xlFillDefault","    Selection.AutoFill Destination:=Range(\"AN11:AN48\"), Type:=xlFillDefault","    Selection.AutoFill Destination:=Range(\"AN11:AN48\"), Type:=xlFillDefault",null,null,"    Selection.AutoFill Destination:=Range(\"AN11:AN48\"), Type:=xlFillDefault","    Selection.AutoFill Destination:=Range(\"AN11:AN48\"), Type:=xlFillDefault","    Selection.AutoFill Destination:=Range(\"AN11:AN48\"), Type:=xlFillDefault"]
[null,null,null,null,null,null,null,null,null,null,null,null,null,null,null,null,null,null,null,null,null,null,null,"    Range(\"AN11:AN48\").Select","    Range(\"AN11:AN48\").Select","    Range(\"AN11:AN48\").Select",null,null,"    Range(\"AN11:AN48\").Select","    Range(\"AN11:AN48\").Select","    Range(\"AN11:AN48\").Select","    Range(\"AN11:AN48\").Select",null,"    Range(\"AN11:AN48\").Select","    Range(\"AN11:AN48\").Select","    Range(\"AN11:AN48\").Select","    Range(\"AN11:AN48\").Select",null,null,"    Range(\"AN11:AN48\").Select","    Range(\"AN11:AN48\").Select","    Range(\"AN11:AN48\").Select"]
[null,null,null,null,null,null,null,null,null,null,null,null,null,null,null,null,null,null,null,null,null,null,null,"    ActiveWindow.ScrollRow = 33","    ActiveWindow.ScrollRow = 33","    ActiveWindow.ScrollRow = 33",null,null,"    ActiveWindow.ScrollRow = 33","    ActiveWindow.ScrollRow = 33","    ActiveWindow.ScrollRow = 33","    ActiveWindow.ScrollRow = 33",null,"    ActiveWindow.ScrollRow = 33","    ActiveWindow.ScrollRow = 33","    ActiveWindow.ScrollRow = 33","    ActiveWindow.ScrollRow = 33",null,null,"    ActiveWindow.ScrollRow = 33","    ActiveWindow.ScrollRow = 33","    ActiveWindow.ScrollRow = 33"]
[null,null,null,null,null,null,null,null,null,null,null,null,null,null,null,null,null,null,null,null,null,null,null,"    ActiveWindow.ScrollRow = 29","    ActiveWindow.ScrollRow = 29","    ActiveWindow.ScrollRow = 29",null,null,"    ActiveWindow.ScrollRow = 29","    ActiveWindow.ScrollRow = 29","    ActiveWindow.ScrollRow = 29","    ActiveWindow.ScrollRow = 29",null,"    ActiveWindow.ScrollRow = 29","    ActiveWindow.ScrollRow = 29","    ActiveWindow.ScrollRow = 29","    ActiveWindow.ScrollRow = 29",null,null,"    ActiveWindow.ScrollRow = 29","    ActiveWindow.ScrollRow = 29","    ActiveWindow.ScrollRow = 29"]
[null,null,null,null,null,null,null,null,null,null,null,null,null,null,null,null,null,null,null,null,null,null,null,"    ActiveWindow.ScrollRow = 18","    ActiveWindow.ScrollRow = 18","    ActiveWindow.ScrollRow = 18",null,null,"    ActiveWindow.ScrollRow = 18","    ActiveWindow.ScrollRow = 18","    ActiveWindow.ScrollRow = 18","    ActiveWindow.ScrollRow = 18",null,"    ActiveWindow.ScrollRow = 18","    ActiveWindow.ScrollRow = 18","    ActiveWindow.ScrollRow = 18","    ActiveWindow.ScrollRow = 18",null,null,"    ActiveWindow.ScrollRow = 18","    ActiveWindow.ScrollRow = 18","    ActiveWindow.ScrollRow = 18"]
[null,null,null,null,null,null,null,null,null,null,null,null,null,null,null,null,null,null,null,null,null,null,null,"    ActiveWindow.ScrollRow = 11","    ActiveWindow.ScrollRow = 11","    ActiveWindow.ScrollRow = 11",null,null,"    ActiveWindow.ScrollRow = 11","    ActiveWindow.ScrollRow = 11","    ActiveWindow.ScrollRow = 11","    ActiveWindow.ScrollRow = 11",null,"    ActiveWindow.ScrollRow = 11","    ActiveWindow.ScrollRow = 11","    ActiveWindow.ScrollRow = 11","    ActiveWindow.ScrollRow = 11",null,null,"    ActiveWindow.ScrollRow = 11","    ActiveWindow.ScrollRow = 11","    ActiveWindow.ScrollRow = 11"]
[null,null,null,null,null,null,null,null,null,null,null,null,null,null,null,null,null,null,null,null,null,null,null,"    ActiveWindow.ScrollRow = 10","    ActiveWindow.ScrollRow = 10","    ActiveWindow.ScrollRow = 10",null,null,"    ActiveWindow.ScrollRow = 10","    ActiveWindow.ScrollRow = 10","    ActiveWindow.ScrollRow = 10","    ActiveWindow.ScrollRow = 10",null,"    ActiveWindow.ScrollRow = 10","    ActiveWindow.ScrollRow = 10","    ActiveWindow.ScrollRow = 10","    ActiveWindow.ScrollRow = 10",null,null,"    ActiveWindow.ScrollRow = 10","    ActiveWindow.ScrollRow = 10","    ActiveWindow.ScrollRow = 10"]
[null,null,null,null,null,null,null,null,null,null,null,null,null,null,null,null,null,null,null,null,null,null,null,"    ActiveWindow.ScrollRow = 9","    ActiveWindow.ScrollRow = 9","    ActiveWindow.ScrollRow = 9",null,null,"    ActiveWindow.ScrollRow = 9","    ActiveWindow.ScrollRow = 9","    ActiveWindow.ScrollRow = 9","    ActiveWindow.ScrollRow = 9",null,"    ActiveWindow.ScrollRow = 9","    ActiveWindow.ScrollRow = 9","    ActiveWindow.ScrollRow = 9","    ActiveWindow.ScrollRow = 9",null,null,"    ActiveWindow.ScrollRow = 9","    ActiveWindow.ScrollRow = 9","    ActiveWindow.ScrollRow = 9"]
[null,null,null,null,null,null,null,null,null,null,null,null,null,null,null,null,null,null,null,null,null,null,null,"    Range(\"AM11\").Select","    Range(\"AM11\").Select","    Range(\"AM11\").Select",null,null,"    Range(\"AM11\").Select","    Range(\"AM11\").Select","    Range(\"AM11\").Select","    Range(\"AM11\").Select",null,"    Range(\"AM11\").Select","    Range(\"AM11\").Select","    Range(\"AM11\").Select","    Range(\"AM11\").Select",null,null,"    Range(\"AM11\").Select","    Range(\"AM11\").Select","    Range(\"AM11\").Select"]
[null,null,null,null,null,null,null,null,null,null,null,null,null,null,null,null,null,null,null,null,null,null,null,"    ActiveCell.FormulaR1C1 = \"=IF(R[-2]C[-37]=\"\"x\"\",R[-2]C[-19],\"\"\"\")\"","    ActiveCell.FormulaR1C1 = \"=IF(R[-2]C[-37]=\"\"x\"\",R[-2]C[-19],\"\"\"\")\"","    ActiveCell.FormulaR1C1 = \"=IF(R[-2]C[-37]=\"\"x\"\",R[-2]C[-19],\"\"\"\")\"",null,null,"    ActiveCell.FormulaR1C1 = \"=IF(R[-2]C[-37]=\"\"x\"\",R[-2]C[-19],\"\"\"\")\"","    ActiveCell.FormulaR1C1 = \"=IF(R[-2]C[-37]=\"\"x\"\",R[-2]C[-19],\"\"\"\")\"","    ActiveCell.FormulaR1C1 = \"=IF(R[-2]C[-37]=\"\"x\"\",R[-2]C[-19],\"\"\"\")\"","    ActiveCell.FormulaR1C1 = \"=IF(R[-2]C[-37]=\"\"x\"\",R[-2]C[-19],\"\"\"\")\"",null,"    ActiveCell.FormulaR1C1 = \"=IF(R[-2]C[-37]=\"\"x\"\",R[-2]C[-19],\"\"\"\")\"","    ActiveCell.FormulaR1C1 = \"=IF(R[-2]C[-37]=\"\"x\"\",R[-2]C[-19],\"\"\"\")\"","    ActiveCell.FormulaR1C1 = \"=IF(R[-2]C[-37]=\"\"x\"\",R[-2]C[-19],\"\"\"\")\"","    ActiveCell.FormulaR1C1 = \"=IF(R[-2]C[-37]=\"\"x\"\",R[-2]C[-19],\"\"\"\")\"",null,null,"    ActiveCell.FormulaR1C1 = \"=IF(R[-2]C[-37]=\"\"x\"\",R[-2]C[-19],\"\"\"\")\"","    ActiveCell.FormulaR1C1 = \"=IF(R[-2]C[-37]=\"\"x\"\",R[-2]C[-19],\"\"\"\")\"","    ActiveCell.FormulaR1C1 = \"=IF(R[-2]C[-37]=\"\"x\"\",R[-2]C[-19],\"\"\"\")\""]
[null,null,null,null,null,null,null,null,null,null,null,null,null,null,null,null,null,null,null,null,null,null,null,"    Range(\"AM11\").Select","    Range(\"AM11\").Select","    Range(\"AM11\").Select",null,null,"    Range(\"AM11\").Select","    Range(\"AM11\").Select","    Range(\"AM11\").Select","    Range(\"AM11\").Select",null,"    Range(\"AM11\").Select","    Range(\"AM11\").Select","    Range(\"AM11\").Select","    Range(\"AM11\").Select",null,null,"    Range(\"AM11\").Select","    Range(\"AM11\").Select","    Range(\"AM11\").Select"]
[null,null,null,null,null,null,null,null,null,null,null,null,null,null,null,null,null,null,null,null,null,null,null,"    Selection.AutoFill Destination:=Range(\"AM11:AM48\"), Type:=xlFillDefault","    Selection.AutoFill Destination:=Range(\"AM11:AM48\"), Type:=xlFillDefault","    Selection.AutoFill Destination:=Range(\"AM11:AM48\"), Type:=xlFillDefault",null,null,"    Selection.AutoFill Destination:=Range(\"AM11:AM48\"), Type:=xlFillDefault","    Selection.AutoFill Destination:=Range(\"AM11:AM48\"), Type:=xlFillDefault","    Selection.AutoFill Destination:=Range(\"AM11:AM48\"), Type:=xlFillDefault","    Selection.AutoFill Destination:=Range(\"AM11:AM48\"), Type:=xlFillDefault",null,"    Selection.AutoFill Destination:=Range(\"AM11:AM48\"), Type:=xlFillDefault","    Selection.AutoFill Destination:=Range(\"AM11:AM48\"), Type:=xlFillDefault","    Selection.AutoFill Destination:=Range(\"AM11:AM48\"), Type:=xlFillDefault","    Selection.AutoFill Destination:=Range(\"AM11:AM48\"), Type:=xlFillDefault",null,null,"    Selection.AutoFill Destination:=Range(\"AM11:AM48\"), Type:=xlFillDefault","    Selection.AutoFill Destination:=Range(\"AM11:AM48\"), Type:=xlFillDefault","    Selection.AutoFill Destination:=Range(\"AM11:AM48\"), Type:=xlFillDefault"]
[null,null,null,null,null,null,null,null,null,null,null,null,null,null,null,null,null,null,null,null,null,null,null,"    Range(\"AM11:AM48\").Select","    Range(\"AM11:AM48\").Select","    Range(\"AM11:AM48\").Select",null,null,"    Range(\"AM11:AM48\").Select","    Range(\"AM11:AM48\").Select","    Range(\"AM11:AM48\").Select","    Range(\"AM11:AM48\").Select",null,"    Range(\"AM11:AM48\").Select","    Range(\"AM11:AM48\").Select","    Range(\"AM11:AM48\").Select","    Range(\"AM11:AM48\").Select",null,null,"    Range(\"AM11:AM48\").Select","    Range(\"AM11:AM48\").Select","    Range(\"AM11:AM48\").Select"]
[null,null,null,null,null,null,null,null,null,null,null,null,null,null,null,null,null,null,null,null,null,null,null,"End Sub","End Sub","End Sub",null,null,"End Sub","End Sub","End Sub","End Sub",null,"End Sub","End Sub","End Sub","End Sub",null,null,"End Sub","End Sub","End Sub"]